date,department/service,beneficiary,amount,summary of purpose,category,transaction number
01.12.2016,ADULT SOCIAL CARE,REDACTED PERSONAL DATA,475.36,APPOINTEESHIPS,OTHER PAYMENTS FOR CLIENTS,2102599540
01.12.2016,ADULT SOCIAL CARE,EMMA MORTIMER,300,SAFEGUARDING TEAM,EXTERNAL AGENCIES AND BODIES,5902225458
01.12.2016,CHIEF EXECUTIVE,DEBRA GOSLING,750,CAPITAL PS (REGEN),CONSTRUCTION FEES  - EXTERNAL,5902224404
01.12.2016,CHILDREN AND ADULT,WERNICK REFURBISHED BUILDINGS LTD,"-8,126.42",CAPITAL PS (EDUCATION),CONSTRUCTION MAIN CONTRACT -CERTIFICATED,5902225966
01.12.2016,CHILDREN AND ADULT,WERNICK REFURBISHED BUILDINGS LTD,"8,126.42",CAPITAL PS (EDUCATION),CONSTRUCTION MAIN CONTRACT -CERTIFICATED,5902225851
01.12.2016,CHILDREN'S SERVICES,PULSE HEALTHCARE LTD,299,HOME 2 SCHOOL TRANSPORT,AGENCY STAFF,5902224964
01.12.2016,CHILDREN'S SERVICES,REDACTED PERSONAL DATA,329.03,HOME 2 SCHOOL TRANSPORT,OTHER PAYMENTS FOR CLIENTS,5902224258
01.12.2016,CHILDREN'S SERVICES,"TUMUSIIME, KABEGA AND CO ADVOCATES",328,LEGAL FEES,SPECIALIST SERVICES,INTERNATIONAL PAYMENT
01.12.2016,CHILDREN'S SERVICES,PULSE HEALTHCARE LTD,897,SEN TRANSPORT,STATEMENTED FEES,5902224721
01.12.2016,CHILDREN'S SERVICES,MIDDLESBOROUGH BOROUGH CARS LTD,273.6,SPECIALIST CARE,HIRED VEHICLES,5902224438
01.12.2016,CUSTOMER EXPERIENCE HGF,LEARN SIGN LANGUAGE LTD,480,TRANSLATION & INTERPRETATION,INTERPRETING SERVICES,5902224665
01.12.2016,ENVIRONMENT AND LEISURE,CONWAY AECOM LTD,"17,924.92",CAPITAL PS (LEISURE),CONSTR'N SUB CONTRACT - NON CERTIFICATED,5902224350
01.12.2016,ENVIRONMENT DIRECTORATE,IMPERIAL JANITORIAL SUPPLIES LTD,413.57,ESTATE CLEANING-GENERAL,"CLOTHING, UNIFORMS & LAUNDRY",5902224510
01.12.2016,HOUSING HRA,MICHAEL CONSTRUCTION LTD,"-6,780.00",CAPITAL PS (HRA),CONST'N MAIN CONTRACT - NON CERTIFICATED,5902226075
01.12.2016,HOUSING HRA,MICHAEL CONSTRUCTION LTD,"-6,365.00",CAPITAL PS (HRA),CONST'N MAIN CONTRACT - NON CERTIFICATED,5902226077
01.12.2016,HOUSING HRA,MICHAEL CONSTRUCTION LTD,"-6,185.00",CAPITAL PS (HRA),CONST'N MAIN CONTRACT - NON CERTIFICATED,5902226079
01.12.2016,HOUSING HRA,MICHAEL CONSTRUCTION LTD,"-5,820.00",CAPITAL PS (HRA),CONST'N MAIN CONTRACT - NON CERTIFICATED,5902226074
01.12.2016,HOUSING HRA,MICHAEL CONSTRUCTION LTD,"-5,770.00",CAPITAL PS (HRA),CONST'N MAIN CONTRACT - NON CERTIFICATED,5902226078
01.12.2016,HOUSING HRA,MICHAEL CONSTRUCTION LTD,"-5,465.00",CAPITAL PS (HRA),CONST'N MAIN CONTRACT - NON CERTIFICATED,5902226076
01.12.2016,HOUSING HRA,MICHAEL CONSTRUCTION LTD,"5,465.00",CAPITAL PS (HRA),CONST'N MAIN CONTRACT - NON CERTIFICATED,5902226059
01.12.2016,HOUSING HRA,MICHAEL CONSTRUCTION LTD,"5,770.00",CAPITAL PS (HRA),CONST'N MAIN CONTRACT - NON CERTIFICATED,5902226065
01.12.2016,HOUSING HRA,MICHAEL CONSTRUCTION LTD,"5,820.00",CAPITAL PS (HRA),CONST'N MAIN CONTRACT - NON CERTIFICATED,5902226054
01.12.2016,HOUSING HRA,MICHAEL CONSTRUCTION LTD,"6,185.00",CAPITAL PS (HRA),CONST'N MAIN CONTRACT - NON CERTIFICATED,5902226066
01.12.2016,HOUSING HRA,MICHAEL CONSTRUCTION LTD,"6,365.00",CAPITAL PS (HRA),CONST'N MAIN CONTRACT - NON CERTIFICATED,5902226062
01.12.2016,HOUSING HRA,MICHAEL CONSTRUCTION LTD,"6,780.00",CAPITAL PS (HRA),CONST'N MAIN CONTRACT - NON CERTIFICATED,5902226058
01.12.2016,STRATEGIC FINANCING BUDGETS,THE PRIMARY TIMES,720,CREDIT UNION A/C FOR 11 YEAR OLDS,MARKETING & PUBLICITY SERVICES,5902225194
02.12.2016,ADULT SOCIAL CARE,ARK HOME HEALTHCARE LTD,"15,319.47", OP CARE PACKAGES,HOMECARE - IC,5902225777
02.12.2016,ADULT SOCIAL CARE,JON HOLBROOK,"1,375.00",MENTAL HEALTH FOR OLDER ADULTS,LEGAL FEES & COURT COSTS,2102600616
02.12.2016,ADULT SOCIAL CARE,EIRWEN JANE PIERROT,300,PROVIDER SERVICES MANAGEMENT,LEGAL FEES & COURT COSTS,2102600609
02.12.2016,ADULT SOCIAL CARE,ACT TOO LTD,900,PWLD DAY CARE (TRANSPORT),DAYCARE,2102600522
02.12.2016,ASSET MANAGEMENT,POD LLP,"2,677.50",DEVELOPMENT DELIVERY,AGENCY STAFF,5902225832
02.12.2016,CENTRAL FUNCTIONS,BRITISH GAS BUSINESS,774.19,ABBEYFIELD ROAD,GAS,5902225733
02.12.2016,CENTRAL FUNCTIONS,ALAN MACLEAN QC,"3,075.00",GENERAL HOLDING AC,LEGAL FEES & COURT COSTS,2102600524
02.12.2016,CENTRAL FUNCTIONS,ALAN MACLEAN QC,"7,000.00",GENERAL HOLDING AC,LEGAL FEES & COURT COSTS,2102600525
02.12.2016,CHIEF EXECUTIVE,CAMPBELL REITH HILL LLP,"10,150.00",CAPITAL PS (REGEN),CONSTRUCTION FEES,5902225713
02.12.2016,CHILDREN AND ADULT,GLEEDS ADVISORY LTD,333,CAPITAL PS (EDUCATION),CONSTRUCTION FEES  - EXTERNAL,5902225666
02.12.2016,CHILDREN AND ADULT,GLEEDS MANAGEMENT SERVICES LTD,550,CAPITAL PS (EDUCATION),CONSTRUCTION FEES  - EXTERNAL,5902225702
02.12.2016,CHILDREN AND ADULT,KEEGANS LTD,"1,169.00",CAPITAL PS (EDUCATION),CONSTRUCTION FEES - QUANTITY SURVEYOR,5902225652
02.12.2016,CHILDREN AND ADULT,KEEGANS LTD,"3,969.00",CAPITAL PS (EDUCATION),CONSTRUCTION FEES - QUANTITY SURVEYOR,5902225651
02.12.2016,CHILDREN AND ADULT,KEEGANS LTD,"4,069.00",CAPITAL PS (EDUCATION),CONSTRUCTION FEES - QUANTITY SURVEYOR,5902225763
02.12.2016,CHILDREN AND ADULT,KEEGANS LTD,"4,535.00",CAPITAL PS (EDUCATION),CONSTRUCTION FEES - QUANTITY SURVEYOR,5902225790
02.12.2016,CHILDREN AND ADULT,KEEGANS LTD,"4,937.00",CAPITAL PS (EDUCATION),CONSTRUCTION FEES - QUANTITY SURVEYOR,5902225767
02.12.2016,CHILDREN AND ADULT,KEEGANS LTD,"4,950.00",CAPITAL PS (EDUCATION),CONSTRUCTION FEES - QUANTITY SURVEYOR,5902225668
02.12.2016,CHILDREN AND ADULT,KEEGANS LTD,"5,300.00",CAPITAL PS (EDUCATION),CONSTRUCTION FEES - QUANTITY SURVEYOR,5902225765
02.12.2016,CHILDREN AND ADULT,KEEGANS LTD,"5,349.00",CAPITAL PS (EDUCATION),CONSTRUCTION FEES - QUANTITY SURVEYOR,5902225680
02.12.2016,CHILDREN AND ADULT,KEEGANS LTD,"5,539.00",CAPITAL PS (EDUCATION),CONSTRUCTION FEES - QUANTITY SURVEYOR,5902225768
02.12.2016,CHILDREN AND ADULT,KEEGANS LTD,"7,442.00",CAPITAL PS (EDUCATION),CONSTRUCTION FEES - QUANTITY SURVEYOR,5902225649
02.12.2016,CHILDREN AND ADULT,POTTER RAPER AND PARTNERS,792,CAPITAL PS (EDUCATION),CONSTRUCTION FEES  - EXTERNAL,5902225771
02.12.2016,CHILDREN AND ADULT,SELECT SURVEYS LTD,"1,850.00",CAPITAL PS (EDUCATION),CONSTRUCTION,5902225674
02.12.2016,CHILDREN'S SERVICES,REDACTED PERSONAL DATA,401.08,ADOPTION PLACEMENTS & INTER AGENCY,PAYMENTS TO CARERS,5902225787
02.12.2016,CHILDREN'S SERVICES,COMMUNITY SOUTHWARK,"40,000.00",CAMBRIDGE HOUSE,EXTERNAL AGENCIES AND BODIES,5902225858
02.12.2016,CHILDREN'S SERVICES,CATRIONA MACLAREN,"1,700.00",CENTRAL COSTS - SEN,LEGAL FEES & COURT COSTS,2102600602
02.12.2016,CHILDREN'S SERVICES,CITY & GUILDS,"1,534.50",DIRECT DELIVERY,MATERIALS,5902225865
02.12.2016,CHILDREN'S SERVICES,SILVER BIRCH CARE LTD,300,FURTHER EDUCATION SUPPORT,CLIENT TRANSPORT,5902225869
02.12.2016,CHILDREN'S SERVICES,TUKE SCHOOL,838.02,HOME 2 SCHOOL TRANSPORT - ESCORTS,AGENCY STAFF,5902225654
02.12.2016,CHILDREN'S SERVICES,IVYDALE PRIMARY SCHOOL,"7,500.00",INTERVENTION FUND,CONSULTANTS SERVICES,5902225924
02.12.2016,CHILDREN'S SERVICES,FLEET TUTORS,"7,987.50",LAC EDUCATION,EXTERNAL AGENCIES AND BODIES,5902225658
02.12.2016,CHILDREN'S SERVICES,ALISTAIR CANTOR,"1,160.00",LEGAL,LEGAL FEES & COURT COSTS,2102600526
02.12.2016,CHILDREN'S SERVICES,BARRY McALINDEN,670,LEGAL,LEGAL FEES & COURT COSTS,2102600592
02.12.2016,CHILDREN'S SERVICES,CARTER BROWN THE EXPERT SERVICE LTD,"2,600.00",LEGAL,LEGAL FEES & COURT COSTS,2102600543
02.12.2016,CHILDREN'S SERVICES,CATHERINE ATKINSON,"4,750.00",LEGAL,LEGAL FEES & COURT COSTS,2102600601
02.12.2016,CHILDREN'S SERVICES,DENNIS SHARPE,475,LEGAL,LEGAL FEES & COURT COSTS,2102600548
02.12.2016,CHILDREN'S SERVICES,DOROTHEA GARTLAND,360,LEGAL,LEGAL FEES & COURT COSTS,2102600607
02.12.2016,CHILDREN'S SERVICES,DOROTHEA GARTLAND,720,LEGAL,LEGAL FEES & COURT COSTS,2102600608
02.12.2016,CHILDREN'S SERVICES,DR NICOLA KEMP,"1,818.00",LEGAL,LEGAL FEES & COURT COSTS,2102600549
02.12.2016,CHILDREN'S SERVICES,FRANCIS WILKINSON,475,LEGAL,LEGAL FEES & COURT COSTS,2102600552
02.12.2016,CHILDREN'S SERVICES,JOHN LARKING VERBATIM REPORTERS,418.86,LEGAL,LEGAL FEES & COURT COSTS,2102600615
02.12.2016,CHILDREN'S SERVICES,REDACTED PERSONAL DATA,975,LEGAL,LEGAL FEES & COURT COSTS,2102600527
02.12.2016,CHILDREN'S SERVICES,SUMI RATNAM & CO LTD,432,LEGAL,LEGAL FEES & COURT COSTS,2102600584
02.12.2016,CHILDREN'S SERVICES,DOG KENNEL HILL PRIMARY SCHOOL,"14,112.00",MATERNITY COVER,SCHOOLS CAPITATION,5902225692
02.12.2016,CHILDREN'S SERVICES,SOUTH LONDON  MAUDSLEY NHS FOUNDATION TRUST,"10,785.33",PARENTING TEAM,EXTERNAL AGENCIES AND BODIES,5902225919
02.12.2016,CHILDREN'S SERVICES,SOUTH LONDON  MAUDSLEY NHS FOUNDATION TRUST,"10,796.59",PARENTING TEAM,EXTERNAL AGENCIES AND BODIES,5902225916
02.12.2016,CHILDREN'S SERVICES,NUNHEADS VOICE LTD,300,S & FAM SUPP - PRAC GRP B SET 17-19,HIRE OF ROOMS/HALLS,5902225643
02.12.2016,CHILDREN'S SERVICES,FLEET TUTORS,"2,440.00",SEN HOME TUITION,STATEMENTED FEES,5902225099
02.12.2016,CHILDREN'S SERVICES,PSYCHO DYNAMICS LIMITED,"1,960.00",SUMMERHOUSE - EX416 - 5015232,CONSULTANTS SERVICES,5902225696
02.12.2016,CHILDREN'S SERVICES,SINEAD JOYCE,"2,340.00",SUMMERHOUSE - EX416 - 5015232,CONSULTANTS SERVICES,5902225699
02.12.2016,CHILDREN'S SERVICES,SOUTH LONDON  MAUDSLEY NHS FOUNDATION TRUST,"17,994.51",TACKLING TROUBLED FAMILIES,EXTERNAL AGENCIES AND BODIES,5902225922
02.12.2016,CHILDREN'S SERVICES,THAMES WATER UTILITIES LTD,251.18,THOMAS CALTON CENTRE,WATER,5902225792
02.12.2016,COMMISSIONING & CENTRAL,CICELY HAYWARD,600,COMMISSIONING ESTABLISHMENT,LEGAL FEES & COURT COSTS,2102600606
02.12.2016,COMMUNITIES,CARL CAMPBELL DANCE COMPANY 7,350,TENANTS FUND,MARKETING & PUBLICITY SERVICES,5902225782
02.12.2016,COMMUNITIES,HUGHES HOUSE SOCIAL CLUB,"1,200.00",TENANTS FUND,GRANTS,5902224841
02.12.2016,COMMUNITIES,KENNINGTON PARK HOUSE CO-OP,"1,200.00",TENANTS FUND,GRANTS,5902225679
02.12.2016,CUSTOMER EXPERIENCE HGF,ABLE 2 OCCUPATIONAL THERAPY SERVICE,"1,420.00",BLUE BADGES,PROFESSIONAL FEES,5902225653
02.12.2016,CUSTOMER EXPERIENCE HGF,ACCESS INDEPENDENT LTD,481.72,BLUE BADGES,PROFESSIONAL FEES,5902225859
02.12.2016,CUSTOMER EXPERIENCE HGF,CHRISTOPHER BAKER,"1,600.00",HOMELESS & HOUSING OPTIONS MGT,LEGAL FEES & COURT COSTS,2102600546
02.12.2016,CUSTOMER EXPERIENCE HGF,CHRISTOPHER BAKER,"1,750.00",HOMELESS & HOUSING OPTIONS MGT,LEGAL FEES & COURT COSTS,2102600547
02.12.2016,CUSTOMER EXPERIENCE HGF,CHRISTOPHER BAKER,"1,750.00",HOMELESS & HOUSING OPTIONS MGT,LEGAL FEES & COURT COSTS,2102600604
02.12.2016,CUSTOMER EXPERIENCE HGF,CHRISTOPHER BAKER,"2,350.00",HOMELESS & HOUSING OPTIONS MGT,LEGAL FEES & COURT COSTS,2102600605
02.12.2016,CUSTOMER EXPERIENCE HGF,JONATHAN MANNING,"1,750.00",HOMELESS & HOUSING OPTIONS MGT,LEGAL FEES & COURT COSTS,2102600617
02.12.2016,CUSTOMER EXPERIENCE HGF,MALCOLM G SANKEY,420,HOMELESS & HOUSING OPTIONS MGT,LEGAL FEES & COURT COSTS,2102600621
02.12.2016,CUSTOMER EXPERIENCE HGF,MALCOLM G SANKEY,720,HOMELESS & HOUSING OPTIONS MGT,LEGAL FEES & COURT COSTS,2102600565
02.12.2016,ENVIRONMENT AND LEISURE,CJS PLANTS,400,CAPITAL PS (LEISURE),CONST'N MAIN CONTRACT - NON CERTIFICATED,5902225704
02.12.2016,ENVIRONMENT AND LEISURE,INDO LIGHTING LTD,"9,310.00",CAPITAL PS (LEISURE),CONSTR'N SUB CONTRACT - NON CERTIFICATED,5902225659
02.12.2016,ENVIRONMENT AND LEISURE,INDO LIGHTING LTD,"10,290.00",CAPITAL PS (LEISURE),CONSTR'N SUB CONTRACT - NON CERTIFICATED,5902225656
02.12.2016,ENVIRONMENT AND LEISURE,INDO LIGHTING LTD,"19,110.00",CAPITAL PS (LEISURE),CONSTR'N SUB CONTRACT - NON CERTIFICATED,5902225655
02.12.2016,ENVIRONMENT AND LEISURE,MORGANICO,740,CAPITAL PS (LEISURE),CONST'N MAIN CONTRACT - NON CERTIFICATED,5902225229
02.12.2016,ENVIRONMENT DIRECTORATE,LONDON COUNCILS,"29,920.00",ALG ACCOUNT,PROFESSIONAL FEES,5902225827
02.12.2016,ENVIRONMENT DIRECTORATE,KENT COUNTY COUNCIL - LASER,679.43,BUSINESS CORE,ELECTRICITY,5902225541
02.12.2016,ENVIRONMENT DIRECTORATE,LEX AUTOLEASE,439.27,CAR LEASING CTRL A/C,VEHICLE LEASING CHARGES,5902225804
02.12.2016,ENVIRONMENT DIRECTORATE,LEX AUTOLEASE,643.13,CAR LEASING CTRL A/C,VEHICLE LEASING CHARGES,5902225815
02.12.2016,ENVIRONMENT DIRECTORATE,LEX AUTOLEASE,652.02,CAR LEASING CTRL A/C,VEHICLE LEASING CHARGES,5902225813
02.12.2016,ENVIRONMENT DIRECTORATE,LONDON HIRE LIMITED,292,COMMERCIAL VEH CTRL A/C,HIRED VEHICLES,5902225896
02.12.2016,ENVIRONMENT DIRECTORATE,LONDON HIRE LIMITED,580,COMMERCIAL VEH CTRL A/C,HIRED VEHICLES,5902225901
02.12.2016,ENVIRONMENT DIRECTORATE,LONDON HIRE LIMITED,645,COMMERCIAL VEH CTRL A/C,HIRED VEHICLES,5902225887
02.12.2016,ENVIRONMENT DIRECTORATE,LONDON HIRE LIMITED,675,COMMERCIAL VEH CTRL A/C,HIRED VEHICLES,5902225882
02.12.2016,ENVIRONMENT DIRECTORATE,LONDON HIRE LIMITED,679,COMMERCIAL VEH CTRL A/C,HIRED VEHICLES,5902225890
02.12.2016,ENVIRONMENT DIRECTORATE,LONDON HIRE LIMITED,822,COMMERCIAL VEH CTRL A/C,HIRED VEHICLES,5902225903
02.12.2016,ENVIRONMENT DIRECTORATE,LONDON HIRE LIMITED,"1,068.51",COMMERCIAL VEH CTRL A/C,HIRED VEHICLES,5902225906
02.12.2016,ENVIRONMENT DIRECTORATE,LONDON HIRE LIMITED,"1,120.00",COMMERCIAL VEH CTRL A/C,HIRED VEHICLES,5902225878
02.12.2016,ENVIRONMENT DIRECTORATE,LONDON HIRE LIMITED,"1,600.00",COMMERCIAL VEH CTRL A/C,HIRED VEHICLES,5902225879
02.12.2016,ENVIRONMENT DIRECTORATE,LONDON HIRE LIMITED,"1,910.00",COMMERCIAL VEH CTRL A/C,HIRED VEHICLES,5902225877
02.12.2016,ENVIRONMENT DIRECTORATE,LONDON HIRE LIMITED,"4,296.70",COMMERCIAL VEH CTRL A/C,HIRED VEHICLES,5902225905
02.12.2016,ENVIRONMENT DIRECTORATE,LONDON HIRE LIMITED,"6,231.50",COMMERCIAL VEH CTRL A/C,HIRED VEHICLES,5902225874
02.12.2016,ENVIRONMENT DIRECTORATE,LONDON HIRE LIMITED,"19,608.50",COMMERCIAL VEH CTRL A/C,HIRED VEHICLES,5902225872
02.12.2016,ENVIRONMENT DIRECTORATE,LONDON HIRE LIMITED,"29,116.45",COMMERCIAL VEH CTRL A/C,HIRED VEHICLES,5902225871
02.12.2016,ENVIRONMENT DIRECTORATE,N & C BUILDING MATERIALS,"2,063.00",ENGINEERING CRAFTS,MATERIALS,5902225891
02.12.2016,ENVIRONMENT DIRECTORATE,SOUTHWARK NEWSPAPER LTD,288,STREET WORKS OVERHEADS,MARKETING & PUBLICITY SERVICES,5902225907
02.12.2016,ENVIRONMENT DIRECTORATE,SOUTHWARK NEWSPAPER LTD,300,STREET WORKS OVERHEADS,MARKETING & PUBLICITY SERVICES,5902225928
02.12.2016,ENVIRONMENT DIRECTORATE,SOUTHWARK NEWSPAPER LTD,324,STREET WORKS OVERHEADS,MARKETING & PUBLICITY SERVICES,5902225927
02.12.2016,EXTERNAL AFFAIRS,GORKANA GROUP LTD,"1,084.89",MEDIA,INFORMATION MANAGEMENT,5902225802
02.12.2016,F & C S EXCLUDING CORPORATE BUDGETS,ESTELLE DEHON,800,FINANCE DIRECTOR,LEGAL FEES & COURT COSTS,2102600550
02.12.2016,F & C S EXCLUDING CORPORATE BUDGETS,JENNIFER OSCROFT,455,FINANCE DIRECTOR,LEGAL FEES & COURT COSTS,2102600555
02.12.2016,F & C S EXCLUDING CORPORATE BUDGETS,MARK LOWE QC,"12,067.08",FINANCE DIRECTOR,LEGAL FEES & COURT COSTS,2102600567
02.12.2016,F & C S EXCLUDING CORPORATE BUDGETS,MATTHEW HUTCHINGS,"1,310.00",FINANCE DIRECTOR,LEGAL FEES & COURT COSTS,2102600573
02.12.2016,F & C S EXCLUDING CORPORATE BUDGETS,MATTHEW HUTCHINGS,"1,700.00",FINANCE DIRECTOR,LEGAL FEES & COURT COSTS,2102600572
02.12.2016,F & C S EXCLUDING CORPORATE BUDGETS,MATTHEW HUTCHINGS,"3,230.00",FINANCE DIRECTOR,LEGAL FEES & COURT COSTS,2102600568
02.12.2016,F & C S EXCLUDING CORPORATE BUDGETS,MATTHEW HUTCHINGS,"3,442.50",FINANCE DIRECTOR,LEGAL FEES & COURT COSTS,2102600570
02.12.2016,F & C S EXCLUDING CORPORATE BUDGETS,REDACTED PERSONAL DATA,"1,920.00",FINANCE DIRECTOR,LEGAL FEES & COURT COSTS,2102600603
02.12.2016,F & C S EXCLUDING CORPORATE BUDGETS,JENNIFER BRENTON,"1,800.00",FRAUD & INVESTIGATIONS,LEGAL FEES & COURT COSTS,2102600554
02.12.2016,HOUSING,OCO LIMITED,"481,554.77",PAYMENTS CONTROL ACCOUNT - OCO,MANUAL CREDITORS,5902225795
02.12.2016,HOUSING,EYRE & ELLISTON LTD,270,STORES,CREDITORS -GR/IR CLEARING ACCOUNT,5902225754
02.12.2016,HOUSING,EYRE & ELLISTON LTD,270,STORES,CREDITORS -GR/IR CLEARING ACCOUNT,5902225754
02.12.2016,HOUSING,EYRE & ELLISTON LTD,270,STORES,CREDITORS -GR/IR CLEARING ACCOUNT,5902225754
02.12.2016,HOUSING,EYRE & ELLISTON LTD,308.3,STORES,CREDITORS -GR/IR CLEARING ACCOUNT,5902225760
02.12.2016,HOUSING,EYRE & ELLISTON LTD,316,STORES,CREDITORS -GR/IR CLEARING ACCOUNT,5902225773
02.12.2016,HOUSING,EYRE & ELLISTON LTD,335,STORES,CREDITORS -GR/IR CLEARING ACCOUNT,5902225770
02.12.2016,HOUSING,EYRE & ELLISTON LTD,370,STORES,CREDITORS -GR/IR CLEARING ACCOUNT,5902225770
02.12.2016,HOUSING,EYRE & ELLISTON LTD,440,STORES,CREDITORS -GR/IR CLEARING ACCOUNT,5902225742
02.12.2016,HOUSING,EYRE & ELLISTON LTD,445.5,STORES,CREDITORS -GR/IR CLEARING ACCOUNT,5902225798
02.12.2016,HOUSING,EYRE & ELLISTON LTD,450,STORES,CREDITORS -GR/IR CLEARING ACCOUNT,5902225740
02.12.2016,HOUSING,EYRE & ELLISTON LTD,450,STORES,CREDITORS -GR/IR CLEARING ACCOUNT,5902225754
02.12.2016,HOUSING,EYRE & ELLISTON LTD,450,STORES,CREDITORS -GR/IR CLEARING ACCOUNT,5902225754
02.12.2016,HOUSING,EYRE & ELLISTON LTD,450,STORES,CREDITORS -GR/IR CLEARING ACCOUNT,5902225754
02.12.2016,HOUSING,EYRE & ELLISTON LTD,615,STORES,CREDITORS -GR/IR CLEARING ACCOUNT,5902225740
02.12.2016,HOUSING,EYRE & ELLISTON LTD,616.6,STORES,CREDITORS -GR/IR CLEARING ACCOUNT,5902225764
02.12.2016,HOUSING,EYRE & ELLISTON LTD,900,STORES,CREDITORS -GR/IR CLEARING ACCOUNT,5902225754
02.12.2016,HOUSING,EYRE & ELLISTON LTD,900,STORES,CREDITORS -GR/IR CLEARING ACCOUNT,5902225764
02.12.2016,HOUSING,EYRE & ELLISTON LTD,993.3,STORES,CREDITORS -GR/IR CLEARING ACCOUNT,5902225764
02.12.2016,HOUSING,FAYERS PLUMBING & BUILDING SUPPLIES,344,STORES,CREDITORS -GR/IR CLEARING ACCOUNT,5902225729
02.12.2016,HOUSING,FAYERS PLUMBING & BUILDING SUPPLIES,885,STORES,CREDITORS -GR/IR CLEARING ACCOUNT,5902225715
02.12.2016,HOUSING,SHARVATT WOOLWICH LTD,258.7,STORES,CREDITORS -GR/IR CLEARING ACCOUNT,5902225735
02.12.2016,HOUSING HRA,A & E ELKINS LTD,"10,754.76",CAPITAL PS (HRA),CONST'N MAIN CONTRACT - NON CERTIFICATED,2102600418
02.12.2016,HOUSING HRA,A & E ELKINS LTD,"369,573.10",CAPITAL PS (HRA),CONSTRUCTION MAIN CONTRACT -CERTIFICATED,2102600419
02.12.2016,HOUSING HRA,CALFORD SEADEN LLP,"3,961.96",CAPITAL PS (HRA),CONSTRUCTION FEES  - EXTERNAL,5902225788
02.12.2016,HOUSING HRA,CALFORD SEADEN LLP,"4,224.38",CAPITAL PS (HRA),CONSTRUCTION FEES  - EXTERNAL,5902225684
02.12.2016,HOUSING HRA,KEEPMOAT REGENERATION (APOLLO) LTD,"81,217.47",CAPITAL PS (HRA),CONSTRUCTION MAIN CONTRACT -CERTIFICATED,2102600416
02.12.2016,HOUSING HRA,KEEPMOAT REGENERATION (APOLLO) LTD,"105,284.82",CAPITAL PS (HRA),CONSTRUCTION MAIN CONTRACT -CERTIFICATED,2102600415
02.12.2016,HOUSING HRA,KEEPMOAT REGENERATION (APOLLO) LTD,"151,027.68",CAPITAL PS (HRA),CONSTRUCTION MAIN CONTRACT -CERTIFICATED,2102600414
02.12.2016,HOUSING HRA,LAKEHOUSE CONTRACTS LTD,"153,976.97",CAPITAL PS (HRA),CONSTRUCTION MAIN CONTRACT -CERTIFICATED,2102600417
02.12.2016,HOUSING HRA,CALFORD SEADEN (HEALTH & SAFETY) LTD,"1,850.00",CAPITAL PS (REGEN),CONSTRUCTION FEES,5902225774
02.12.2016,HOUSING HRA,CALFORD SEADEN (HEALTH & SAFETY) LTD,"1,850.00",CAPITAL PS (REGEN),CONSTRUCTION FEES,5902225774
02.12.2016,HOUSING HRA,CALFORD SEADEN (HEALTH & SAFETY) LTD,"1,850.00",CAPITAL PS (REGEN),CONSTRUCTION FEES,5902225774
02.12.2016,HOUSING HRA,CALFORD SEADEN (HEALTH & SAFETY) LTD,"2,825.00",CAPITAL PS (REGEN),CONSTRUCTION FEES,5902225774
02.12.2016,LEISURE DIRECTORATE,PINSENT MASONS LLP,353,ACCOMODATION,LEGAL FEES & COURT COSTS,2102600575
02.12.2016,LEISURE DIRECTORATE,PINSENT MASONS LLP,391.5,ACCOMODATION,LEGAL FEES & COURT COSTS,2102600574
02.12.2016,LEISURE DIRECTORATE,KENT COUNTY COUNCIL - LASER,322.96,CAMBERWELL LIBRARY,GAS,2102600351
02.12.2016,LEISURE DIRECTORATE,COMPLETE ECOLOGY LIMITED,"2,000.00",DULWICH AREA TEAM,GROUNDS MAINTENANCE,5902225842
02.12.2016,LEISURE DIRECTORATE,LANDMARK SERVICES,470,DULWICH AREA TEAM,OTHER R&M,5902225776
02.12.2016,LEISURE DIRECTORATE,WORDS & PICTURES LTD,400,DULWICH EVENTS,MARKETING & PUBLICITY SERVICES,5902225876
02.12.2016,LEISURE DIRECTORATE,KENT COUNTY COUNCIL - LASER,-700.62,DULWICH LIBRARY,GAS,2102600387
02.12.2016,LEISURE DIRECTORATE,KENT COUNTY COUNCIL - LASER,-487.66,DULWICH LIBRARY,GAS,2102600400
02.12.2016,LEISURE DIRECTORATE,KENT COUNTY COUNCIL - LASER,"1,087.68",HOMERSTALL ROAD SPORTS GROUND,ELECTRICITY,2102600353
02.12.2016,LEISURE DIRECTORATE,KENT COUNTY COUNCIL - LASER,-377.79,LIVESEY MUSEUM,GAS,2102600406
02.12.2016,LEISURE DIRECTORATE,KENT COUNTY COUNCIL - LASER,-321.92,LIVESEY MUSEUM,GAS,2102600405
02.12.2016,LEISURE DIRECTORATE,KENT COUNTY COUNCIL - LASER,-278.39,LIVESEY MUSEUM,GAS,2102600407
02.12.2016,LEISURE DIRECTORATE,KENT COUNTY COUNCIL - LASER,361.36,NUNHEAD LIBRARY,GAS,2102600354
02.12.2016,LEISURE DIRECTORATE,KENT COUNTY COUNCIL - LASER,"-1,459.81",PECKHAM LIBRARY,ELECTRICITY,2102600398
02.12.2016,LEISURE DIRECTORATE,KENT COUNTY COUNCIL - LASER,"-1,310.91",PECKHAM LIBRARY,GAS,2102600390
02.12.2016,LEISURE DIRECTORATE,KENT COUNTY COUNCIL - LASER,"-1,117.57",PECKHAM LIBRARY,ELECTRICITY,2102600396
02.12.2016,LEISURE DIRECTORATE,KENT COUNTY COUNCIL - LASER,-631.43,PECKHAM LIBRARY,GAS,2102600381
02.12.2016,LEISURE DIRECTORATE,KENT COUNTY COUNCIL - LASER,-365.04,PECKHAM LIBRARY,GAS,2102600391
02.12.2016,LEISURE DIRECTORATE,KENT COUNTY COUNCIL - LASER,-318.88,PECKHAM LIBRARY,GAS,2102600403
02.12.2016,LEISURE DIRECTORATE,KENT COUNTY COUNCIL - LASER,"2,050.36",PECKHAM LIBRARY,ELECTRICITY,2102600347
02.12.2016,LEISURE DIRECTORATE,EDF ENERGY PLC,509.43,SOUTHWARK AREA TEAM,ELECTRICITY,5902225700
02.12.2016,LEISURE DIRECTORATE,KENT COUNTY COUNCIL - LASER,-380.58,TEMPORARY NEWINGTON,GAS,2102600383
02.12.2016,LEISURE DIRECTORATE,KENT COUNTY COUNCIL - LASER,-302.51,TEMPORARY NEWINGTON,GAS,2102600394
02.12.2016,LEISURE DIRECTORATE,KENT COUNTY COUNCIL - LASER,492.01,TEMPORARY NEWINGTON,GAS,2102600366
02.12.2016,MODERNISATION HGF,KENT COUNTY COUNCIL - LASER,"35,158.47",160 TOOLEY ST.,ELECTRICITY,5902225937
02.12.2016,MODERNISATION HGF,MHMTS TRAINING LTD,617.5,ADULTS MULTI-AGENCY SAFEGUARDING TRNG,TRAINING,5902224596
02.12.2016,MODERNISATION HGF,SHARPE PRITCHARD LLP,364,CFM OPERATIONAL BUDGET,PROFESSIONAL FEES,5902225683
02.12.2016,MODERNISATION HGF,OPTIMUM TECHNOLOGY TRANSFER LTD,"1,150.00",CORP. TRAINING BUDGETS,TRAINING,5902225314
02.12.2016,MODERNISATION HGF,INTERSERVE (FACILITIES MANAGEMENT),"1,093.86",FM SERVICES BY INTERSERVE,BUILDING R&M,5902225930
02.12.2016,MODERNISATION HGF,NEWMANS CONSULTING LIMITED,475,OCCUPATIONAL ASSESSMENT,EQUIPMENT PURCHASE & REPAIR,5902225646
02.12.2016,MODERNISATION HGF,NEWMANS CONSULTING LIMITED,950,OCCUPATIONAL ASSESSMENT,EQUIPMENT PURCHASE & REPAIR,5902225648
02.12.2016,MODERNISATION HGF,EIRWEN JANE PIERROT,270,PLANNED MAINTENANCE,LEGAL FEES & COURT COSTS,2102600610
02.12.2016,MODERNISATION HGF,DAISY COMMUNICATIONS LTD,"10,862.78",TECHNOLOGY,DATA COMMUNICATIONS,5902225793
02.12.2016,PLANNING AND TRANSPORT,MATTHEW HUTCHINGS,"1,040.00",S106 & CIL ADMINISTRATION,LEGAL FEES & COURT COSTS,2102600569
02.12.2016,PLANNING AND TRANSPORT,MATTHEW HUTCHINGS,"1,410.00",S106 & CIL ADMINISTRATION,LEGAL FEES & COURT COSTS,2102600571
02.12.2016,REGENERATION,ARGUS SOFTWARE(UK) LTD,"1,002.00",PROPERTY TEAM,SOFTWARE,5902225745
02.12.2016,REGENERATION,BNP PARIBAS REAL ESTATE ADVISORY & PROPERTY MANAGEMENT,393.75,PROPERTY TEAM,PROFESSIONAL FEES,5902225737
02.12.2016,REGENERATION,BNP PARIBAS REAL ESTATE ADVISORY & PROPERTY MANAGEMENT,866.25,PROPERTY TEAM,PROFESSIONAL FEES,5902225727
02.12.2016,REGENERATION,BNP PARIBAS REAL ESTATE ADVISORY & PROPERTY MANAGEMENT,"1,443.75",PROPERTY TEAM,PROFESSIONAL FEES,5902225714
02.12.2016,REGENERATION,BNP PARIBAS REAL ESTATE ADVISORY & PROPERTY MANAGEMENT,"2,210.00",SOUTHWARK REGEN IN PARTNERSHIP PROGRAMME,PROFESSIONAL FEES,5902225755
02.12.2016,REGENERATION,CALFORD SEADEN (HEALTH & SAFETY) LTD,"1,850.00",SOUTHWARK REGEN IN PARTNERSHIP PROGRAMME,CONSULTANTS SERVICES,5902225774
02.12.2016,REGENERATION,CALFORD SEADEN (HEALTH & SAFETY) LTD,"1,850.00",SOUTHWARK REGEN IN PARTNERSHIP PROGRAMME,CONSULTANTS SERVICES,5902225774
02.12.2016,REGENERATION,CALFORD SEADEN (HEALTH & SAFETY) LTD,"2,825.00",SOUTHWARK REGEN IN PARTNERSHIP PROGRAMME,CONSULTANTS SERVICES,5902225774
02.12.2016,RESIDENT SERVICES,ANTHONY GOLD SOLICITORS,437.5,OPERATIONS/OFFICES ACCOMMODATION,LEGAL FEES & COURT COSTS,2102600591
02.12.2016,RESIDENT SERVICES,ANTHONY GOLD SOLICITORS,"2,500.00",OPERATIONS/OFFICES ACCOMMODATION,LEGAL FEES & COURT COSTS,2102600589
02.12.2016,RESIDENT SERVICES,ANTHONY GOLD SOLICITORS,"4,206.50",OPERATIONS/OFFICES ACCOMMODATION,LEGAL FEES & COURT COSTS,2102600590
02.12.2016,RESIDENT SERVICES,ANTHONY GOLD SOLICITORS,"8,000.00",OPERATIONS/OFFICES ACCOMMODATION,LEGAL FEES & COURT COSTS,2102600588
02.12.2016,RESIDENT SERVICES,ANTHONY GOLD SOLICITORS,"8,750.00",OPERATIONS/OFFICES ACCOMMODATION,LEGAL FEES & COURT COSTS,2102600586
02.12.2016,RESIDENT SERVICES,ANTHONY GOLD SOLICITORS,"9,000.00",OPERATIONS/OFFICES ACCOMMODATION,LEGAL FEES & COURT COSTS,2102600587
02.12.2016,RESIDENT SERVICES,BELSHAW & CURTIN SOLICITORS,"5,500.00",OPERATIONS/OFFICES ACCOMMODATION,LEGAL FEES & COURT COSTS,2102600593
02.12.2016,RESIDENT SERVICES,IVAN COFFEY ASSOCIATES LTD,615,OPERATIONS/OFFICES ACCOMMODATION,LEGAL FEES & COURT COSTS,2102600613
02.12.2016,RESIDENT SERVICES,JI SOLICITORS,"2,041.58",OPERATIONS/OFFICES ACCOMMODATION,LEGAL FEES & COURT COSTS,2102600614
02.12.2016,RESIDENT SERVICES,LISA CLARKE,290,OPERATIONS/OFFICES ACCOMMODATION,LEGAL FEES & COURT COSTS,2102600561
02.12.2016,RESIDENT SERVICES,LISA CLARKE,290,OPERATIONS/OFFICES ACCOMMODATION,LEGAL FEES & COURT COSTS,2102600563
02.12.2016,RESIDENT SERVICES,LISA CLARKE,672,OPERATIONS/OFFICES ACCOMMODATION,LEGAL FEES & COURT COSTS,2102600557
02.12.2016,RESIDENT SERVICES,MALCOLM G SANKEY,600,OPERATIONS/OFFICES ACCOMMODATION,LEGAL FEES & COURT COSTS,2102600564
02.12.2016,RESIDENT SERVICES,SHAW KELLY,271,OPERATIONS/OFFICES ACCOMMODATION,LEGAL FEES & COURT COSTS,2102600581
02.12.2016,RESIDENT SERVICES,SHAW KELLY,290,OPERATIONS/OFFICES ACCOMMODATION,LEGAL FEES & COURT COSTS,2102600578
02.12.2016,RESIDENT SERVICES,SHAW KELLY,315,OPERATIONS/OFFICES ACCOMMODATION,LEGAL FEES & COURT COSTS,2102600583
02.12.2016,RESIDENT SERVICES,SHAW KELLY,412,OPERATIONS/OFFICES ACCOMMODATION,LEGAL FEES & COURT COSTS,2102600582
02.12.2016,RESIDENT SERVICES,SHAW KELLY,800,OPERATIONS/OFFICES ACCOMMODATION,LEGAL FEES & COURT COSTS,2102600579
02.12.2016,RESIDENT SERVICES,SOUTHWARK LAW CENTRE,625,OPERATIONS/OFFICES ACCOMMODATION,LEGAL FEES & COURT COSTS,2102600622
02.12.2016,RESIDENT SERVICES,STEPHANIE SMITH,"1,250.00",OPERATIONS/OFFICES ACCOMMODATION,LEGAL FEES & COURT COSTS,2102600623
02.12.2016,RESIDENT SERVICES,LISA CLARKE,300,SPECIAL INVESTIGATIONS,LEGAL FEES & COURT COSTS,2102600562
02.12.2016,RESIDENT SERVICES,LISA CLARKE,618,SPECIAL INVESTIGATIONS,LEGAL FEES & COURT COSTS,2102600618
02.12.2016,RESIDENT SERVICES,EDF ENERGY PLC,836.86,TA HOSTELS,ELECTRICITY,5902225794
02.12.2016,RESIDENT SERVICES,REDACTED PERSONAL DATA,500,TA PLACEMENTS,LEGAL FEES & COURT COSTS,2102600624
02.12.2016,STRATEGIC FINANCING BUDGETS,JOHNSON AUSTIN PARTNERSHIP LLP,500,PROPERTY RELATED INSURANCE,PROFESSIONAL FEES,5902225779
02.12.2016,STRATEGIC FINANCING BUDGETS,SPA SCHOOL,"10,190.78",SCHOOLS RELATED INSURANCE,COMPENSATION,5902225895
03.12.2016,CENTRAL FUNCTIONS,EDGE TRAINING LTD,520,MULTI-AGENCY WORKING PILOT,TRAINING,5902224635
03.12.2016,CHILDREN'S SERVICES,YHA LONDON THAMESIDE,288.33,S & FAM SUPP - PRAC GRP B SET 17-19,SECTION 17 PAYMENTS TO AGENCIES/CARERS,5902225631
03.12.2016,CUSTOMER EXPERIENCE HGF,POSTURITE (UK) LTD,670.25,SYSTEMS,FURNITURE PURCHASE & REPAIR,5902225048
03.12.2016,ENVIRONMENT DIRECTORATE,SECURE-A-FIELD LTD,330.45,PROJECT SUPPORT,STATIONERY,5902225341
03.12.2016,MODERNISATION HGF,WEST ASSOCIATES,"1,500.00",OCCUPATIONAL ASSESSMENT,CONSULTANTS SERVICES,5902225873
03.12.2016,RESIDENT SERVICES,KENT COUNTY COUNCIL - LASER,"1,201.42",SPECIAL NEEDS HOSTELS,ELECTRICITY,5902225126
03.12.2016,STRATEGIC FINANCING BUDGETS,JOHNSON AUSTIN PARTNERSHIP LLP,310,PROPERTY RELATED INSURANCE,PROFESSIONAL FEES,5902225336
04.12.2016,ADULT SOCIAL CARE,CAPITA SECURE INFORMATION,"2,118.56",MH NORTH,EQUIPMENT PURCHASE & REPAIR,5902225394
04.12.2016,CENTRAL FUNCTIONS,CAPITA SECURE INFORMATION,"5,352.75",ASSET MANAGEMENT SYSTEM,SOFTWARE,5902225394
04.12.2016,CENTRAL FUNCTIONS,CAPITA SECURE INFORMATION,"3,267.00",BUSINESS APPLICATIONS,CONSULTANTS SERVICES,5902225394
04.12.2016,CENTRAL FUNCTIONS,CAPITA SECURE INFORMATION,"3,465.00",BUSINESS APPLICATIONS,CONSULTANTS SERVICES,5902225394
04.12.2016,CENTRAL FUNCTIONS,CAPITA SECURE INFORMATION,"13,125.00",BUSINESS APPLICATIONS,CONSULTANTS SERVICES,5902225394
04.12.2016,CENTRAL FUNCTIONS,CAPITA SECURE INFORMATION,"52,397.81",BUSINESS APPLICATIONS,SALARIES & WAGES (INCL LW),5902225394
04.12.2016,CENTRAL FUNCTIONS,CAPITA SECURE INFORMATION,473.5,HOME OWNERSHIP,HARDWARE,5902225394
04.12.2016,CENTRAL FUNCTIONS,CAPITA SECURE INFORMATION,"8,836.04",MOBILE WORKING,SOFTWARE,5902225394
04.12.2016,CENTRAL FUNCTIONS,CAPITA SECURE INFORMATION,"1,796.60",MSHO,DATA COMMUNICATIONS,5902225394
04.12.2016,CHILDREN'S SERVICES,CAPITA SECURE INFORMATION,468,BUILDING CURLEW,DATA COMMUNICATIONS,5902225394
04.12.2016,CHILDREN'S SERVICES,CAPITA SECURE INFORMATION,"2,652.00",BUILDING CURLEW,OTHER F&F,5902225394
04.12.2016,CHILDREN'S SERVICES,CORAL COMMUNITY ASSESSMENTS LTD,"2,800.00",FAMILY ASSESSMENTS,RESIDENTIAL CARE,5902225634
04.12.2016,CHILDREN'S SERVICES,LONDON BOROUGH OF BROMLEY,"1,192.80",HOME 2 SCHOOL TRANSPORT,RECOUPMENT,5902225781
04.12.2016,COMMUNITIES,ST HELENA & OLDFIELD TR&A,"1,200.00",TENANTS FUND,GRANTS,5902225789
04.12.2016,CUSTOMER EXPERIENCE HGF,CAPITA SECURE INFORMATION,"1,291.88",CHANGE REQUEST,COMMS & COMPUTING CONTRACT CHARGES,5902225394
04.12.2016,CUSTOMER EXPERIENCE HGF,CAPITA SECURE INFORMATION,578.92,HOMELESS & HOUSING OPTIONS MGT,REMOVAL EXPENSES,5902225394
04.12.2016,CUSTOMER EXPERIENCE HGF,CAPITA SECURE INFORMATION,"5,570.30",HOMELESS & HOUSING OPTIONS MGT,EQUIPMENT PURCHASE & REPAIR,5902225394
04.12.2016,CUSTOMER EXPERIENCE HGF,CAPITA SECURE INFORMATION,"2,193.75",SYSTEMS,TELEPHONES (LAND LINES),5902225394
04.12.2016,CUSTOMER EXPERIENCE HGF,CAPITA SECURE INFORMATION,"2,193.75",SYSTEMS,TELEPHONES (LAND LINES),5902225394
04.12.2016,ENVIRONMENT AND LEISURE,CAPITA SECURE INFORMATION,947.7,CAPITAL PS (LEISURE),CONSTRUCTION FEES  - EXTERNAL,5902225394
04.12.2016,ENVIRONMENT DIRECTORATE,GREENHAM TRADING LTD,677.35,ESTATE CLEANING-GENERAL,MATERIALS,5902225639
04.12.2016,EXTERNAL AFFAIRS,WHATEVER DESIGN LTD,"3,370.00",SOUTHWARK LIFE,MARKETING & PUBLICITY SERVICES,5902224855
04.12.2016,F & C S EXCLUDING CORPORATE BUDGETS,CAPITA SECURE INFORMATION,898.4,ADMINISTRATIVE SUPPORT,HARDWARE,5902225394
04.12.2016,F & C S EXCLUDING CORPORATE BUDGETS,CAPITA SECURE INFORMATION,"3,107.33",ADMINISTRATIVE SUPPORT,SOFTWARE,5902225394
04.12.2016,F & C S EXCLUDING CORPORATE BUDGETS,CAPITA SECURE INFORMATION,"3,930.76",ADMINISTRATIVE SUPPORT,HARDWARE,5902225394
04.12.2016,F & C S EXCLUDING CORPORATE BUDGETS,CAPITA SECURE INFORMATION,"14,711.00",ADMINISTRATIVE SUPPORT,HARDWARE,5902225394
04.12.2016,F & C S EXCLUDING CORPORATE BUDGETS,DSI BILLING SERVICES LTD,"2,069.46",ADMINISTRATIVE SUPPORT,POSTAGES,5902225399
04.12.2016,HOUSING GENERAL FUND,CAPITA SECURE INFORMATION,"17,431.74",CAPITAL PS (STRAT SERV),ICT ACQUISITION,5902225394
04.12.2016,HOUSING GENERAL FUND,CAPITA SECURE INFORMATION,"19,403.41",CAPITAL PS (STRAT SERV),ICT ACQUISITION,5902225394
04.12.2016,HOUSING GENERAL FUND,CAPITA SECURE INFORMATION,"33,160.73",CAPITAL PS (STRAT SERV),ICT ACQUISITION,5902225394
04.12.2016,HOUSING GENERAL FUND,CAPITA SECURE INFORMATION,"35,358.86",CAPITAL PS (STRAT SERV),ICT ACQUISITION,5902225394
04.12.2016,MODERNISATION HGF,CAPITA SECURE INFORMATION,"1,163.80",160 TOOLEY ST.,COMMS & COMPUTING CONTRACT CHARGES,5902225394
04.12.2016,MODERNISATION HGF,CAPITA SECURE INFORMATION,"1,620.94",160 TOOLEY ST.,COMMS & COMPUTING CONTRACT CHARGES,5902225394
04.12.2016,MODERNISATION HGF,CAPITA SECURE INFORMATION,"1,968.29",160 TOOLEY ST.,COMPUTER CONSUMABLES,5902225394
04.12.2016,MODERNISATION HGF,CAPITA SECURE INFORMATION,"2,106.00",160 TOOLEY ST.,BUILDING R&M,5902225394
04.12.2016,MODERNISATION HGF,CAPITA SECURE INFORMATION,"3,950.90",160 TOOLEY ST.,BUILDING R&M,5902225394
04.12.2016,MODERNISATION HGF,CAPITA SECURE INFORMATION,"1,500.00",TECHNOLOGY,COMMS & COMPUTING CONTRACT CHARGES,5902225394
04.12.2016,MODERNISATION HGF,CAPITA SECURE INFORMATION,"1,571.98",TECHNOLOGY,ELECTRICITY,5902225394
04.12.2016,MODERNISATION HGF,CAPITA SECURE INFORMATION,"3,136.09",TECHNOLOGY,COMMS & COMPUTING CONTRACT CHARGES,5902225394
04.12.2016,MODERNISATION HGF,CAPITA SECURE INFORMATION,"3,687.27",TECHNOLOGY,COMMS & COMPUTING CONTRACT CHARGES,5902225394
04.12.2016,MODERNISATION HGF,CAPITA SECURE INFORMATION,"4,802.86",TECHNOLOGY,ELECTRICITY,5902225394
04.12.2016,MODERNISATION HGF,CAPITA SECURE INFORMATION,"7,132.62",TECHNOLOGY,COMMS & COMPUTING CONTRACT CHARGES,5902225394
04.12.2016,MODERNISATION HGF,CAPITA SECURE INFORMATION,"14,960.39",TECHNOLOGY,COMMS & COMPUTING CONTRACT CHARGES,5902225394
04.12.2016,MODERNISATION HGF,CAPITA SECURE INFORMATION,"16,295.29",TECHNOLOGY,COMMS & COMPUTING CONTRACT CHARGES,5902225394
04.12.2016,MODERNISATION HGF,CAPITA SECURE INFORMATION,"18,724.72",TECHNOLOGY,POSTAGES,5902225394
04.12.2016,MODERNISATION HGF,CAPITA SECURE INFORMATION,"24,000.00",TECHNOLOGY,COMMS & COMPUTING CONTRACT CHARGES,5902225394
04.12.2016,MODERNISATION HGF,CAPITA SECURE INFORMATION,"32,530.55",TECHNOLOGY,COMMS & COMPUTING CONTRACT CHARGES,5902225394
04.12.2016,MODERNISATION HGF,CAPITA SECURE INFORMATION,"47,738.54",TECHNOLOGY,COMMS & COMPUTING CONTRACT CHARGES,5902225394
04.12.2016,RESIDENT SERVICES,CAPITA SECURE INFORMATION,578.92,SUSTAIN,REMOVAL EXPENSES,5902225394
04.12.2016,SOUTHWARK BUILDING SERVICES,CAPITA SECURE INFORMATION,272.7,REORGANISATION COSTS,HARDWARE,5902225394
05.12.2016,ADULT SOCIAL CARE,NESTOR PRIMECARE SERVICES LTD,371,LD LTS 18-64,HOMECARE - SPOT,2102600634
05.12.2016,ADULT SOCIAL CARE,NESTOR PRIMECARE SERVICES LTD,728.76,MEM LTS 18-64,HOMECARE - C&V,2102600640
05.12.2016,ADULT SOCIAL CARE,NESTOR PRIMECARE SERVICES LTD,709.22,MEM LTS 65+,HOMECARE - C&V,2102600641
05.12.2016,ADULT SOCIAL CARE,NESTOR PRIMECARE SERVICES LTD,914.48,PHY LTS 18-64,HOMECARE - SPOT,2102600649
05.12.2016,ADULT SOCIAL CARE,4SONS CARE ASSESSMENT LTD,405.05,SAFEGUARDING TEAM,OTHER CONTRACTORS,5902225866
05.12.2016,ADULT SOCIAL CARE,EASYLINK UK,798.6,SOUTHWARK RESOURCE CENTRE,EQUIPMENT PURCHASE & REPAIR,5902226134
05.12.2016,ADULT SOCIAL CARE,TUNSTALL HEALTHCARE (UK) LTD,"2,468.90",SOUTHWARK RESOURCE CENTRE,EQUIPMENT PURCHASE & REPAIR,5902226118
05.12.2016,ASSET MANAGEMENT,CALFORD SEADEN LLP,"8,288.00",DISREPAIR,BUILDING R&M,5902226110
05.12.2016,CHILDREN AND ADULT,CBS MAINTENANCE SERVICES LTD,"25,565.48",CAPITAL PS (EDUCATION),CONSTRUCTION MAIN CONTRACT,2102600821
05.12.2016,CHILDREN AND ADULT,FRANKHAM CONSULTANCY GROUP LTD,"2,508.06",CAPITAL PS (EDUCATION),CONSTRUCTION FEES  - EXTERNAL,5902225993
05.12.2016,CHILDREN AND ADULT,MORGAN SINDALL PLC,"8,115.88",CAPITAL PS (EDUCATION),CONST'N MAIN CONTRACT - NON CERTIFICATED,2102600812
05.12.2016,CHILDREN AND ADULT,MORGAN SINDALL PLC,"579,191.60",CAPITAL PS (EDUCATION),CONSTRUCTION MAIN CONTRACT -CERTIFICATED,2102600813
05.12.2016,CHILDREN'S SERVICES,HARRIS PRIMARY ACADEMY PECKHAM PARK,680,ACADEMIES SECONDARY,EXTERNAL AGENCIES AND BODIES,2102600776
05.12.2016,CHILDREN'S SERVICES,APPLE DISTRIBUTION INTERNATIONAL,828,AST,OP LEASE/HIRE CHARGES:PLANT/EQUIP/FURNIT,5902226155
05.12.2016,CHILDREN'S SERVICES,CENTER ACADEMY SCHOOL,"13,666.00",FE & SIXTH FORM COLLEGES,STATEMENTED FEES,2102600787
05.12.2016,CHILDREN'S SERVICES,ESLAND SOUTH LTD,"5,060.00",FE & SIXTH FORM COLLEGES,STATEMENTED FEES,2102600781
05.12.2016,CHILDREN'S SERVICES,FARLEIGH FEC - FROME PRIORY,"15,569.41",FE & SIXTH FORM COLLEGES,STATEMENTED FEES,2102600783
05.12.2016,CHILDREN'S SERVICES,FOREST HILL SCHOOL,"10,640.70",FE & SIXTH FORM COLLEGES,STATEMENTED FEES,2102600800
05.12.2016,CHILDREN'S SERVICES,LEARNING OPPORTUNITIES CENTRES,"1,368.00",FE & SIXTH FORM COLLEGES,STATEMENTED FEES,2102600780
05.12.2016,CHILDREN'S SERVICES,LVS HASSOCKS,"10,126.29",FE & SIXTH FORM COLLEGES,STATEMENTED FEES,2102600786
05.12.2016,CHILDREN'S SERVICES,PHOENIXPLACE,"2,880.00",FE & SIXTH FORM COLLEGES,STATEMENTED FEES,2102600785
05.12.2016,CHILDREN'S SERVICES,ROEHAMPTON LODGE PRIORY,"17,500.00",FE & SIXTH FORM COLLEGES,STATEMENTED FEES,2102600784
05.12.2016,CHILDREN'S SERVICES,THE BOSCO CENTRE,"65,810.80",FE & SIXTH FORM COLLEGES,STATEMENTED FEES,2102600801
05.12.2016,CHILDREN'S SERVICES,THE COMPLETE WORKS INDEPENDENT SCHOOL,"5,830.00",FE & SIXTH FORM COLLEGES,STATEMENTED FEES,2102600795
05.12.2016,CHILDREN'S SERVICES,BESSEMER GRANGE PRIMARY SCHOOL,"25,133.91",FORMULA ERRORS,SCHOOLS CAPITATION,5902226100
05.12.2016,CHILDREN'S SERVICES,INTERSERVE HEALTHCARE,534.5,HOME 2 SCHOOL TRANSPORT,AGENCY STAFF,5902225530
05.12.2016,CHILDREN'S SERVICES,RYE OAK PRIMARY SCHOOL,"4,000.00",INTERVENTION FUND,CONSULTANTS SERVICES,5902226089
05.12.2016,CHILDREN'S SERVICES,VIDEO CONFERENCING LONDON,384,LEGAL,LEGAL FEES & COURT COSTS,5902226156
05.12.2016,CHILDREN'S SERVICES,FOREST HILL SCHOOL,"9,328.60",OLA - EY AND PRIMARY,STATEMENTED FEES,2102600799
05.12.2016,CHILDREN'S SERVICES,CARE O LINE,706.5,S & FAM SUPP - PRAC GRP F SET 29-31,OTHER PAYMENTS FOR CLIENTS,5902225416
05.12.2016,CHILDREN'S SERVICES,CHERRY GARDEN SCHOOL,550,SEN HOME TUITION,EXTERNAL AGENCIES AND BODIES,2102600777
05.12.2016,CHILDREN'S SERVICES,CHERRY GARDEN SCHOOL,685,SEN HOME TUITION,EXTERNAL AGENCIES AND BODIES,2102600778
05.12.2016,CHILDREN'S SERVICES,CENTER ACADEMY SCHOOL,"7,990.00",SEN TRANSPORT,STATEMENTED FEES,2102600788
05.12.2016,CHILDREN'S SERVICES,LONDON STEINER SCHOOL,"5,679.18",SEN TRANSPORT,STATEMENTED FEES,2102600792
05.12.2016,CHILDREN'S SERVICES,LONDON STEINER SCHOOL,"9,657.33",SEN TRANSPORT,STATEMENTED FEES,2102600793
05.12.2016,CHILDREN'S SERVICES,RIVERSTON SCHOOL,"10,736.00",SEN TRANSPORT,STATEMENTED FEES,2102600789
05.12.2016,CHILDREN'S SERVICES,RIVERSTON SCHOOL,"10,736.00",SEN TRANSPORT,STATEMENTED FEES,2102600791
05.12.2016,CHILDREN'S SERVICES,RIVERSTON SCHOOL,"10,921.00",SEN TRANSPORT,STATEMENTED FEES,2102600790
05.12.2016,CHILDREN'S SERVICES,THE COMPLETE WORKS INDEPENDENT SCHOOL,"9,030.00",SEN TRANSPORT,STATEMENTED FEES,2102600794
05.12.2016,CORPORATE & DEMOCRATIC CORE,THE OLD VIC,"20,956.00",CORPORATE & DEPARTMENTAL EXP.,MISCELLANEOUS EXPENSES,5902226174
05.12.2016,CUSTOMER EXPERIENCE HGF,APPLE DISTRIBUTION INTERNATIONAL,"1,389.00",HOMELESS PROJECTS,DATA COMMUNICATIONS,5902226153
05.12.2016,CUSTOMER EXPERIENCE HGF,ACE FAST LETTINGS LTD,"1,605.00",NIGHTLY TA (NSC),EXTERNAL AGENCIES AND BODIES,5902226071
05.12.2016,CUSTOMER EXPERIENCE HGF,SOUTH OF THE RIVER INVESTMENTS LTD,"1,498.00",NIGHTLY TA (NSC),EXTERNAL AGENCIES AND BODIES,5902226069
05.12.2016,CUSTOMER EXPERIENCE HGF,SOUTH OF THE RIVER INVESTMENTS LTD,"86,480.90",NIGHTLY TA (NSC),EXTERNAL AGENCIES AND BODIES,5902226067
05.12.2016,CUSTOMER EXPERIENCE HGF,REDACTED PERSONAL DATA,"3,000.00",TEMP ACCOM - MNGMT,GRANTS,5902225995
05.12.2016,ENVIRONMENT AND LEISURE,CONWAY AECOM LTD,"5,600.16",CAPITAL PS (LEISURE),CONSTRUCTION,2102600824
05.12.2016,ENVIRONMENT AND LEISURE,CONWAY AECOM LTD,"7,855.57",CAPITAL PS (LEISURE),CONSTRUCTION,2102600823
05.12.2016,ENVIRONMENT AND LEISURE,CONWAY AECOM LTD,"11,567.13",CAPITAL PS (LEISURE),CONSTRUCTION,2102600827
05.12.2016,ENVIRONMENT AND LEISURE,CONWAY AECOM LTD,"13,265.31",CAPITAL PS (LEISURE),CONSTRUCTION,2102600826
05.12.2016,ENVIRONMENT AND LEISURE,CONWAY AECOM LTD,"21,795.77",CAPITAL PS (LEISURE),CONSTRUCTION,2102600825
05.12.2016,ENVIRONMENT DIRECTORATE,CLOSE BROTHERS VEHICLE HIRE LTD,268.4,COMMERCIAL VEH CTRL A/C,HIRED VEHICLES,5902225959
05.12.2016,ENVIRONMENT DIRECTORATE,CLOSE BROTHERS VEHICLE HIRE LTD,268.4,COMMERCIAL VEH CTRL A/C,HIRED VEHICLES,5902225961
05.12.2016,ENVIRONMENT DIRECTORATE,CLOSE BROTHERS VEHICLE HIRE LTD,286,COMMERCIAL VEH CTRL A/C,HIRED VEHICLES,5902225962
05.12.2016,ENVIRONMENT DIRECTORATE,CLOSE BROTHERS VEHICLE HIRE LTD,286,COMMERCIAL VEH CTRL A/C,HIRED VEHICLES,5902225963
05.12.2016,ENVIRONMENT DIRECTORATE,CLOSE BROTHERS VEHICLE HIRE LTD,367.34,COMMERCIAL VEH CTRL A/C,HIRED VEHICLES,5902225967
05.12.2016,ENVIRONMENT DIRECTORATE,CLOSE BROTHERS VEHICLE HIRE LTD,494.56,COMMERCIAL VEH CTRL A/C,HIRED VEHICLES,5902225965
05.12.2016,ENVIRONMENT DIRECTORATE,THE CAMDEN SOCIETY,510,EH & TS MANAGER,REFRESHMENTS FOR MEETINGS,5902226031
05.12.2016,ENVIRONMENT DIRECTORATE,THE T.P. PARTNERSHIP,400,ESTATES (CENTRAL),OTHER CONTRACTORS,5902226052
05.12.2016,ENVIRONMENT DIRECTORATE,CONWAY AECOM LTD,"3,585.28",FLOOD RISK MANAGEMENT,HIGHWAYS TERM CONTRACT,5902225964
05.12.2016,ENVIRONMENT DIRECTORATE,BELL BRUSH COMPANY,573.8,MANAGEMENT TEAM,MATERIALS,5902225629
05.12.2016,ENVIRONMENT DIRECTORATE,CROWN OIL UK,820.26,MANAGEMENT TEAM,VEHICLE FUEL,5902226046
05.12.2016,ENVIRONMENT DIRECTORATE,IMPERIAL POLYTHENE PRODUCTS LTD,"1,192.50",MANAGEMENT TEAM,MATERIALS,5902226019
05.12.2016,ENVIRONMENT DIRECTORATE,BOUNDARY ROW OPCO LTD,702,PARKING OVERHEADS,REFRESHMENTS FOR MEETINGS,5902226147
05.12.2016,ENVIRONMENT DIRECTORATE,BARRETTINE ENVIRONMENTAL HEALTH,"6,405.80",PEST CONTROL,MATERIALS,5902226034
05.12.2016,ENVIRONMENT DIRECTORATE,KILLGERM CHEMICALS LTD,618.16,PEST CONTROL,MATERIALS,5902226056
05.12.2016,ENVIRONMENT DIRECTORATE,SOUTHWARK NEWSPAPER LTD,276,STREET WORKS OVERHEADS,MARKETING & PUBLICITY SERVICES,5902226039
05.12.2016,ENVIRONMENT DIRECTORATE,SOUTHWARK NEWSPAPER LTD,288,STREET WORKS OVERHEADS,MARKETING & PUBLICITY SERVICES,5902226149
05.12.2016,ENVIRONMENT DIRECTORATE,SOUTHWARK NEWSPAPER LTD,300,STREET WORKS OVERHEADS,MARKETING & PUBLICITY SERVICES,5902226051
05.12.2016,ENVIRONMENT DIRECTORATE,SOUTHWARK NEWSPAPER LTD,300,STREET WORKS OVERHEADS,MARKETING & PUBLICITY SERVICES,5902226057
05.12.2016,ENVIRONMENT DIRECTORATE,SOUTHWARK NEWSPAPER LTD,312,STREET WORKS OVERHEADS,MARKETING & PUBLICITY SERVICES,5902226060
05.12.2016,ENVIRONMENT DIRECTORATE,SOUTHWARK NEWSPAPER LTD,324,STREET WORKS OVERHEADS,MARKETING & PUBLICITY SERVICES,5902226053
05.12.2016,ENVIRONMENT DIRECTORATE,SOUTHWARK NEWSPAPER LTD,336,STREET WORKS OVERHEADS,MARKETING & PUBLICITY SERVICES,5902226049
05.12.2016,ENVIRONMENT DIRECTORATE,VEOLIA ES SOUTHWARK LTD,"116,278.73",WASTE PFI,PFI/PPP PAYMENTS,5902226121
05.12.2016,F & C S EXCLUDING CORPORATE BUDGETS,SOUTHWARK CATHEDRAL ENTERPRISES LTD,"1,590.00",ADMINISTRATIVE SUPPORT,TRAINING,5902226016
05.12.2016,F & C S EXCLUDING CORPORATE BUDGETS,LYNNE THORN,300,INSURANCE ADMIN,PROFESSIONAL FEES,5902225875
05.12.2016,F & C S EXCLUDING CORPORATE BUDGETS,LYNNE THORN,"3,900.00",INSURANCE ADMIN,PROFESSIONAL FEES,5902225875
05.12.2016,F & C S EXCLUDING CORPORATE BUDGETS,CARE O LINE,-706.5,PAYMENTS CONTROL,OFFICE EXPENSES,2102601793
05.12.2016,F & C S EXCLUDING CORPORATE BUDGETS,THE SMITH INSTITUTE,"28,125.00",PROJECTS,CONSULTANTS SERVICES,5902226150
05.12.2016,HOUSING,SMITH & BYFORD LTD,"296,596.44",SMITH AND BYFORD,MANUAL CREDITORS,5902225960
05.12.2016,HOUSING,"BROWNING, JONES & MORRIS LTD",478,STORES,CREDITORS -GR/IR CLEARING ACCOUNT,5902226073
05.12.2016,HOUSING,"BROWNING, JONES & MORRIS LTD",576,STORES,CREDITORS -GR/IR CLEARING ACCOUNT,5902226068
05.12.2016,HOUSING,"BROWNING, JONES & MORRIS LTD",585,STORES,CREDITORS -GR/IR CLEARING ACCOUNT,5902226073
05.12.2016,HOUSING,"BROWNING, JONES & MORRIS LTD",639.4,STORES,CREDITORS -GR/IR CLEARING ACCOUNT,5902226070
05.12.2016,HOUSING,FAYERS PLUMBING & BUILDING SUPPLIES,301.6,STORES,CREDITORS -GR/IR CLEARING ACCOUNT,5902226044
05.12.2016,HOUSING,FAYERS PLUMBING & BUILDING SUPPLIES,310.8,STORES,CREDITORS -GR/IR CLEARING ACCOUNT,5902226044
05.12.2016,HOUSING,FAYERS PLUMBING & BUILDING SUPPLIES,448.8,STORES,CREDITORS -GR/IR CLEARING ACCOUNT,5902226044
05.12.2016,HOUSING,FAYERS PLUMBING & BUILDING SUPPLIES,524.88,STORES,CREDITORS -GR/IR CLEARING ACCOUNT,5902226041
05.12.2016,HOUSING,FAYERS PLUMBING & BUILDING SUPPLIES,933.12,STORES,CREDITORS -GR/IR CLEARING ACCOUNT,5902226044
05.12.2016,HOUSING,LAKEDALE POWER TOOLS,285,STORES,CREDITORS -GR/IR CLEARING ACCOUNT,5902226082
05.12.2016,HOUSING,LAKEDALE POWER TOOLS,576,STORES,CREDITORS -GR/IR CLEARING ACCOUNT,5902226082
05.12.2016,HOUSING,LAKEDALE POWER TOOLS,637.5,STORES,CREDITORS -GR/IR CLEARING ACCOUNT,5902226082
05.12.2016,HOUSING,LAKEDALE POWER TOOLS,960,STORES,CREDITORS -GR/IR CLEARING ACCOUNT,5902226082
05.12.2016,HOUSING,MARTIN VITERA LTD,424,STORES,CREDITORS -GR/IR CLEARING ACCOUNT,5902226086
05.12.2016,HOUSING,PPG ARCHITECTURAL COATINGS,252,STORES,CREDITORS -GR/IR CLEARING ACCOUNT,5902225973
05.12.2016,HOUSING GENERAL FUND,BATHROOM HEALTHCARE LTD,"9,655.00",CAPITAL PS (HOUSING GF),CAPITAL GRANTS,5902226103
05.12.2016,HOUSING GENERAL FUND,PJS BUILDING SERVICES,"1,350.00",CAPITAL PS (HOUSING GF),CAPITAL GRANTS,5902226138
05.12.2016,HOUSING GENERAL FUND,PJS BUILDING SERVICES,"15,557.98",CAPITAL PS (HOUSING GF),CAPITAL GRANTS,5902226138
05.12.2016,HOUSING HRA,CALFORD SEADEN (HEALTH & SAFETY) LTD,435.12,CAPITAL PS (HRA),CONSTRUCTION FEES,5902226047
05.12.2016,HOUSING HRA,CALFORD SEADEN LLP,"1,972.27",CAPITAL PS (HRA),CONSTRUCTION FEES  - EXTERNAL,5902226123
05.12.2016,HOUSING HRA,HERRINGTON CONSULTING LTD,"4,515.00",CAPITAL PS (HRA),CONSTRUCTION FEES  - EXTERNAL,5902225450
05.12.2016,HOUSING HRA,INVICTA BUILDING SERVICES LTD,"169,184.23",CAPITAL PS (HRA),CONSTRUCTION MAIN CONTRACT -CERTIFICATED,2102600818
05.12.2016,HOUSING HRA,KEEPMOAT REGENERATION (APOLLO) LTD,"54,826.82",CAPITAL PS (HRA),CONSTRUCTION MAIN CONTRACT -CERTIFICATED,2102600828
05.12.2016,HOUSING HRA,MORGAN SINDALL PLC,"533,713.00",CAPITAL PS (HRA),CONSTRUCTION MAIN CONTRACT -CERTIFICATED,2102600811
05.12.2016,HOUSING HRA,MORGAN SINDALL PLC,"578,165.00",CAPITAL PS (HRA),CONSTRUCTION MAIN CONTRACT -CERTIFICATED,2102600814
05.12.2016,HOUSING HRA,POTTER RAPER AND PARTNERS,"5,543.86",CAPITAL PS (HRA),CONSTRUCTION FEES,5902226101
05.12.2016,HOUSING HRA,STANDAGE & CO LTD,"99,387.84",CAPITAL PS (HRA),CONSTRUCTION MAIN CONTRACT -CERTIFICATED,2102600816
05.12.2016,HOUSING HRA,UK GUNITE LIMITED,"239,023.87",CAPITAL PS (HRA),CONSTRUCTION MAIN CONTRACT -CERTIFICATED,2102600817
05.12.2016,HOUSING HRA,VINCI CONSTRUCTION UK LTD,"197,785.71",CAPITAL PS (HRA),CONST'N MAIN CONTRACT - NON CERTIFICATED,2102600815
05.12.2016,HOUSING HRA,MLM CONSULTING ENGINEERS LTD,"1,900.00",CAPITAL PS (REGEN),CONSTRUCTION FEES,5902226080
05.12.2016,LEISURE DIRECTORATE,APPLE DISTRIBUTION INTERNATIONAL,"1,242.00",ADMINISTRATION,HARDWARE,5902226161
05.12.2016,LEISURE DIRECTORATE,QUADRON SERVICES LTD,"2,268.00",HOMERSTALL ROAD SPORTS GROUND,GROUNDS MAINTENANCE,5902226109
05.12.2016,LEISURE DIRECTORATE,CAPITA BUSINESS SERVICES LTD,"1,275.00",IT DEVELOPMENT,COMMS & COMPUTING CONTRACT CHARGES,5902225971
05.12.2016,MODERNISATION,BARWIN PROPERTY SERVICES LTD,"1,722.00",COMMERCIAL PROPERTIES,BUILDING R&M,2102600819
05.12.2016,MODERNISATION HGF,EAST DULWICH EST T&RA,410,FOSTER CARERS TRAINING,GRANTS,5902226125
05.12.2016,MODERNISATION HGF,APPLE DISTRIBUTION INTERNATIONAL,463,HR (CORPORATE),OTHER EMPLOYEE EXPENSES,5902226152
05.12.2016,MODERNISATION HGF,ROSEMARY POTTS,"1,075.00",OCCUPATIONAL ASSESSMENT,CONSULTANTS SERVICES,5902225640
05.12.2016,MODERNISATION HGF,VEOLIA ES (UK)LTD,"3,213.35",REFUSE - VEOLIA,BUILDING R&M,5902226085
05.12.2016,MODERNISATION HGF,BRITISH TELECOM,"24,681.30",TECHNOLOGY,DATA COMMUNICATIONS,5902226164
05.12.2016,PLANNING AND TRANSPORT,CANTIUM RESOURCING LTD,"6,900.00",BUILDING CONTROL,RECRUITMENT ADVERTISING,5902225198
05.12.2016,REGENERATION,ASTWOOD LTD,770,2 DOCKLEY RD INDUSTRIAL ESTATE,PROFESSIONAL FEES,5902226003
05.12.2016,REGENERATION,STANBURY & SWK BLDG SVCS LTD,"1,295.00",LBS SOJOURNER TRUTH COMMUNITY CENTRE,BUILDING R&M,2102600820
05.12.2016,REGENERATION,WYG ENGINEERING LTD,"3,248.00",PECKHAM/CAMBERWELL SITES-FEES/MPLAN,PROFESSIONAL FEES,5902225978
05.12.2016,RESIDENT SERVICES,CLARKE BARNES SOLICITORS LLP,"2,237.40",5 ESTATES,COMPENSATION,5902226157
05.12.2016,RESIDENT SERVICES,A & M ACCOMMODATION SERVICES LTD,"1,050.00",TA PLACEMENTS,RENTS,5902226072
05.12.2016,SOUTHWARK BUILDING SERVICES,GRAFTON MERCHANTING GB LTD,312.5,COMMUNAL GROUNDWORK TEAM,MATERIALS,5902226027
05.12.2016,SOUTHWARK BUILDING SERVICES,KINGDOM SECURITY LTD,513.52,DEPOT COSTS,SECURITY SERVICES,5902226094
05.12.2016,SOUTHWARK BUILDING SERVICES,ACCLAIM HANDLING PLC,346.66,STORES/LOGISTICS,OP LEASE/HIRE CHARGES:PLANT/EQUIP/FURNIT,5902225980
05.12.2016,STRATEGIC FINANCING BUDGETS,SOUTHWARK PARK PRIMARY SCHOOL,"1,781.99",SCHOOLS RELATED INSURANCE,COMPENSATION,5902226018
06.12.2016,ADULT SOCIAL CARE,DINARDO SUPPORTS LTD,"1,500.00",APPOINTEESHIPS,OTHER PAYMENTS FOR CLIENTS,2102601725
06.12.2016,ADULT SOCIAL CARE,LONDON CYRENIANS HOUSING LTD,560,APPOINTEESHIPS,OTHER PAYMENTS FOR CLIENTS,2102601721
06.12.2016,ADULT SOCIAL CARE,REDACTED PERSONAL DATA,500,APPOINTEESHIPS,OTHER PAYMENTS FOR CLIENTS,5902226286
06.12.2016,ADULT SOCIAL CARE,REDACTED PERSONAL DATA,"1,291.41",APPOINTEESHIPS,OTHER PAYMENTS FOR CLIENTS,2102601720
06.12.2016,ADULT SOCIAL CARE,GS LAUNDRIES,351,COMMUNITY LAUNDRY SERVICES,"CLOTHING, UNIFORMS & LAUNDRY",5902226335
06.12.2016,ADULT SOCIAL CARE,CARE DIRECT UK LTD,586.81,LD LTS 18-64,HOMECARE - SPOT,2102601232
06.12.2016,ADULT SOCIAL CARE,HEALTHCARE & TRANSPORT SERVICE,282,LD LTS 18-64,CLIENT TRANSPORT,2102601222
06.12.2016,ADULT SOCIAL CARE,HEALTHCARE & TRANSPORT SERVICE,376,LD LTS 18-64,CLIENT TRANSPORT,2102601201
06.12.2016,ADULT SOCIAL CARE,HEALTHCARE & TRANSPORT SERVICE,450,LD LTS 18-64,CLIENT TRANSPORT,2102601221
06.12.2016,ADULT SOCIAL CARE,HEALTHCARE & TRANSPORT SERVICE,450,LD LTS 18-64,CLIENT TRANSPORT,2102601228
06.12.2016,ADULT SOCIAL CARE,HEALTHCARE & TRANSPORT SERVICE,650,LD LTS 18-64,CLIENT TRANSPORT,2102601211
06.12.2016,ADULT SOCIAL CARE,HEALTHCARE & TRANSPORT SERVICE,650,LD LTS 18-64,CLIENT TRANSPORT,2102601230
06.12.2016,ADULT SOCIAL CARE,HEALTHCARE & TRANSPORT SERVICE,711,LD LTS 18-64,CLIENT TRANSPORT,2102601203
06.12.2016,ADULT SOCIAL CARE,HEALTHCARE & TRANSPORT SERVICE,711,LD LTS 18-64,CLIENT TRANSPORT,2102601213
06.12.2016,ADULT SOCIAL CARE,LAMBETH MENCAP,868.88,LD LTS 18-64,HOMECARE - SPOT,2102601220
06.12.2016,ADULT SOCIAL CARE,LAMBETH MENCAP,"1,321.28",LD LTS 18-64,HOMECARE - SPOT,2102601209
06.12.2016,ADULT SOCIAL CARE,LAMBETH MENCAP,"3,296.00",LD LTS 18-64,DAYCARE,2102601216
06.12.2016,ADULT SOCIAL CARE,LAMBETH MENCAP,"6,749.03",LD LTS 18-64,HOMECARE - SPOT,2102601226
06.12.2016,ADULT SOCIAL CARE,LAMBETH MENCAP,"6,812.88",LD LTS 18-64,HOMECARE - SPOT,2102601224
06.12.2016,ADULT SOCIAL CARE,REDACTED PERSONAL DATA,900,LD LTS 18-64,DISCRETIONARY FLEXIBLE FEES & INCOME,2102601555
06.12.2016,ADULT SOCIAL CARE,REDACTED PERSONAL DATA,"1,170.00",LD LTS 18-64,PAYMENTS TO CLIENTS (DIRECT PAYMENTS),2102601554
06.12.2016,ADULT SOCIAL CARE,LONDON CARE PLC,255.13,MEM LTS 18-64,HOMECARE - C&V,2102601052
06.12.2016,ADULT SOCIAL CARE,LONDON CARE PLC,724.24,MEM LTS 18-64,HOMECARE - C&V,2102600896
06.12.2016,ADULT SOCIAL CARE,CARE DIRECT UK LTD,424.93,MEM LTS 65+,HOMECARE - SPOT,2102601410
06.12.2016,ADULT SOCIAL CARE,HAVEN SOCIAL CARE LTD,259.7,MEM LTS 65+,HOMECARE - SPOT,2102601512
06.12.2016,ADULT SOCIAL CARE,HAVEN SOCIAL CARE LTD,259.7,MEM LTS 65+,HOMECARE - SPOT,2102601523
06.12.2016,ADULT SOCIAL CARE,HAVEN SOCIAL CARE LTD,259.7,MEM LTS 65+,HOMECARE - SPOT,2102601529
06.12.2016,ADULT SOCIAL CARE,HAVEN SOCIAL CARE LTD,259.7,MEM LTS 65+,HOMECARE - SPOT,2102601536
06.12.2016,ADULT SOCIAL CARE,HAVEN SOCIAL CARE LTD,519.37,MEM LTS 65+,HOMECARE - SPOT,2102601517
06.12.2016,ADULT SOCIAL CARE,HAVEN SOCIAL CARE LTD,519.37,MEM LTS 65+,HOMECARE - SPOT,2102601520
06.12.2016,ADULT SOCIAL CARE,HAVEN SOCIAL CARE LTD,519.37,MEM LTS 65+,HOMECARE - SPOT,2102601521
06.12.2016,ADULT SOCIAL CARE,HAVEN SOCIAL CARE LTD,519.37,MEM LTS 65+,HOMECARE - SPOT,2102601525
06.12.2016,ADULT SOCIAL CARE,LONDON CARE PLC,337.48,MEM LTS 65+,HOMECARE - C&V,2102601111
06.12.2016,ADULT SOCIAL CARE,LONDON CARE PLC,395.04,MEM LTS 65+,HOMECARE - C&V,2102601056
06.12.2016,ADULT SOCIAL CARE,LONDON CARE PLC,773.81,MEM LTS 65+,HOMECARE - C&V,2102601108
06.12.2016,ADULT SOCIAL CARE,LONDON CARE PLC,897.07,MEM LTS 65+,HOMECARE - C&V,2102601069
06.12.2016,ADULT SOCIAL CARE,LONDON CARE PLC,992.01,MEM LTS 65+,HOMECARE - C&V,2102601020
06.12.2016,ADULT SOCIAL CARE,LONDON CARE PLC,"1,086.36",MEM LTS 65+,HOMECARE - C&V,2102600984
06.12.2016,ADULT SOCIAL CARE,LONDON CARE PLC,"1,152.20",MEM LTS 65+,HOMECARE - C&V,2102601009
06.12.2016,ADULT SOCIAL CARE,LONDON CARE PLC,"1,844.08",MEM LTS 65+,HOMECARE - C&V,2102601001
06.12.2016,ADULT SOCIAL CARE,THAMES HOMECARE SERVICE LTD,431.68,MEM LTS 65+,HOMECARE - SPOT,2102597684
06.12.2016,ADULT SOCIAL CARE,THAMES HOMECARE SERVICE LTD,499.13,MEM LTS 65+,HOMECARE - SPOT,2102600461
06.12.2016,ADULT SOCIAL CARE,THAMES HOMECARE SERVICE LTD,505.88,MEM LTS 65+,HOMECARE - SPOT,2102597682
06.12.2016,ADULT SOCIAL CARE,THAMES HOMECARE SERVICE LTD,505.88,MEM LTS 65+,HOMECARE - SPOT,2102600459
06.12.2016,ADULT SOCIAL CARE,YOUTH GRACES (UK) LTD,256.42,MEM LTS 65+,HOMECARE - C&V,2102601266
06.12.2016,ADULT SOCIAL CARE,YOUTH GRACES (UK) LTD,660.59,MEM LTS 65+,HOMECARE - C&V,2102601423
06.12.2016,ADULT SOCIAL CARE,YOUTH GRACES (UK) LTD,711.6,MEM LTS 65+,HOMECARE - SPOT,2102601272
06.12.2016,ADULT SOCIAL CARE,HEXAGON HOUSING ASSOCIATION LTD,"1,290.00",MH LTS 18-64,HOMECARE - SPOT,2102601551
06.12.2016,ADULT SOCIAL CARE,REDACTED PERSONAL DATA,262.29,MH LTS 18-64,HOMECARE - SPOT,2102601547
06.12.2016,ADULT SOCIAL CARE,REDACTED PERSONAL DATA,348,MH LTS 18-64,HOMECARE - SPOT,2102601557
06.12.2016,ADULT SOCIAL CARE,REDACTED PERSONAL DATA,392,MH LTS 18-64,HOMECARE - SPOT,2102601548
06.12.2016,ADULT SOCIAL CARE,REDACTED PERSONAL DATA,617.14,MH LTS 18-64,HOMECARE - SPOT,2102601559
06.12.2016,ADULT SOCIAL CARE,REDACTED PERSONAL DATA,"1,153.89",MH LTS 18-64,HOMECARE - SPOT,2102601550
06.12.2016,ADULT SOCIAL CARE,THAMES HOMECARE SERVICE LTD,"1,038.73",MH LTS 18-64,HOMECARE - SPOT,2102597679
06.12.2016,ADULT SOCIAL CARE,LONDON CARE PLC,576.24,MH LTS 65+,HOMECARE - C&V,2102600870
06.12.2016,ADULT SOCIAL CARE,LONDON CARE PLC,658.52,MH LTS 65+,HOMECARE - C&V,2102601178
06.12.2016,ADULT SOCIAL CARE,LONDON CARE PLC,707.78,MH LTS 65+,HOMECARE - C&V,2102601147
06.12.2016,ADULT SOCIAL CARE,LONDON CARE PLC,872.52,MH LTS 65+,HOMECARE - C&V,2102601086
06.12.2016,ADULT SOCIAL CARE,LONDON CARE PLC,921.76,MH LTS 65+,HOMECARE - C&V,2102600977
06.12.2016,ADULT SOCIAL CARE,LONDON CARE PLC,987.76,MH LTS 65+,HOMECARE - C&V,2102601041
06.12.2016,ADULT SOCIAL CARE,THAMES HOMECARE SERVICE LTD,263.06,MH LTS 65+,HOMECARE - SPOT,2102597670
06.12.2016,ADULT SOCIAL CARE,THAMES HOMECARE SERVICE LTD,283.29,MH LTS 65+,HOMECARE - C&V,2102600448
06.12.2016,ADULT SOCIAL CARE,THAMES HOMECARE SERVICE LTD,330.51,MH LTS 65+,HOMECARE - C&V,2102597646
06.12.2016,ADULT SOCIAL CARE,THAMES HOMECARE SERVICE LTD,344,MH LTS 65+,HOMECARE - SPOT,2102597585
06.12.2016,ADULT SOCIAL CARE,THAMES HOMECARE SERVICE LTD,344,MH LTS 65+,HOMECARE - SPOT,2102597666
06.12.2016,ADULT SOCIAL CARE,THAMES HOMECARE SERVICE LTD,431.68,MH LTS 65+,HOMECARE - C&V,2102600443
06.12.2016,ADULT SOCIAL CARE,YOUTH GRACES (UK) LTD,263.16,MH LTS 65+,HOMECARE - SPOT,2102601426
06.12.2016,ADULT SOCIAL CARE,SECOM PLC,"2,374.96",MH NORTH,BUILDING R&M,5902226221
06.12.2016,ADULT SOCIAL CARE,CARE DIRECT UK LTD,451.92,PHY LTS 18-64,HOMECARE - C&V,2102601349
06.12.2016,ADULT SOCIAL CARE,CARE DIRECT UK LTD,573.33,PHY LTS 18-64,HOMECARE - SPOT,2102601417
06.12.2016,ADULT SOCIAL CARE,CARE DIRECT UK LTD,627.32,PHY LTS 18-64,HOMECARE - C&V,2102601335
06.12.2016,ADULT SOCIAL CARE,CARE DIRECT UK LTD,661.01,PHY LTS 18-64,HOMECARE - SPOT,2102601255
06.12.2016,ADULT SOCIAL CARE,CARE DIRECT UK LTD,731.78,PHY LTS 18-64,HOMECARE - SPOT,2102601247
06.12.2016,ADULT SOCIAL CARE,CARE DIRECT UK LTD,755.44,PHY LTS 18-64,HOMECARE - C&V,2102601418
06.12.2016,ADULT SOCIAL CARE,HAVEN SOCIAL CARE LTD,296.78,PHY LTS 18-64,HOMECARE - SPOT,2102601514
06.12.2016,ADULT SOCIAL CARE,HAVEN SOCIAL CARE LTD,296.78,PHY LTS 18-64,HOMECARE - SPOT,2102601527
06.12.2016,ADULT SOCIAL CARE,HAVEN SOCIAL CARE LTD,296.78,PHY LTS 18-64,HOMECARE - SPOT,2102601528
06.12.2016,ADULT SOCIAL CARE,HAVEN SOCIAL CARE LTD,296.78,PHY LTS 18-64,HOMECARE - SPOT,2102601534
06.12.2016,ADULT SOCIAL CARE,HAVEN SOCIAL CARE LTD,768.93,PHY LTS 18-64,HOMECARE - SPOT,2102601516
06.12.2016,ADULT SOCIAL CARE,HAVEN SOCIAL CARE LTD,768.93,PHY LTS 18-64,HOMECARE - SPOT,2102601519
06.12.2016,ADULT SOCIAL CARE,HAVEN SOCIAL CARE LTD,768.93,PHY LTS 18-64,HOMECARE - SPOT,2102601538
06.12.2016,ADULT SOCIAL CARE,HAVEN SOCIAL CARE LTD,768.93,PHY LTS 18-64,HOMECARE - SPOT,2102601542
06.12.2016,ADULT SOCIAL CARE,LONDON CARE PLC,312.8,PHY LTS 18-64,HOMECARE - C&V,2102601165
06.12.2016,ADULT SOCIAL CARE,LONDON CARE PLC,321.02,PHY LTS 18-64,HOMECARE - C&V,2102600992
06.12.2016,ADULT SOCIAL CARE,LONDON CARE PLC,337.44,PHY LTS 18-64,HOMECARE - C&V,2102600906
06.12.2016,ADULT SOCIAL CARE,LONDON CARE PLC,345.76,PHY LTS 18-64,HOMECARE - C&V,2102600930
06.12.2016,ADULT SOCIAL CARE,LONDON CARE PLC,362.12,PHY LTS 18-64,HOMECARE - C&V,2102601176
06.12.2016,ADULT SOCIAL CARE,LONDON CARE PLC,362.2,PHY LTS 18-64,HOMECARE - C&V,2102601137
06.12.2016,ADULT SOCIAL CARE,LONDON CARE PLC,395.04,PHY LTS 18-64,HOMECARE - C&V,2102600942
06.12.2016,ADULT SOCIAL CARE,LONDON CARE PLC,411.5,PHY LTS 18-64,HOMECARE - C&V,2102601080
06.12.2016,ADULT SOCIAL CARE,LONDON CARE PLC,411.64,PHY LTS 18-64,HOMECARE - C&V,2102600921
06.12.2016,ADULT SOCIAL CARE,LONDON CARE PLC,411.64,PHY LTS 18-64,HOMECARE - C&V,2102601050
06.12.2016,ADULT SOCIAL CARE,LONDON CARE PLC,427.96,PHY LTS 18-64,HOMECARE - C&V,2102600937
06.12.2016,ADULT SOCIAL CARE,LONDON CARE PLC,427.96,PHY LTS 18-64,HOMECARE - C&V,2102600958
06.12.2016,ADULT SOCIAL CARE,LONDON CARE PLC,461,PHY LTS 18-64,HOMECARE - C&V,2102601120
06.12.2016,ADULT SOCIAL CARE,LONDON CARE PLC,477.4,PHY LTS 18-64,HOMECARE - C&V,2102601010
06.12.2016,ADULT SOCIAL CARE,LONDON CARE PLC,502.09,PHY LTS 18-64,HOMECARE - C&V,2102600919
06.12.2016,ADULT SOCIAL CARE,LONDON CARE PLC,510.36,PHY LTS 18-64,HOMECARE - SPOT,2102601135
06.12.2016,ADULT SOCIAL CARE,LONDON CARE PLC,510.4,PHY LTS 18-64,HOMECARE - C&V,2102600915
06.12.2016,ADULT SOCIAL CARE,LONDON CARE PLC,518.49,PHY LTS 18-64,HOMECARE - C&V,2102600952
06.12.2016,ADULT SOCIAL CARE,LONDON CARE PLC,526.72,PHY LTS 18-64,HOMECARE - C&V,2102601107
06.12.2016,ADULT SOCIAL CARE,LONDON CARE PLC,534.95,PHY LTS 18-64,HOMECARE - C&V,2102601119
06.12.2016,ADULT SOCIAL CARE,LONDON CARE PLC,535.08,PHY LTS 18-64,HOMECARE - C&V,2102601076
06.12.2016,ADULT SOCIAL CARE,LONDON CARE PLC,543.18,PHY LTS 18-64,HOMECARE - C&V,2102601112
06.12.2016,ADULT SOCIAL CARE,LONDON CARE PLC,543.2,PHY LTS 18-64,HOMECARE - C&V,2102600987
06.12.2016,ADULT SOCIAL CARE,LONDON CARE PLC,592.56,PHY LTS 18-64,HOMECARE - C&V,2102600875
06.12.2016,ADULT SOCIAL CARE,LONDON CARE PLC,592.56,PHY LTS 18-64,HOMECARE - C&V,2102601128
06.12.2016,ADULT SOCIAL CARE,LONDON CARE PLC,642.08,PHY LTS 18-64,HOMECARE - C&V,2102601017
06.12.2016,ADULT SOCIAL CARE,LONDON CARE PLC,691.32,PHY LTS 18-64,HOMECARE - C&V,2102600904
06.12.2016,ADULT SOCIAL CARE,LONDON CARE PLC,691.6,PHY LTS 18-64,HOMECARE - C&V,2102601164
06.12.2016,ADULT SOCIAL CARE,LONDON CARE PLC,707.92,PHY LTS 18-64,HOMECARE - C&V,2102600874
06.12.2016,ADULT SOCIAL CARE,LONDON CARE PLC,724.24,PHY LTS 18-64,HOMECARE - C&V,2102600920
06.12.2016,ADULT SOCIAL CARE,LONDON CARE PLC,757.16,PHY LTS 18-64,HOMECARE - C&V,2102601143
06.12.2016,ADULT SOCIAL CARE,LONDON CARE PLC,757.44,PHY LTS 18-64,HOMECARE - C&V,2102600929
06.12.2016,ADULT SOCIAL CARE,LONDON CARE PLC,781.96,PHY LTS 18-64,HOMECARE - C&V,2102600999
06.12.2016,ADULT SOCIAL CARE,LONDON CARE PLC,798.58,PHY LTS 18-64,HOMECARE - C&V,2102601195
06.12.2016,ADULT SOCIAL CARE,LONDON CARE PLC,827.25,PHY LTS 18-64,HOMECARE - C&V,2102601021
06.12.2016,ADULT SOCIAL CARE,LONDON CARE PLC,843.85,PHY LTS 18-64,HOMECARE - C&V,2102600975
06.12.2016,ADULT SOCIAL CARE,LONDON CARE PLC,909.49,PHY LTS 18-64,HOMECARE - C&V,2102600927
06.12.2016,ADULT SOCIAL CARE,LONDON CARE PLC,938.36,PHY LTS 18-64,HOMECARE - C&V,2102600970
06.12.2016,ADULT SOCIAL CARE,LONDON CARE PLC,"1,033.84",PHY LTS 18-64,HOMECARE - C&V,2102601029
06.12.2016,ADULT SOCIAL CARE,LONDON CARE PLC,"1,283.88",PHY LTS 18-64,HOMECARE - C&V,2102601166
06.12.2016,ADULT SOCIAL CARE,LONDON CARE PLC,"1,320.92",PHY LTS 18-64,HOMECARE - C&V,2102600989
06.12.2016,ADULT SOCIAL CARE,LONDON CARE PLC,"1,563.84",PHY LTS 18-64,HOMECARE - C&V,2102600946
06.12.2016,ADULT SOCIAL CARE,LONDON CARE PLC,"2,276.15",PHY LTS 18-64,HOMECARE - C&V,2102601046
06.12.2016,ADULT SOCIAL CARE,LONDON CARE PLC,"2,889.17",PHY LTS 18-64,HOMECARE - C&V,2102601114
06.12.2016,ADULT SOCIAL CARE,LONDON CARE PLC,"3,226.72",PHY LTS 18-64,HOMECARE - C&V,2102601100
06.12.2016,ADULT SOCIAL CARE,PEOPLE PLUS,477.18,PHY LTS 18-64,PAYMENTS TO CLIENTS (DIRECT PAYMENTS),2102601553
06.12.2016,ADULT SOCIAL CARE,PEOPLE PLUS,"1,983.24",PHY LTS 18-64,PAYMENTS TO CLIENTS (DIRECT PAYMENTS),2102601549
06.12.2016,ADULT SOCIAL CARE,THAMES HOMECARE SERVICE LTD,256.31,PHY LTS 18-64,HOMECARE - SPOT,2102597621
06.12.2016,ADULT SOCIAL CARE,THAMES HOMECARE SERVICE LTD,310.27,PHY LTS 18-64,HOMECARE - SPOT,2102597660
06.12.2016,ADULT SOCIAL CARE,THAMES HOMECARE SERVICE LTD,310.27,PHY LTS 18-64,HOMECARE - SPOT,2102597673
06.12.2016,ADULT SOCIAL CARE,THAMES HOMECARE SERVICE LTD,330.51,PHY LTS 18-64,HOMECARE - C&V,2102597677
06.12.2016,ADULT SOCIAL CARE,THAMES HOMECARE SERVICE LTD,337.25,PHY LTS 18-64,HOMECARE - C&V,2102600502
06.12.2016,ADULT SOCIAL CARE,THAMES HOMECARE SERVICE LTD,350.74,PHY LTS 18-64,HOMECARE - SPOT,2102597640
06.12.2016,ADULT SOCIAL CARE,THAMES HOMECARE SERVICE LTD,350.74,PHY LTS 18-64,HOMECARE - SPOT,2102597647
06.12.2016,ADULT SOCIAL CARE,THAMES HOMECARE SERVICE LTD,364.23,PHY LTS 18-64,HOMECARE - SPOT,2102600498
06.12.2016,ADULT SOCIAL CARE,THAMES HOMECARE SERVICE LTD,424.94,PHY LTS 18-64,HOMECARE - SPOT,2102597644
06.12.2016,ADULT SOCIAL CARE,THAMES HOMECARE SERVICE LTD,445.17,PHY LTS 18-64,HOMECARE - SPOT,2102600430
06.12.2016,ADULT SOCIAL CARE,THAMES HOMECARE SERVICE LTD,472.15,PHY LTS 18-64,HOMECARE - SPOT,2102597591
06.12.2016,ADULT SOCIAL CARE,THAMES HOMECARE SERVICE LTD,472.15,PHY LTS 18-64,HOMECARE - SPOT,2102597599
06.12.2016,ADULT SOCIAL CARE,THAMES HOMECARE SERVICE LTD,472.15,PHY LTS 18-64,HOMECARE - SPOT,2102597651
06.12.2016,ADULT SOCIAL CARE,THAMES HOMECARE SERVICE LTD,472.15,PHY LTS 18-64,HOMECARE - SPOT,2102600447
06.12.2016,ADULT SOCIAL CARE,THAMES HOMECARE SERVICE LTD,573.33,PHY LTS 18-64,HOMECARE - SPOT,2102600504
06.12.2016,ADULT SOCIAL CARE,THAMES HOMECARE SERVICE LTD,640.78,PHY LTS 18-64,HOMECARE - SPOT,2102597629
06.12.2016,ADULT SOCIAL CARE,THAMES HOMECARE SERVICE LTD,984.77,PHY LTS 18-64,HOMECARE - SPOT,2102597657
06.12.2016,ADULT SOCIAL CARE,THAMES HOMECARE SERVICE LTD,998.26,PHY LTS 18-64,HOMECARE - SPOT,2102600645
06.12.2016,ADULT SOCIAL CARE,THAMES HOMECARE SERVICE LTD,998.26,PHY LTS 18-64,HOMECARE - SPOT,2102600652
06.12.2016,ADULT SOCIAL CARE,THAMES HOMECARE SERVICE LTD,"1,029.29",PHY LTS 18-64,HOMECARE - SPOT,2102597634
06.12.2016,ADULT SOCIAL CARE,THAMES HOMECARE SERVICE LTD,"1,045.48",PHY LTS 18-64,HOMECARE - SPOT,2102600466
06.12.2016,ADULT SOCIAL CARE,THAMES HOMECARE SERVICE LTD,"1,065.71",PHY LTS 18-64,HOMECARE - SPOT,2102600515
06.12.2016,ADULT SOCIAL CARE,THAMES HOMECARE SERVICE LTD,"1,106.18",PHY LTS 18-64,HOMECARE - C&V,2102597648
06.12.2016,ADULT SOCIAL CARE,THAMES HOMECARE SERVICE LTD,"1,133.16",PHY LTS 18-64,HOMECARE - SPOT,2102600480
06.12.2016,ADULT SOCIAL CARE,THAMES HOMECARE SERVICE LTD,"1,254.57",PHY LTS 18-64,HOMECARE - SPOT,2102597583
06.12.2016,ADULT SOCIAL CARE,THAMES HOMECARE SERVICE LTD,"1,322.02",PHY LTS 18-64,HOMECARE - SPOT,2102600507
06.12.2016,ADULT SOCIAL CARE,THAMES HOMECARE SERVICE LTD,"1,429.94",PHY LTS 18-64,HOMECARE - SPOT,2102597573
06.12.2016,ADULT SOCIAL CARE,YOUTH GRACES (UK) LTD,256.35,PHY LTS 18-64,HOMECARE - SPOT,2102601453
06.12.2016,ADULT SOCIAL CARE,YOUTH GRACES (UK) LTD,344.06,PHY LTS 18-64,HOMECARE - C&V,2102601461
06.12.2016,ADULT SOCIAL CARE,YOUTH GRACES (UK) LTD,404.72,PHY LTS 18-64,HOMECARE - C&V,2102601422
06.12.2016,ADULT SOCIAL CARE,YOUTH GRACES (UK) LTD,969.57,PHY LTS 18-64,HOMECARE - SPOT,2102601263
06.12.2016,ADULT SOCIAL CARE,CARE DIRECT UK LTD,256.29,PHY LTS 65+,HOMECARE - SPOT,2102601325
06.12.2016,ADULT SOCIAL CARE,CARE DIRECT UK LTD,256.34,PHY LTS 65+,HOMECARE - C&V,2102601413
06.12.2016,ADULT SOCIAL CARE,CARE DIRECT UK LTD,263.01,PHY LTS 65+,HOMECARE - SPOT,2102601324
06.12.2016,ADULT SOCIAL CARE,CARE DIRECT UK LTD,266.42,PHY LTS 65+,HOMECARE - SPOT,2102601390
06.12.2016,ADULT SOCIAL CARE,CARE DIRECT UK LTD,283.29,PHY LTS 65+,HOMECARE - SPOT,2102601337
06.12.2016,ADULT SOCIAL CARE,CARE DIRECT UK LTD,289.29,PHY LTS 65+,HOMECARE - SPOT,2102601356
06.12.2016,ADULT SOCIAL CARE,CARE DIRECT UK LTD,335.32,PHY LTS 65+,HOMECARE - SPOT,2102601365
06.12.2016,ADULT SOCIAL CARE,CARE DIRECT UK LTD,377.72,PHY LTS 65+,HOMECARE - SPOT,2102601379
06.12.2016,ADULT SOCIAL CARE,CARE DIRECT UK LTD,391.21,PHY LTS 65+,HOMECARE - SPOT,2102601311
06.12.2016,ADULT SOCIAL CARE,CARE DIRECT UK LTD,394.58,PHY LTS 65+,HOMECARE - C&V,2102601352
06.12.2016,ADULT SOCIAL CARE,CARE DIRECT UK LTD,397.96,PHY LTS 65+,HOMECARE - SPOT,2102601334
06.12.2016,ADULT SOCIAL CARE,CARE DIRECT UK LTD,421.56,PHY LTS 65+,HOMECARE - SPOT,2102601256
06.12.2016,ADULT SOCIAL CARE,CARE DIRECT UK LTD,445.17,PHY LTS 65+,HOMECARE - SPOT,2102601235
06.12.2016,ADULT SOCIAL CARE,CARE DIRECT UK LTD,519.33,PHY LTS 65+,HOMECARE - SPOT,2102601332
06.12.2016,ADULT SOCIAL CARE,CARE DIRECT UK LTD,519.4,PHY LTS 65+,HOMECARE - SPOT,2102601357
06.12.2016,ADULT SOCIAL CARE,CARE DIRECT UK LTD,546.34,PHY LTS 65+,HOMECARE - SPOT,2102601350
06.12.2016,ADULT SOCIAL CARE,CARE DIRECT UK LTD,580.07,PHY LTS 65+,HOMECARE - SPOT,2102601339
06.12.2016,ADULT SOCIAL CARE,CARE DIRECT UK LTD,607.05,PHY LTS 65+,HOMECARE - SPOT,2102601382
06.12.2016,ADULT SOCIAL CARE,CARE DIRECT UK LTD,708.26,PHY LTS 65+,HOMECARE - SPOT,2102601401
06.12.2016,ADULT SOCIAL CARE,CARE DIRECT UK LTD,735.24,PHY LTS 65+,HOMECARE - SPOT,2102601321
06.12.2016,ADULT SOCIAL CARE,LONDON CARE PLC,279.82,PHY LTS 65+,HOMECARE - C&V,2102601168
06.12.2016,ADULT SOCIAL CARE,LONDON CARE PLC,279.84,PHY LTS 65+,HOMECARE - C&V,2102601155
06.12.2016,ADULT SOCIAL CARE,LONDON CARE PLC,288.05,PHY LTS 65+,HOMECARE - C&V,2102600865
06.12.2016,ADULT SOCIAL CARE,LONDON CARE PLC,292.85,PHY LTS 65+,HOMECARE - C&V,2102600912
06.12.2016,ADULT SOCIAL CARE,LONDON CARE PLC,296.28,PHY LTS 65+,HOMECARE - C&V,2102601160
06.12.2016,ADULT SOCIAL CARE,LONDON CARE PLC,304.51,PHY LTS 65+,HOMECARE - C&V,2102600902
06.12.2016,ADULT SOCIAL CARE,LONDON CARE PLC,316.92,PHY LTS 65+,HOMECARE - C&V,2102601146
06.12.2016,ADULT SOCIAL CARE,LONDON CARE PLC,321.01,PHY LTS 65+,HOMECARE - C&V,2102601138
06.12.2016,ADULT SOCIAL CARE,LONDON CARE PLC,321.1,PHY LTS 65+,HOMECARE - C&V,2102601082
06.12.2016,ADULT SOCIAL CARE,LONDON CARE PLC,329.2,PHY LTS 65+,HOMECARE - C&V,2102600881
06.12.2016,ADULT SOCIAL CARE,LONDON CARE PLC,329.2,PHY LTS 65+,HOMECARE - C&V,2102601058
06.12.2016,ADULT SOCIAL CARE,LONDON CARE PLC,329.2,PHY LTS 65+,HOMECARE - C&V,2102601173
06.12.2016,ADULT SOCIAL CARE,LONDON CARE PLC,333.45,PHY LTS 65+,HOMECARE - C&V,2102601040
06.12.2016,ADULT SOCIAL CARE,LONDON CARE PLC,333.45,PHY LTS 65+,HOMECARE - C&V,2102601126
06.12.2016,ADULT SOCIAL CARE,LONDON CARE PLC,345.68,PHY LTS 65+,HOMECARE - C&V,2102601094
06.12.2016,ADULT SOCIAL CARE,LONDON CARE PLC,345.8,PHY LTS 65+,HOMECARE - C&V,2102600879
06.12.2016,ADULT SOCIAL CARE,LONDON CARE PLC,345.8,PHY LTS 65+,HOMECARE - C&V,2102600945
06.12.2016,ADULT SOCIAL CARE,LONDON CARE PLC,345.8,PHY LTS 65+,HOMECARE - C&V,2102600949
06.12.2016,ADULT SOCIAL CARE,LONDON CARE PLC,345.8,PHY LTS 65+,HOMECARE - C&V,2102600993
06.12.2016,ADULT SOCIAL CARE,LONDON CARE PLC,345.8,PHY LTS 65+,HOMECARE - C&V,2102601074
06.12.2016,ADULT SOCIAL CARE,LONDON CARE PLC,345.8,PHY LTS 65+,HOMECARE - C&V,2102601153
06.12.2016,ADULT SOCIAL CARE,LONDON CARE PLC,362.12,PHY LTS 65+,HOMECARE - C&V,2102601002
06.12.2016,ADULT SOCIAL CARE,LONDON CARE PLC,362.24,PHY LTS 65+,HOMECARE - C&V,2102600926
06.12.2016,ADULT SOCIAL CARE,LONDON CARE PLC,378.64,PHY LTS 65+,HOMECARE - C&V,2102601183
06.12.2016,ADULT SOCIAL CARE,LONDON CARE PLC,382.8,PHY LTS 65+,HOMECARE - C&V,2102600931
06.12.2016,ADULT SOCIAL CARE,LONDON CARE PLC,386.81,PHY LTS 65+,HOMECARE - C&V,2102601157
06.12.2016,ADULT SOCIAL CARE,LONDON CARE PLC,395.04,PHY LTS 65+,HOMECARE - C&V,2102601185
06.12.2016,ADULT SOCIAL CARE,LONDON CARE PLC,399.29,PHY LTS 65+,HOMECARE - C&V,2102601193
06.12.2016,ADULT SOCIAL CARE,LONDON CARE PLC,411.6,PHY LTS 65+,HOMECARE - C&V,2102600883
06.12.2016,ADULT SOCIAL CARE,LONDON CARE PLC,415.72,PHY LTS 65+,HOMECARE - C&V,2102600901
06.12.2016,ADULT SOCIAL CARE,LONDON CARE PLC,427.96,PHY LTS 65+,HOMECARE - C&V,2102600955
06.12.2016,ADULT SOCIAL CARE,LONDON CARE PLC,427.96,PHY LTS 65+,HOMECARE - C&V,2102601096
06.12.2016,ADULT SOCIAL CARE,LONDON CARE PLC,428.12,PHY LTS 65+,HOMECARE - C&V,2102601142
06.12.2016,ADULT SOCIAL CARE,LONDON CARE PLC,444.42,PHY LTS 65+,HOMECARE - C&V,2102600986
06.12.2016,ADULT SOCIAL CARE,LONDON CARE PLC,444.42,PHY LTS 65+,HOMECARE - C&V,2102601199
06.12.2016,ADULT SOCIAL CARE,LONDON CARE PLC,444.44,PHY LTS 65+,HOMECARE - C&V,2102601024
06.12.2016,ADULT SOCIAL CARE,LONDON CARE PLC,444.54,PHY LTS 65+,HOMECARE - C&V,2102601075
06.12.2016,ADULT SOCIAL CARE,LONDON CARE PLC,456.88,PHY LTS 65+,HOMECARE - C&V,2102601103
06.12.2016,ADULT SOCIAL CARE,LONDON CARE PLC,460.88,PHY LTS 65+,HOMECARE - C&V,2102600882
06.12.2016,ADULT SOCIAL CARE,LONDON CARE PLC,460.88,PHY LTS 65+,HOMECARE - C&V,2102600935
06.12.2016,ADULT SOCIAL CARE,LONDON CARE PLC,460.88,PHY LTS 65+,HOMECARE - C&V,2102600985
06.12.2016,ADULT SOCIAL CARE,LONDON CARE PLC,460.88,PHY LTS 65+,HOMECARE - C&V,2102601095
06.12.2016,ADULT SOCIAL CARE,LONDON CARE PLC,477.34,PHY LTS 65+,HOMECARE - C&V,2102600963
06.12.2016,ADULT SOCIAL CARE,LONDON CARE PLC,477.34,PHY LTS 65+,HOMECARE - C&V,2102600978
06.12.2016,ADULT SOCIAL CARE,LONDON CARE PLC,477.46,PHY LTS 65+,HOMECARE - C&V,2102600925
06.12.2016,ADULT SOCIAL CARE,LONDON CARE PLC,477.48,PHY LTS 65+,HOMECARE - C&V,2102601047
06.12.2016,ADULT SOCIAL CARE,LONDON CARE PLC,493.8,PHY LTS 65+,HOMECARE - C&V,2102600872
06.12.2016,ADULT SOCIAL CARE,LONDON CARE PLC,498.01,PHY LTS 65+,HOMECARE - C&V,2102600940
06.12.2016,ADULT SOCIAL CARE,LONDON CARE PLC,502.03,PHY LTS 65+,HOMECARE - C&V,2102600934
06.12.2016,ADULT SOCIAL CARE,LONDON CARE PLC,506.21,PHY LTS 65+,HOMECARE - C&V,2102600867
06.12.2016,ADULT SOCIAL CARE,LONDON CARE PLC,518.49,PHY LTS 65+,HOMECARE - C&V,2102600922
06.12.2016,ADULT SOCIAL CARE,LONDON CARE PLC,526.72,PHY LTS 65+,HOMECARE - C&V,2102600884
06.12.2016,ADULT SOCIAL CARE,LONDON CARE PLC,526.72,PHY LTS 65+,HOMECARE - C&V,2102600960
06.12.2016,ADULT SOCIAL CARE,LONDON CARE PLC,526.82,PHY LTS 65+,HOMECARE - C&V,2102600991
06.12.2016,ADULT SOCIAL CARE,LONDON CARE PLC,526.84,PHY LTS 65+,HOMECARE - C&V,2102601152
06.12.2016,ADULT SOCIAL CARE,LONDON CARE PLC,543.31,PHY LTS 65+,HOMECARE - C&V,2102601036
06.12.2016,ADULT SOCIAL CARE,LONDON CARE PLC,543.32,PHY LTS 65+,HOMECARE - C&V,2102600880
06.12.2016,ADULT SOCIAL CARE,LONDON CARE PLC,547.43,PHY LTS 65+,HOMECARE - C&V,2102600878
06.12.2016,ADULT SOCIAL CARE,LONDON CARE PLC,551.47,PHY LTS 65+,HOMECARE - C&V,2102601123
06.12.2016,ADULT SOCIAL CARE,LONDON CARE PLC,559.64,PHY LTS 65+,HOMECARE - C&V,2102601064
06.12.2016,ADULT SOCIAL CARE,LONDON CARE PLC,559.78,PHY LTS 65+,HOMECARE - C&V,2102601118
06.12.2016,ADULT SOCIAL CARE,LONDON CARE PLC,563.88,PHY LTS 65+,HOMECARE - C&V,2102601187
06.12.2016,ADULT SOCIAL CARE,LONDON CARE PLC,568.01,PHY LTS 65+,HOMECARE - C&V,2102601066
06.12.2016,ADULT SOCIAL CARE,LONDON CARE PLC,576.24,PHY LTS 65+,HOMECARE - C&V,2102600885
06.12.2016,ADULT SOCIAL CARE,LONDON CARE PLC,576.24,PHY LTS 65+,HOMECARE - C&V,2102601037
06.12.2016,ADULT SOCIAL CARE,LONDON CARE PLC,576.24,PHY LTS 65+,HOMECARE - C&V,2102601098
06.12.2016,ADULT SOCIAL CARE,LONDON CARE PLC,576.24,PHY LTS 65+,HOMECARE - C&V,2102601105
06.12.2016,ADULT SOCIAL CARE,LONDON CARE PLC,576.24,PHY LTS 65+,HOMECARE - C&V,2102601113
06.12.2016,ADULT SOCIAL CARE,LONDON CARE PLC,576.24,PHY LTS 65+,HOMECARE - C&V,2102601115
06.12.2016,ADULT SOCIAL CARE,LONDON CARE PLC,584.33,PHY LTS 65+,HOMECARE - C&V,2102601122
06.12.2016,ADULT SOCIAL CARE,LONDON CARE PLC,592.56,PHY LTS 65+,HOMECARE - C&V,2102600903
06.12.2016,ADULT SOCIAL CARE,LONDON CARE PLC,592.56,PHY LTS 65+,HOMECARE - C&V,2102601015
06.12.2016,ADULT SOCIAL CARE,LONDON CARE PLC,609.02,PHY LTS 65+,HOMECARE - C&V,2102601006
06.12.2016,ADULT SOCIAL CARE,LONDON CARE PLC,617.25,PHY LTS 65+,HOMECARE - C&V,2102601154
06.12.2016,ADULT SOCIAL CARE,LONDON CARE PLC,625.48,PHY LTS 65+,HOMECARE - C&V,2102601014
06.12.2016,ADULT SOCIAL CARE,LONDON CARE PLC,625.48,PHY LTS 65+,HOMECARE - C&V,2102601127
06.12.2016,ADULT SOCIAL CARE,LONDON CARE PLC,642.08,PHY LTS 65+,HOMECARE - C&V,2102600866
06.12.2016,ADULT SOCIAL CARE,LONDON CARE PLC,650.19,PHY LTS 65+,HOMECARE - C&V,2102601104
06.12.2016,ADULT SOCIAL CARE,LONDON CARE PLC,658.4,PHY LTS 65+,HOMECARE - C&V,2102601170
06.12.2016,ADULT SOCIAL CARE,LONDON CARE PLC,666.75,PHY LTS 65+,HOMECARE - C&V,2102601159
06.12.2016,ADULT SOCIAL CARE,LONDON CARE PLC,683.09,PHY LTS 65+,HOMECARE - C&V,2102601109
06.12.2016,ADULT SOCIAL CARE,LONDON CARE PLC,691.32,PHY LTS 65+,HOMECARE - C&V,2102601148
06.12.2016,ADULT SOCIAL CARE,LONDON CARE PLC,691.48,PHY LTS 65+,HOMECARE - C&V,2102601062
06.12.2016,ADULT SOCIAL CARE,LONDON CARE PLC,699.68,PHY LTS 65+,HOMECARE - C&V,2102601000
06.12.2016,ADULT SOCIAL CARE,LONDON CARE PLC,703.69,PHY LTS 65+,HOMECARE - C&V,2102600996
06.12.2016,ADULT SOCIAL CARE,LONDON CARE PLC,711.97,PHY LTS 65+,HOMECARE - C&V,2102601124
06.12.2016,ADULT SOCIAL CARE,LONDON CARE PLC,728.47,PHY LTS 65+,HOMECARE - C&V,2102601055
06.12.2016,ADULT SOCIAL CARE,LONDON CARE PLC,740.7,PHY LTS 65+,HOMECARE - C&V,2102601049
06.12.2016,ADULT SOCIAL CARE,LONDON CARE PLC,740.8,PHY LTS 65+,HOMECARE - C&V,2102600938
06.12.2016,ADULT SOCIAL CARE,LONDON CARE PLC,741,PHY LTS 65+,HOMECARE - C&V,2102600997
06.12.2016,ADULT SOCIAL CARE,LONDON CARE PLC,749.07,PHY LTS 65+,HOMECARE - C&V,2102600959
06.12.2016,ADULT SOCIAL CARE,LONDON CARE PLC,757.16,PHY LTS 65+,HOMECARE - C&V,2102600905
06.12.2016,ADULT SOCIAL CARE,LONDON CARE PLC,757.16,PHY LTS 65+,HOMECARE - C&V,2102601172
06.12.2016,ADULT SOCIAL CARE,LONDON CARE PLC,757.44,PHY LTS 65+,HOMECARE - C&V,2102601180
06.12.2016,ADULT SOCIAL CARE,LONDON CARE PLC,765.39,PHY LTS 65+,HOMECARE - C&V,2102601026
06.12.2016,ADULT SOCIAL CARE,LONDON CARE PLC,765.48,PHY LTS 65+,HOMECARE - C&V,2102601077
06.12.2016,ADULT SOCIAL CARE,LONDON CARE PLC,765.53,PHY LTS 65+,HOMECARE - C&V,2102601197
06.12.2016,ADULT SOCIAL CARE,LONDON CARE PLC,773.76,PHY LTS 65+,HOMECARE - C&V,2102601162
06.12.2016,ADULT SOCIAL CARE,LONDON CARE PLC,790.08,PHY LTS 65+,HOMECARE - C&V,2102600953
06.12.2016,ADULT SOCIAL CARE,LONDON CARE PLC,790.08,PHY LTS 65+,HOMECARE - C&V,2102601088
06.12.2016,ADULT SOCIAL CARE,LONDON CARE PLC,794.33,PHY LTS 65+,HOMECARE - C&V,2102600876
06.12.2016,ADULT SOCIAL CARE,LONDON CARE PLC,794.33,PHY LTS 65+,HOMECARE - C&V,2102601129
06.12.2016,ADULT SOCIAL CARE,LONDON CARE PLC,798.44,PHY LTS 65+,HOMECARE - C&V,2102600873
06.12.2016,ADULT SOCIAL CARE,LONDON CARE PLC,806.68,PHY LTS 65+,HOMECARE - C&V,2102601070
06.12.2016,ADULT SOCIAL CARE,LONDON CARE PLC,814.93,PHY LTS 65+,HOMECARE - C&V,2102601033
06.12.2016,ADULT SOCIAL CARE,LONDON CARE PLC,823,PHY LTS 65+,HOMECARE - C&V,2102600891
06.12.2016,ADULT SOCIAL CARE,LONDON CARE PLC,831.36,PHY LTS 65+,HOMECARE - C&V,2102601084
06.12.2016,ADULT SOCIAL CARE,LONDON CARE PLC,839.54,PHY LTS 65+,HOMECARE - C&V,2102600954
06.12.2016,ADULT SOCIAL CARE,LONDON CARE PLC,839.68,PHY LTS 65+,HOMECARE - C&V,2102601011
06.12.2016,ADULT SOCIAL CARE,LONDON CARE PLC,843.73,PHY LTS 65+,HOMECARE - C&V,2102601016
06.12.2016,ADULT SOCIAL CARE,LONDON CARE PLC,856.08,PHY LTS 65+,HOMECARE - C&V,2102600900
06.12.2016,ADULT SOCIAL CARE,LONDON CARE PLC,856.08,PHY LTS 65+,HOMECARE - C&V,2102601092
06.12.2016,ADULT SOCIAL CARE,LONDON CARE PLC,888.84,PHY LTS 65+,HOMECARE - C&V,2102600871
06.12.2016,ADULT SOCIAL CARE,LONDON CARE PLC,888.84,PHY LTS 65+,HOMECARE - C&V,2102600933
06.12.2016,ADULT SOCIAL CARE,LONDON CARE PLC,888.88,PHY LTS 65+,HOMECARE - C&V,2102600966
06.12.2016,ADULT SOCIAL CARE,LONDON CARE PLC,893.09,PHY LTS 65+,HOMECARE - C&V,2102601060
06.12.2016,ADULT SOCIAL CARE,LONDON CARE PLC,905.44,PHY LTS 65+,HOMECARE - C&V,2102601078
06.12.2016,ADULT SOCIAL CARE,LONDON CARE PLC,909.69,PHY LTS 65+,HOMECARE - C&V,2102600973
06.12.2016,ADULT SOCIAL CARE,LONDON CARE PLC,913.53,PHY LTS 65+,HOMECARE - C&V,2102600917
06.12.2016,ADULT SOCIAL CARE,LONDON CARE PLC,921.76,PHY LTS 65+,HOMECARE - C&V,2102600961
06.12.2016,ADULT SOCIAL CARE,LONDON CARE PLC,921.76,PHY LTS 65+,HOMECARE - C&V,2102601125
06.12.2016,ADULT SOCIAL CARE,LONDON CARE PLC,922.04,PHY LTS 65+,HOMECARE - C&V,2102600979
06.12.2016,ADULT SOCIAL CARE,LONDON CARE PLC,926.01,PHY LTS 65+,HOMECARE - C&V,2102601079
06.12.2016,ADULT SOCIAL CARE,LONDON CARE PLC,930.03,PHY LTS 65+,HOMECARE - C&V,2102600957
06.12.2016,ADULT SOCIAL CARE,LONDON CARE PLC,930.13,PHY LTS 65+,HOMECARE - C&V,2102601189
06.12.2016,ADULT SOCIAL CARE,LONDON CARE PLC,938.36,PHY LTS 65+,HOMECARE - C&V,2102601145
06.12.2016,ADULT SOCIAL CARE,LONDON CARE PLC,954.82,PHY LTS 65+,HOMECARE - C&V,2102600918
06.12.2016,ADULT SOCIAL CARE,LONDON CARE PLC,958.91,PHY LTS 65+,HOMECARE - C&V,2102601130
06.12.2016,ADULT SOCIAL CARE,LONDON CARE PLC,971.14,PHY LTS 65+,HOMECARE - C&V,2102600899
06.12.2016,ADULT SOCIAL CARE,LONDON CARE PLC,971.36,PHY LTS 65+,HOMECARE - C&V,2102601008
06.12.2016,ADULT SOCIAL CARE,LONDON CARE PLC,979.38,PHY LTS 65+,HOMECARE - C&V,2102601067
06.12.2016,ADULT SOCIAL CARE,LONDON CARE PLC,987.6,PHY LTS 65+,HOMECARE - C&V,2102601004
06.12.2016,ADULT SOCIAL CARE,LONDON CARE PLC,"1,020.52",PHY LTS 65+,HOMECARE - C&V,2102601061
06.12.2016,ADULT SOCIAL CARE,LONDON CARE PLC,"1,020.52",PHY LTS 65+,HOMECARE - C&V,2102601073
06.12.2016,ADULT SOCIAL CARE,LONDON CARE PLC,"1,028.75",PHY LTS 65+,HOMECARE - C&V,2102600909
06.12.2016,ADULT SOCIAL CARE,LONDON CARE PLC,"1,036.98",PHY LTS 65+,HOMECARE - C&V,2102600887
06.12.2016,ADULT SOCIAL CARE,LONDON CARE PLC,"1,037.11",PHY LTS 65+,HOMECARE - C&V,2102600869
06.12.2016,ADULT SOCIAL CARE,LONDON CARE PLC,"1,045.34",PHY LTS 65+,HOMECARE - C&V,2102601136
06.12.2016,ADULT SOCIAL CARE,LONDON CARE PLC,"1,086.36",PHY LTS 65+,HOMECARE - C&V,2102601023
06.12.2016,ADULT SOCIAL CARE,LONDON CARE PLC,"1,094.73",PHY LTS 65+,HOMECARE - C&V,2102601057
06.12.2016,ADULT SOCIAL CARE,LONDON CARE PLC,"1,102.96",PHY LTS 65+,HOMECARE - C&V,2102601053
06.12.2016,ADULT SOCIAL CARE,LONDON CARE PLC,"1,119.28",PHY LTS 65+,HOMECARE - C&V,2102600965
06.12.2016,ADULT SOCIAL CARE,LONDON CARE PLC,"1,127.51",PHY LTS 65+,HOMECARE - C&V,2102601097
06.12.2016,ADULT SOCIAL CARE,LONDON CARE PLC,"1,143.97",PHY LTS 65+,HOMECARE - C&V,2102601032
06.12.2016,ADULT SOCIAL CARE,LONDON CARE PLC,"1,144.25",PHY LTS 65+,HOMECARE - C&V,2102601051
06.12.2016,ADULT SOCIAL CARE,LONDON CARE PLC,"1,152.20",PHY LTS 65+,HOMECARE - C&V,2102600967
06.12.2016,ADULT SOCIAL CARE,LONDON CARE PLC,"1,152.34",PHY LTS 65+,HOMECARE - C&V,2102601151
06.12.2016,ADULT SOCIAL CARE,LONDON CARE PLC,"1,168.80",PHY LTS 65+,HOMECARE - C&V,2102601133
06.12.2016,ADULT SOCIAL CARE,LONDON CARE PLC,"1,177.04",PHY LTS 65+,HOMECARE - C&V,2102600980
06.12.2016,ADULT SOCIAL CARE,LONDON CARE PLC,"1,259.33",PHY LTS 65+,HOMECARE - C&V,2102601106
06.12.2016,ADULT SOCIAL CARE,LONDON CARE PLC,"1,316.80",PHY LTS 65+,HOMECARE - C&V,2102601141
06.12.2016,ADULT SOCIAL CARE,LONDON CARE PLC,"1,325.38",PHY LTS 65+,HOMECARE - C&V,2102600943
06.12.2016,ADULT SOCIAL CARE,LONDON CARE PLC,"1,333.40",PHY LTS 65+,HOMECARE - C&V,2102600962
06.12.2016,ADULT SOCIAL CARE,LONDON CARE PLC,"1,350.00",PHY LTS 65+,HOMECARE - C&V,2102601065
06.12.2016,ADULT SOCIAL CARE,LONDON CARE PLC,"1,370.57",PHY LTS 65+,HOMECARE - C&V,2102601025
06.12.2016,ADULT SOCIAL CARE,LONDON CARE PLC,"1,374.69",PHY LTS 65+,HOMECARE - C&V,2102601071
06.12.2016,ADULT SOCIAL CARE,LONDON CARE PLC,"1,378.66",PHY LTS 65+,HOMECARE - C&V,2102601048
06.12.2016,ADULT SOCIAL CARE,LONDON CARE PLC,"1,383.20",PHY LTS 65+,HOMECARE - C&V,2102601167
06.12.2016,ADULT SOCIAL CARE,LONDON CARE PLC,"1,580.16",PHY LTS 65+,HOMECARE - C&V,2102600951
06.12.2016,ADULT SOCIAL CARE,LONDON CARE PLC,"1,815.40",PHY LTS 65+,HOMECARE - C&V,2102601163
06.12.2016,ADULT SOCIAL CARE,LONDON CARE PLC,"1,930.49",PHY LTS 65+,HOMECARE - C&V,2102601083
06.12.2016,ADULT SOCIAL CARE,LONDON CARE PLC,"2,037.20",PHY LTS 65+,HOMECARE - C&V,2102600911
06.12.2016,ADULT SOCIAL CARE,LONDON CARE PLC,"2,066.01",PHY LTS 65+,HOMECARE - C&V,2102600898
06.12.2016,ADULT SOCIAL CARE,LONDON CARE PLC,"2,074.24",PHY LTS 65+,HOMECARE - C&V,2102600889
06.12.2016,ADULT SOCIAL CARE,LONDON CARE PLC,"2,074.24",PHY LTS 65+,HOMECARE - C&V,2102601003
06.12.2016,ADULT SOCIAL CARE,LONDON CARE PLC,"2,074.24",PHY LTS 65+,HOMECARE - C&V,2102601044
06.12.2016,ADULT SOCIAL CARE,LONDON CARE PLC,"2,370.80",PHY LTS 65+,HOMECARE - C&V,2102600916
06.12.2016,ADULT SOCIAL CARE,LONDON CARE PLC,"2,732.64",PHY LTS 65+,HOMECARE - C&V,2102600981
06.12.2016,ADULT SOCIAL CARE,LONDON CARE PLC,"2,765.84",PHY LTS 65+,HOMECARE - C&V,2102601030
06.12.2016,ADULT SOCIAL CARE,LONDON CARE PLC,"2,996.00",PHY LTS 65+,HOMECARE - C&V,2102601091
06.12.2016,ADULT SOCIAL CARE,LONDON CARE PLC,"3,029.48",PHY LTS 65+,HOMECARE - C&V,2102600995
06.12.2016,ADULT SOCIAL CARE,LONDON CARE PLC,"3,102.99",PHY LTS 65+,HOMECARE - C&V,2102601054
06.12.2016,ADULT SOCIAL CARE,LONDON CARE PLC,"3,128.24",PHY LTS 65+,HOMECARE - C&V,2102600990
06.12.2016,ADULT SOCIAL CARE,LONDON CARE PLC,"3,226.72",PHY LTS 65+,HOMECARE - C&V,2102600971
06.12.2016,ADULT SOCIAL CARE,LONDON CARE PLC,"3,276.10",PHY LTS 65+,HOMECARE - C&V,2102600968
06.12.2016,ADULT SOCIAL CARE,LONDON CARE PLC,"3,292.00",PHY LTS 65+,HOMECARE - C&V,2102601022
06.12.2016,ADULT SOCIAL CARE,LONDON CARE PLC,"3,411.89",PHY LTS 65+,HOMECARE - C&V,2102600907
06.12.2016,ADULT SOCIAL CARE,LONDON CARE PLC,"3,818.72",PHY LTS 65+,HOMECARE - C&V,2102601035
06.12.2016,ADULT SOCIAL CARE,SWK AFRICAN FAMILY SUPPORT SVCS,"2,131.44",PHY LTS 65+,HOMECARE - C&V,2102600864
06.12.2016,ADULT SOCIAL CARE,THAMES HOMECARE SERVICE LTD,263.06,PHY LTS 65+,HOMECARE - SPOT,2102597681
06.12.2016,ADULT SOCIAL CARE,THAMES HOMECARE SERVICE LTD,283.29,PHY LTS 65+,HOMECARE - SPOT,2102597571
06.12.2016,ADULT SOCIAL CARE,THAMES HOMECARE SERVICE LTD,283.29,PHY LTS 65+,HOMECARE - C&V,2102597587
06.12.2016,ADULT SOCIAL CARE,THAMES HOMECARE SERVICE LTD,283.29,PHY LTS 65+,HOMECARE - SPOT,2102597603
06.12.2016,ADULT SOCIAL CARE,THAMES HOMECARE SERVICE LTD,283.29,PHY LTS 65+,HOMECARE - SPOT,2102597652
06.12.2016,ADULT SOCIAL CARE,THAMES HOMECARE SERVICE LTD,283.29,PHY LTS 65+,HOMECARE - SPOT,2102600516
06.12.2016,ADULT SOCIAL CARE,THAMES HOMECARE SERVICE LTD,296.78,PHY LTS 65+,HOMECARE - SPOT,2102598790
06.12.2016,ADULT SOCIAL CARE,THAMES HOMECARE SERVICE LTD,303.53,PHY LTS 65+,HOMECARE - SPOT,2102597662
06.12.2016,ADULT SOCIAL CARE,THAMES HOMECARE SERVICE LTD,303.53,PHY LTS 65+,HOMECARE - SPOT,2102597667
06.12.2016,ADULT SOCIAL CARE,THAMES HOMECARE SERVICE LTD,303.53,PHY LTS 65+,HOMECARE - SPOT,2102598791
06.12.2016,ADULT SOCIAL CARE,THAMES HOMECARE SERVICE LTD,303.53,PHY LTS 65+,HOMECARE - SPOT,2102600503
06.12.2016,ADULT SOCIAL CARE,THAMES HOMECARE SERVICE LTD,303.53,PHY LTS 65+,HOMECARE - SPOT,2102600509
06.12.2016,ADULT SOCIAL CARE,THAMES HOMECARE SERVICE LTD,310.27,PHY LTS 65+,HOMECARE - SPOT,2102597674
06.12.2016,ADULT SOCIAL CARE,THAMES HOMECARE SERVICE LTD,310.27,PHY LTS 65+,HOMECARE - C&V,2102600432
06.12.2016,ADULT SOCIAL CARE,THAMES HOMECARE SERVICE LTD,310.27,PHY LTS 65+,HOMECARE - SPOT,2102600446
06.12.2016,ADULT SOCIAL CARE,THAMES HOMECARE SERVICE LTD,330.51,PHY LTS 65+,HOMECARE - C&V,2102597593
06.12.2016,ADULT SOCIAL CARE,THAMES HOMECARE SERVICE LTD,330.51,PHY LTS 65+,HOMECARE - SPOT,2102597627
06.12.2016,ADULT SOCIAL CARE,THAMES HOMECARE SERVICE LTD,330.51,PHY LTS 65+,HOMECARE - SPOT,2102597649
06.12.2016,ADULT SOCIAL CARE,THAMES HOMECARE SERVICE LTD,330.51,PHY LTS 65+,HOMECARE - SPOT,2102597683
06.12.2016,ADULT SOCIAL CARE,THAMES HOMECARE SERVICE LTD,330.51,PHY LTS 65+,HOMECARE - SPOT,2102600157
06.12.2016,ADULT SOCIAL CARE,THAMES HOMECARE SERVICE LTD,330.51,PHY LTS 65+,HOMECARE - SPOT,2102600162
06.12.2016,ADULT SOCIAL CARE,THAMES HOMECARE SERVICE LTD,337.25,PHY LTS 65+,HOMECARE - C&V,2102600475
06.12.2016,ADULT SOCIAL CARE,THAMES HOMECARE SERVICE LTD,337.25,PHY LTS 65+,HOMECARE - C&V,2102600496
06.12.2016,ADULT SOCIAL CARE,THAMES HOMECARE SERVICE LTD,350.74,PHY LTS 65+,HOMECARE - SPOT,2102597597
06.12.2016,ADULT SOCIAL CARE,THAMES HOMECARE SERVICE LTD,350.74,PHY LTS 65+,HOMECARE - SPOT,2102600429
06.12.2016,ADULT SOCIAL CARE,THAMES HOMECARE SERVICE LTD,350.74,PHY LTS 65+,HOMECARE - SPOT,2102600437
06.12.2016,ADULT SOCIAL CARE,THAMES HOMECARE SERVICE LTD,350.74,PHY LTS 65+,HOMECARE - C&V,2102600444
06.12.2016,ADULT SOCIAL CARE,THAMES HOMECARE SERVICE LTD,350.74,PHY LTS 65+,HOMECARE - SPOT,2102600519
06.12.2016,ADULT SOCIAL CARE,THAMES HOMECARE SERVICE LTD,357.49,PHY LTS 65+,HOMECARE - SPOT,2102597626
06.12.2016,ADULT SOCIAL CARE,THAMES HOMECARE SERVICE LTD,357.49,PHY LTS 65+,HOMECARE - C&V,2102600449
06.12.2016,ADULT SOCIAL CARE,THAMES HOMECARE SERVICE LTD,364.23,PHY LTS 65+,HOMECARE - SPOT,2102597668
06.12.2016,ADULT SOCIAL CARE,THAMES HOMECARE SERVICE LTD,364.23,PHY LTS 65+,HOMECARE - C&V,2102600428
06.12.2016,ADULT SOCIAL CARE,THAMES HOMECARE SERVICE LTD,374.35,PHY LTS 65+,HOMECARE - SPOT,2102597650
06.12.2016,ADULT SOCIAL CARE,THAMES HOMECARE SERVICE LTD,384.47,PHY LTS 65+,HOMECARE - SPOT,2102597654
06.12.2016,ADULT SOCIAL CARE,THAMES HOMECARE SERVICE LTD,384.47,PHY LTS 65+,HOMECARE - SPOT,2102600501
06.12.2016,ADULT SOCIAL CARE,THAMES HOMECARE SERVICE LTD,397.96,PHY LTS 65+,HOMECARE - SPOT,2102600513
06.12.2016,ADULT SOCIAL CARE,THAMES HOMECARE SERVICE LTD,418.19,PHY LTS 65+,HOMECARE - SPOT,2102597645
06.12.2016,ADULT SOCIAL CARE,THAMES HOMECARE SERVICE LTD,418.19,PHY LTS 65+,HOMECARE - SPOT,2102600163
06.12.2016,ADULT SOCIAL CARE,THAMES HOMECARE SERVICE LTD,424.94,PHY LTS 65+,HOMECARE - SPOT,2102600450
06.12.2016,ADULT SOCIAL CARE,THAMES HOMECARE SERVICE LTD,424.94,PHY LTS 65+,HOMECARE - SPOT,2102600484
06.12.2016,ADULT SOCIAL CARE,THAMES HOMECARE SERVICE LTD,424.94,PHY LTS 65+,HOMECARE - SPOT,2102600490
06.12.2016,ADULT SOCIAL CARE,THAMES HOMECARE SERVICE LTD,431.68,PHY LTS 65+,HOMECARE - SPOT,2102597575
06.12.2016,ADULT SOCIAL CARE,THAMES HOMECARE SERVICE LTD,431.68,PHY LTS 65+,HOMECARE - C&V,2102600440
06.12.2016,ADULT SOCIAL CARE,THAMES HOMECARE SERVICE LTD,445.17,PHY LTS 65+,HOMECARE - SPOT,2102597567
06.12.2016,ADULT SOCIAL CARE,THAMES HOMECARE SERVICE LTD,458.66,PHY LTS 65+,HOMECARE - SPOT,2102600161
06.12.2016,ADULT SOCIAL CARE,THAMES HOMECARE SERVICE LTD,458.66,PHY LTS 65+,HOMECARE - SPOT,2102600164
06.12.2016,ADULT SOCIAL CARE,THAMES HOMECARE SERVICE LTD,478.9,PHY LTS 65+,HOMECARE - SPOT,2102600467
06.12.2016,ADULT SOCIAL CARE,THAMES HOMECARE SERVICE LTD,478.9,PHY LTS 65+,HOMECARE - SPOT,2102600500
06.12.2016,ADULT SOCIAL CARE,THAMES HOMECARE SERVICE LTD,478.94,PHY LTS 65+,HOMECARE - SPOT,2102600160
06.12.2016,ADULT SOCIAL CARE,THAMES HOMECARE SERVICE LTD,485.64,PHY LTS 65+,HOMECARE - SPOT,2102600486
06.12.2016,ADULT SOCIAL CARE,THAMES HOMECARE SERVICE LTD,492.39,PHY LTS 65+,HOMECARE - SPOT,2102600508
06.12.2016,ADULT SOCIAL CARE,THAMES HOMECARE SERVICE LTD,496.84,PHY LTS 65+,HOMECARE - SPOT,2102600468
06.12.2016,ADULT SOCIAL CARE,THAMES HOMECARE SERVICE LTD,519.37,PHY LTS 65+,HOMECARE - SPOT,2102600433
06.12.2016,ADULT SOCIAL CARE,THAMES HOMECARE SERVICE LTD,519.37,PHY LTS 65+,HOMECARE - C&V,2102600477
06.12.2016,ADULT SOCIAL CARE,THAMES HOMECARE SERVICE LTD,519.37,PHY LTS 65+,HOMECARE - SPOT,2102600511
06.12.2016,ADULT SOCIAL CARE,THAMES HOMECARE SERVICE LTD,532.86,PHY LTS 65+,HOMECARE - C&V,2102597675
06.12.2016,ADULT SOCIAL CARE,THAMES HOMECARE SERVICE LTD,539.6,PHY LTS 65+,HOMECARE - SPOT,2102597601
06.12.2016,ADULT SOCIAL CARE,THAMES HOMECARE SERVICE LTD,539.6,PHY LTS 65+,HOMECARE - SPOT,2102600474
06.12.2016,ADULT SOCIAL CARE,THAMES HOMECARE SERVICE LTD,539.6,PHY LTS 65+,HOMECARE - SPOT,2102600512
06.12.2016,ADULT SOCIAL CARE,THAMES HOMECARE SERVICE LTD,546.35,PHY LTS 65+,HOMECARE - SPOT,2102600462
06.12.2016,ADULT SOCIAL CARE,THAMES HOMECARE SERVICE LTD,553.09,PHY LTS 65+,HOMECARE - SPOT,2102597628
06.12.2016,ADULT SOCIAL CARE,THAMES HOMECARE SERVICE LTD,566.58,PHY LTS 65+,HOMECARE - SPOT,2102600159
06.12.2016,ADULT SOCIAL CARE,THAMES HOMECARE SERVICE LTD,580.07,PHY LTS 65+,HOMECARE - SPOT,2102597622
06.12.2016,ADULT SOCIAL CARE,THAMES HOMECARE SERVICE LTD,600.31,PHY LTS 65+,HOMECARE - SPOT,2102600631
06.12.2016,ADULT SOCIAL CARE,THAMES HOMECARE SERVICE LTD,600.31,PHY LTS 65+,HOMECARE - SPOT,2102600635
06.12.2016,ADULT SOCIAL CARE,THAMES HOMECARE SERVICE LTD,600.31,PHY LTS 65+,HOMECARE - SPOT,2102600638
06.12.2016,ADULT SOCIAL CARE,THAMES HOMECARE SERVICE LTD,600.31,PHY LTS 65+,HOMECARE - SPOT,2102600639
06.12.2016,ADULT SOCIAL CARE,THAMES HOMECARE SERVICE LTD,600.31,PHY LTS 65+,HOMECARE - SPOT,2102600646
06.12.2016,ADULT SOCIAL CARE,THAMES HOMECARE SERVICE LTD,600.31,PHY LTS 65+,HOMECARE - SPOT,2102600648
06.12.2016,ADULT SOCIAL CARE,THAMES HOMECARE SERVICE LTD,613.8,PHY LTS 65+,HOMECARE - SPOT,2102597617
06.12.2016,ADULT SOCIAL CARE,THAMES HOMECARE SERVICE LTD,613.8,PHY LTS 65+,HOMECARE - SPOT,2102597623
06.12.2016,ADULT SOCIAL CARE,THAMES HOMECARE SERVICE LTD,623.97,PHY LTS 65+,HOMECARE - SPOT,2102600642
06.12.2016,ADULT SOCIAL CARE,THAMES HOMECARE SERVICE LTD,647.52,PHY LTS 65+,HOMECARE - SPOT,2102597689
06.12.2016,ADULT SOCIAL CARE,THAMES HOMECARE SERVICE LTD,674.5,PHY LTS 65+,HOMECARE - SPOT,2102597663
06.12.2016,ADULT SOCIAL CARE,THAMES HOMECARE SERVICE LTD,674.5,PHY LTS 65+,HOMECARE - SPOT,2102597676
06.12.2016,ADULT SOCIAL CARE,THAMES HOMECARE SERVICE LTD,701.48,PHY LTS 65+,HOMECARE - SPOT,2102597664
06.12.2016,ADULT SOCIAL CARE,THAMES HOMECARE SERVICE LTD,735.21,PHY LTS 65+,HOMECARE - SPOT,2102600434
06.12.2016,ADULT SOCIAL CARE,THAMES HOMECARE SERVICE LTD,755.44,PHY LTS 65+,HOMECARE - C&V,2102597605
06.12.2016,ADULT SOCIAL CARE,THAMES HOMECARE SERVICE LTD,768.93,PHY LTS 65+,HOMECARE - SPOT,2102597611
06.12.2016,ADULT SOCIAL CARE,THAMES HOMECARE SERVICE LTD,768.93,PHY LTS 65+,HOMECARE - SPOT,2102597620
06.12.2016,ADULT SOCIAL CARE,THAMES HOMECARE SERVICE LTD,802.66,PHY LTS 65+,HOMECARE - C&V,2102597658
06.12.2016,ADULT SOCIAL CARE,THAMES HOMECARE SERVICE LTD,822.89,PHY LTS 65+,HOMECARE - SPOT,2102597595
06.12.2016,ADULT SOCIAL CARE,THAMES HOMECARE SERVICE LTD,849.87,PHY LTS 65+,HOMECARE - C&V,2102600457
06.12.2016,ADULT SOCIAL CARE,THAMES HOMECARE SERVICE LTD,849.87,PHY LTS 65+,HOMECARE - C&V,2102600473
06.12.2016,ADULT SOCIAL CARE,THAMES HOMECARE SERVICE LTD,903.83,PHY LTS 65+,HOMECARE - SPOT,2102600458
06.12.2016,ADULT SOCIAL CARE,THAMES HOMECARE SERVICE LTD,957.79,PHY LTS 65+,HOMECARE - SPOT,2102597638
06.12.2016,ADULT SOCIAL CARE,THAMES HOMECARE SERVICE LTD,998.26,PHY LTS 65+,HOMECARE - SPOT,2102597635
06.12.2016,ADULT SOCIAL CARE,THAMES HOMECARE SERVICE LTD,"1,025.24",PHY LTS 65+,HOMECARE - C&V,2102600464
06.12.2016,ADULT SOCIAL CARE,THAMES HOMECARE SERVICE LTD,"1,038.73",PHY LTS 65+,HOMECARE - SPOT,2102597579
06.12.2016,ADULT SOCIAL CARE,THAMES HOMECARE SERVICE LTD,"1,038.73",PHY LTS 65+,HOMECARE - SPOT,2102597615
06.12.2016,ADULT SOCIAL CARE,THAMES HOMECARE SERVICE LTD,"1,038.73",PHY LTS 65+,HOMECARE - SPOT,2102597624
06.12.2016,ADULT SOCIAL CARE,THAMES HOMECARE SERVICE LTD,"1,038.73",PHY LTS 65+,HOMECARE - C&V,2102600472
06.12.2016,ADULT SOCIAL CARE,THAMES HOMECARE SERVICE LTD,"1,038.73",PHY LTS 65+,HOMECARE - C&V,2102600647
06.12.2016,ADULT SOCIAL CARE,THAMES HOMECARE SERVICE LTD,"1,058.97",PHY LTS 65+,HOMECARE - SPOT,2102600454
06.12.2016,ADULT SOCIAL CARE,THAMES HOMECARE SERVICE LTD,"1,079.20",PHY LTS 65+,HOMECARE - SPOT,2102597669
06.12.2016,ADULT SOCIAL CARE,THAMES HOMECARE SERVICE LTD,"1,133.16",PHY LTS 65+,HOMECARE - SPOT,2102600456
06.12.2016,ADULT SOCIAL CARE,THAMES HOMECARE SERVICE LTD,"1,187.12",PHY LTS 65+,HOMECARE - C&V,2102597642
06.12.2016,ADULT SOCIAL CARE,THAMES HOMECARE SERVICE LTD,"1,207.36",PHY LTS 65+,HOMECARE - C&V,2102600487
06.12.2016,ADULT SOCIAL CARE,THAMES HOMECARE SERVICE LTD,"1,214.10",PHY LTS 65+,HOMECARE - C&V,2102597655
06.12.2016,ADULT SOCIAL CARE,THAMES HOMECARE SERVICE LTD,"1,295.04",PHY LTS 65+,HOMECARE - C&V,2102600518
06.12.2016,ADULT SOCIAL CARE,THAMES HOMECARE SERVICE LTD,"1,355.75",PHY LTS 65+,HOMECARE - SPOT,2102600479
06.12.2016,ADULT SOCIAL CARE,THAMES HOMECARE SERVICE LTD,"1,537.86",PHY LTS 65+,HOMECARE - SPOT,2102600485
06.12.2016,ADULT SOCIAL CARE,THAMES HOMECARE SERVICE LTD,"1,591.82",PHY LTS 65+,HOMECARE - SPOT,2102600442
06.12.2016,ADULT SOCIAL CARE,THAMES HOMECARE SERVICE LTD,"1,672.76",PHY LTS 65+,HOMECARE - SPOT,2102600445
06.12.2016,ADULT SOCIAL CARE,THAMES HOMECARE SERVICE LTD,"1,686.25",PHY LTS 65+,HOMECARE - SPOT,2102597665
06.12.2016,ADULT SOCIAL CARE,THAMES HOMECARE SERVICE LTD,"2,414.71",PHY LTS 65+,HOMECARE - C&V,2102600478
06.12.2016,ADULT SOCIAL CARE,THAMES HOMECARE SERVICE LTD,"2,414.71",PHY LTS 65+,HOMECARE - C&V,2102600482
06.12.2016,ADULT SOCIAL CARE,YOUTH GRACES (UK) LTD,259.77,PHY LTS 65+,HOMECARE - C&V,2102601273
06.12.2016,ADULT SOCIAL CARE,YOUTH GRACES (UK) LTD,259.77,PHY LTS 65+,HOMECARE - SPOT,2102601448
06.12.2016,ADULT SOCIAL CARE,YOUTH GRACES (UK) LTD,377.86,PHY LTS 65+,HOMECARE - SPOT,2102601309
06.12.2016,ADULT SOCIAL CARE,YOUTH GRACES (UK) LTD,377.93,PHY LTS 65+,HOMECARE - SPOT,2102601294
06.12.2016,ADULT SOCIAL CARE,YOUTH GRACES (UK) LTD,401.59,PHY LTS 65+,HOMECARE - SPOT,2102601300
06.12.2016,ADULT SOCIAL CARE,YOUTH GRACES (UK) LTD,425.05,PHY LTS 65+,HOMECARE - SPOT,2102601268
06.12.2016,ADULT SOCIAL CARE,YOUTH GRACES (UK) LTD,462.24,PHY LTS 65+,HOMECARE - SPOT,2102601465
06.12.2016,ADULT SOCIAL CARE,YOUTH GRACES (UK) LTD,492.46,PHY LTS 65+,HOMECARE - SPOT,2102601285
06.12.2016,ADULT SOCIAL CARE,YOUTH GRACES (UK) LTD,543.06,PHY LTS 65+,HOMECARE - C&V,2102601301
06.12.2016,ADULT SOCIAL CARE,YOUTH GRACES (UK) LTD,775.82,PHY LTS 65+,HOMECARE - SPOT,2102601455
06.12.2016,ADULT SOCIAL CARE,THAMES HOMECARE SERVICE LTD,566.58,PHY STS 65+,HOMECARE - IC,2102597619
06.12.2016,ADULT SOCIAL CARE,HEALTHCARE & TRANSPORT SERVICE,650,PWLD DAY CARE (TRANSPORT),CLIENT TRANSPORT,2102601656
06.12.2016,ADULT SOCIAL CARE,LAMBETH MENCAP,310.64,PWLD DAYCARE,HOMECARE - SPOT,2102601653
06.12.2016,ADULT SOCIAL CARE,LAMBETH MENCAP,274.8,PWLD HOME CARE IND,EXTERNAL AGENCIES AND BODIES,2102601651
06.12.2016,ADULT SOCIAL CARE,LAMBETH MENCAP,321.6,PWLD HOME CARE IND,HOMECARE - SPOT,2102601652
06.12.2016,ADULT SOCIAL CARE,THAMES HOMECARE SERVICE LTD,317.02,SEN LTS 18-64,HOMECARE - SPOT,2102597688
06.12.2016,ADULT SOCIAL CARE,CARE DIRECT UK LTD,263.05,SOCIAL ISOLATION,HOMECARE - SPOT,2102601348
06.12.2016,ADULT SOCIAL CARE,LAMBETH MENCAP,370.8,SOCIAL ISOLATION,SUPPORTED LIVING,2102601215
06.12.2016,ADULT SOCIAL CARE,LAMBETH MENCAP,"1,145.00",SOCIAL ISOLATION,SUPPORTED LIVING,2102601225
06.12.2016,ADULT SOCIAL CARE,LAMBETH MENCAP,"1,209.12",SOCIAL ISOLATION,SUPPORTED LIVING,2102601219
06.12.2016,ADULT SOCIAL CARE,LONDON CARE PLC,312.74,SOCIAL ISOLATION,HOMECARE - C&V,2102600964
06.12.2016,ADULT SOCIAL CARE,LONDON CARE PLC,333.45,SOCIAL ISOLATION,HOMECARE - C&V,2102600892
06.12.2016,ADULT SOCIAL CARE,LONDON CARE PLC,427.96,SOCIAL ISOLATION,HOMECARE - C&V,2102601117
06.12.2016,ADULT SOCIAL CARE,LONDON CARE PLC,460.88,SOCIAL ISOLATION,HOMECARE - C&V,2102600939
06.12.2016,ADULT SOCIAL CARE,LONDON CARE PLC,493.8,SOCIAL ISOLATION,HOMECARE - C&V,2102601039
06.12.2016,ADULT SOCIAL CARE,LONDON CARE PLC,806.68,SOCIAL ISOLATION,HOMECARE - C&V,2102601027
06.12.2016,ADULT SOCIAL CARE,LONDON CARE PLC,913.67,SOCIAL ISOLATION,HOMECARE - C&V,2102600974
06.12.2016,ADULT SOCIAL CARE,LONDON CARE PLC,"1,053.72",SOCIAL ISOLATION,HOMECARE - C&V,2102600877
06.12.2016,ADULT SOCIAL CARE,LONDON CARE PLC,"1,119.56",SOCIAL ISOLATION,HOMECARE - C&V,2102601169
06.12.2016,ADULT SOCIAL CARE,LONDON CARE PLC,"2,304.96",SOCIAL ISOLATION,HOMECARE - C&V,2102600941
06.12.2016,ADULT SOCIAL CARE,THAMES HOMECARE SERVICE LTD,283.29,SOCIAL ISOLATION,HOMECARE - SPOT,2102597656
06.12.2016,ADULT SOCIAL CARE,THAMES HOMECARE SERVICE LTD,290.04,SOCIAL ISOLATION,HOMECARE - SPOT,2102600471
06.12.2016,ADULT SOCIAL CARE,THAMES HOMECARE SERVICE LTD,370.98,SOCIAL ISOLATION,HOMECARE - SPOT,2102597639
06.12.2016,ADULT SOCIAL CARE,THAMES HOMECARE SERVICE LTD,546.35,SOCIAL ISOLATION,HOMECARE - SPOT,2102597589
06.12.2016,ADULT SOCIAL CARE,THAMES HOMECARE SERVICE LTD,639.11,SOCIAL ISOLATION,HOMECARE - SPOT,2102597672
06.12.2016,ADULT SOCIAL CARE,THAMES HOMECARE SERVICE LTD,701.48,SOCIAL ISOLATION,HOMECARE - SPOT,2102600470
06.12.2016,ADULT SOCIAL CARE,THAMES HOMECARE SERVICE LTD,259.68,SUB LTS 18-64,HOMECARE - SPOT,2102600476
06.12.2016,ADULT SOCIAL CARE,THAMES HOMECARE SERVICE LTD,323.76,SUB STS 18-64,HOMECARE - IC,2102600436
06.12.2016,ASSET MANAGEMENT,CAMBRIDGE HOUSE & TALBOT,500,DISREPAIR,LEGAL FEES & COURT COSTS,2102601672
06.12.2016,ASSET MANAGEMENT,BRIDGEWATER ROOFING CONTRACTORS LTD,"85,485.39",REPAIRS OPERATIONS,OTHER R&M,2102601668
06.12.2016,CENTRAL FUNCTIONS,KENT COUNTY COUNCIL - LASER,678.32,ABBEYFIELD ROAD,ELECTRICITY,5902226333
06.12.2016,CENTRAL FUNCTIONS,A & E ELKINS LTD,"66,541.74",GARAGE REPAIRS,BUILDING R&M,2102601667
06.12.2016,CENTRAL FUNCTIONS,CAPITA BUSINESS SERVICES LTD,"7,666.64",HOME OWNERSHIP,AGENCY STAFF,5902226381
06.12.2016,CENTRAL FUNCTIONS,HMCTS,335,HOME OWNERSHIP,LEGAL FEES & COURT COSTS,5902226295
06.12.2016,CENTRAL FUNCTIONS,PITNEY BOWES FINANCE LTD,"4,143.65",HOME OWNERSHIP,POSTAGES,5902226356
06.12.2016,CENTRAL FUNCTIONS,WESTCO TRADING LTD,650,HOME OWNERSHIP,PRINTING,5902226331
06.12.2016,CENTRAL FUNCTIONS,MOBYSOFT LTD,"9,300.00",OPERATIONAL TEAM,OTHER CONTRACTORS,5902226296
06.12.2016,CHILDREN AND ADULT,DANZER LTD,"108,289.11",CAPITAL PS (EDUCATION),CONSTRUCTION FEES  - EXTERNAL,2102601713
06.12.2016,CHILDREN AND ADULT,DAVID MILES & PARTNERS,"5,226.49",CAPITAL PS (EDUCATION),CONSTRUCTION MAIN CONTRACT,5902226366
06.12.2016,CHILDREN AND ADULT,MORGAN SINDALL PLC,"12,745.44",CAPITAL PS (EDUCATION),CONSTR'N SUB CONTRACT - NON CERTIFICATED,2102601734
06.12.2016,CHILDREN AND ADULT,MORGAN SINDALL PLC,"61,962.34",CAPITAL PS (EDUCATION),CONST'N MAIN CONTRACT - NON CERTIFICATED,2102601735
06.12.2016,CHILDREN AND ADULT,MORGAN SINDALL PLC,"174,885.25",CAPITAL PS (EDUCATION),CONST'N MAIN CONTRACT - NON CERTIFICATED,2102601732
06.12.2016,CHILDREN AND ADULT,MORGAN SINDALL PLC,"223,948.49",CAPITAL PS (EDUCATION),CONSTRUCTION MAIN CONTRACT -CERTIFICATED,2102601733
06.12.2016,CHILDREN AND ADULT,MORGAN SINDALL PLC,"469,332.10",CAPITAL PS (EDUCATION),CONSTRUCTION MAIN CONTRACT -CERTIFICATED,2102601727
06.12.2016,CHILDREN'S SERVICES,BARNARDOS SERVICES LTD,"8,750.00",ADMIN TEAM SAFEGUARDING,EXTERNAL AGENCIES AND BODIES,5902226372
06.12.2016,CHILDREN'S SERVICES,ASCENT FOSTERING AGENCY LTD,"-4,435.55",AGENCY FOSTERING,EXTERNAL AGENCIES AND BODIES,2102592349
06.12.2016,CHILDREN'S SERVICES,ASCENT FOSTERING AGENCY LTD,"5,507.10",AGENCY FOSTERING,EXTERNAL AGENCIES AND BODIES,2102601590
06.12.2016,CHILDREN'S SERVICES,BANYA FAMILY PLACEMENT AGENCY LTD,"2,792.88",AGENCY FOSTERING,EXTERNAL AGENCIES AND BODIES,2102601571
06.12.2016,CHILDREN'S SERVICES,BANYA FAMILY PLACEMENT AGENCY LTD,"2,792.88",AGENCY FOSTERING,EXTERNAL AGENCIES AND BODIES,2102601586
06.12.2016,CHILDREN'S SERVICES,BANYA FAMILY PLACEMENT AGENCY LTD,"2,792.88",AGENCY FOSTERING,EXTERNAL AGENCIES AND BODIES,2102601625
06.12.2016,CHILDREN'S SERVICES,BARNARDOS SERVICES LTD,"3,754.20",AGENCY FOSTERING,EXTERNAL AGENCIES AND BODIES,2102601645
06.12.2016,CHILDREN'S SERVICES,CAPSTONE FOSTER CARE,"3,278.40",AGENCY FOSTERING,EXTERNAL AGENCIES AND BODIES,2102601649
06.12.2016,CHILDREN'S SERVICES,CHILDREN FIRST FOSTERING AGENCY LTD,"3,750.00",AGENCY FOSTERING,EXTERNAL AGENCIES AND BODIES,2102601588
06.12.2016,CHILDREN'S SERVICES,CHILDREN OF COLOUR,"3,360.00",AGENCY FOSTERING,EXTERNAL AGENCIES AND BODIES,2102601593
06.12.2016,CHILDREN'S SERVICES,CHILDREN OF COLOUR,"3,360.00",AGENCY FOSTERING,EXTERNAL AGENCIES AND BODIES,2102601616
06.12.2016,CHILDREN'S SERVICES,CHILDREN OF COLOUR,"3,444.00",AGENCY FOSTERING,EXTERNAL AGENCIES AND BODIES,2102601640
06.12.2016,CHILDREN'S SERVICES,CHILDREN OF COLOUR,"4,114.29",AGENCY FOSTERING,EXTERNAL AGENCIES AND BODIES,2102601646
06.12.2016,CHILDREN'S SERVICES,COMPASS FOSTERING SOUTH LTD,"2,978.70",AGENCY FOSTERING,EXTERNAL AGENCIES AND BODIES,2102601647
06.12.2016,CHILDREN'S SERVICES,CORE ASSETS FOSTERING LTD,"2,982.00",AGENCY FOSTERING,EXTERNAL AGENCIES AND BODIES,2102601567
06.12.2016,CHILDREN'S SERVICES,CORE ASSETS FOSTERING LTD,"3,211.60",AGENCY FOSTERING,EXTERNAL AGENCIES AND BODIES,2102601596
06.12.2016,CHILDREN'S SERVICES,CORE ASSETS FOSTERING LTD,"3,211.60",AGENCY FOSTERING,EXTERNAL AGENCIES AND BODIES,2102601632
06.12.2016,CHILDREN'S SERVICES,CORE ASSETS FOSTERING LTD,"3,211.60",AGENCY FOSTERING,EXTERNAL AGENCIES AND BODIES,2102601650
06.12.2016,CHILDREN'S SERVICES,CORE ASSETS FOSTERING LTD,"4,788.28",AGENCY FOSTERING,EXTERNAL AGENCIES AND BODIES,2102601643
06.12.2016,CHILDREN'S SERVICES,CROHAM SERVICES FOR CHILDREN,"2,796.00",AGENCY FOSTERING,EXTERNAL AGENCIES AND BODIES,2102601606
06.12.2016,CHILDREN'S SERVICES,CROHAM SERVICES FOR CHILDREN,"2,796.00",AGENCY FOSTERING,EXTERNAL AGENCIES AND BODIES,2102601615
06.12.2016,CHILDREN'S SERVICES,CROHAM SERVICES FOR CHILDREN,"2,796.00",AGENCY FOSTERING,EXTERNAL AGENCIES AND BODIES,2102601638
06.12.2016,CHILDREN'S SERVICES,CROHAM SERVICES FOR CHILDREN,"2,796.00",AGENCY FOSTERING,EXTERNAL AGENCIES AND BODIES,2102601639
06.12.2016,CHILDREN'S SERVICES,DIVERSE CARE (UK) LTD,"4,345.20",AGENCY FOSTERING,EXTERNAL AGENCIES AND BODIES,2102601565
06.12.2016,CHILDREN'S SERVICES,FAMILY FOSTERING LTD,"3,437.40",AGENCY FOSTERING,EXTERNAL AGENCIES AND BODIES,2102601577
06.12.2016,CHILDREN'S SERVICES,FAMILY FOSTERING LTD,"3,437.40",AGENCY FOSTERING,EXTERNAL AGENCIES AND BODIES,2102601585
06.12.2016,CHILDREN'S SERVICES,FOSTERING LONDON LTD,"4,261.50",AGENCY FOSTERING,EXTERNAL AGENCIES AND BODIES,2102601627
06.12.2016,CHILDREN'S SERVICES,GREATER LONDON FOSTERING,324,AGENCY FOSTERING,EXTERNAL AGENCIES AND BODIES,2102601609
06.12.2016,CHILDREN'S SERVICES,GREATER LONDON FOSTERING,432,AGENCY FOSTERING,EXTERNAL AGENCIES AND BODIES,2102601608
06.12.2016,CHILDREN'S SERVICES,GREATER LONDON FOSTERING,514.25,AGENCY FOSTERING,EXTERNAL AGENCIES AND BODIES,2102601617
06.12.2016,CHILDREN'S SERVICES,GREATER LONDON FOSTERING,742,AGENCY FOSTERING,EXTERNAL AGENCIES AND BODIES,2102601594
06.12.2016,CHILDREN'S SERVICES,GREATER LONDON FOSTERING,"2,544.00",AGENCY FOSTERING,EXTERNAL AGENCIES AND BODIES,2102601579
06.12.2016,CHILDREN'S SERVICES,GREATER LONDON FOSTERING,"3,116.40",AGENCY FOSTERING,EXTERNAL AGENCIES AND BODIES,2102601618
06.12.2016,CHILDREN'S SERVICES,GREATER LONDON FOSTERING,"4,281.30",AGENCY FOSTERING,EXTERNAL AGENCIES AND BODIES,2102601566
06.12.2016,CHILDREN'S SERVICES,GREATER LONDON FOSTERING,"6,048.00",AGENCY FOSTERING,EXTERNAL AGENCIES AND BODIES,2102601633
06.12.2016,CHILDREN'S SERVICES,GREATER LONDON FOSTERING,"6,480.00",AGENCY FOSTERING,EXTERNAL AGENCIES AND BODIES,2102601634
06.12.2016,CHILDREN'S SERVICES,HORIZON FOSTERING SERVICES LTD,"2,992.50",AGENCY FOSTERING,EXTERNAL AGENCIES AND BODIES,2102601568
06.12.2016,CHILDREN'S SERVICES,HORIZON FOSTERING SERVICES LTD,"2,992.50",AGENCY FOSTERING,EXTERNAL AGENCIES AND BODIES,2102601580
06.12.2016,CHILDREN'S SERVICES,HORIZON FOSTERING SERVICES LTD,"2,992.50",AGENCY FOSTERING,EXTERNAL AGENCIES AND BODIES,2102601623
06.12.2016,CHILDREN'S SERVICES,HORIZON FOSTERING SERVICES LTD,"3,150.00",AGENCY FOSTERING,EXTERNAL AGENCIES AND BODIES,2102601595
06.12.2016,CHILDREN'S SERVICES,INTEGRATED SERVICES PROGRAMME,"-3,614.94",AGENCY FOSTERING,EXTERNAL AGENCIES AND BODIES,2102601583
06.12.2016,CHILDREN'S SERVICES,INTEGRATED SERVICES PROGRAMME,-750,AGENCY FOSTERING,EXTERNAL AGENCIES AND BODIES,2102601611
06.12.2016,CHILDREN'S SERVICES,INTEGRATED SERVICES PROGRAMME,"1,071.43",AGENCY FOSTERING,EXTERNAL AGENCIES AND BODIES,2102601582
06.12.2016,CHILDREN'S SERVICES,INTEGRATED SERVICES PROGRAMME,"5,009.40",AGENCY FOSTERING,EXTERNAL AGENCIES AND BODIES,2102601620
06.12.2016,CHILDREN'S SERVICES,INTEGRATED SERVICES PROGRAMME,"5,009.40",AGENCY FOSTERING,EXTERNAL AGENCIES AND BODIES,2102601641
06.12.2016,CHILDREN'S SERVICES,INTEGRATED SERVICES PROGRAMME,"5,164.20",AGENCY FOSTERING,EXTERNAL AGENCIES AND BODIES,2102601572
06.12.2016,CHILDREN'S SERVICES,INTEGRATED SERVICES PROGRAMME,"5,164.20",AGENCY FOSTERING,EXTERNAL AGENCIES AND BODIES,2102601581
06.12.2016,CHILDREN'S SERVICES,INTEGRATED SERVICES PROGRAMME,"5,164.20",AGENCY FOSTERING,EXTERNAL AGENCIES AND BODIES,2102601587
06.12.2016,CHILDREN'S SERVICES,INTEGRATED SERVICES PROGRAMME,"5,164.20",AGENCY FOSTERING,EXTERNAL AGENCIES AND BODIES,2102601607
06.12.2016,CHILDREN'S SERVICES,INTEGRATED SERVICES PROGRAMME,"5,164.20",AGENCY FOSTERING,EXTERNAL AGENCIES AND BODIES,2102601610
06.12.2016,CHILDREN'S SERVICES,INTEGRATED SERVICES PROGRAMME,"5,164.20",AGENCY FOSTERING,EXTERNAL AGENCIES AND BODIES,2102601619
06.12.2016,CHILDREN'S SERVICES,INTEGRATED SERVICES PROGRAMME,"5,164.20",AGENCY FOSTERING,EXTERNAL AGENCIES AND BODIES,2102601621
06.12.2016,CHILDREN'S SERVICES,INTEGRATED SERVICES PROGRAMME,"5,164.20",AGENCY FOSTERING,EXTERNAL AGENCIES AND BODIES,2102601626
06.12.2016,CHILDREN'S SERVICES,INTEGRATED SERVICES PROGRAMME,"5,164.20",AGENCY FOSTERING,EXTERNAL AGENCIES AND BODIES,2102601631
06.12.2016,CHILDREN'S SERVICES,KINDERCARE FOSTERING,300,AGENCY FOSTERING,EXTERNAL AGENCIES AND BODIES,2102601622
06.12.2016,CHILDREN'S SERVICES,KINDERCARE FOSTERING,"1,500.00",AGENCY FOSTERING,EXTERNAL AGENCIES AND BODIES,2102601602
06.12.2016,CHILDREN'S SERVICES,KINDERCARE FOSTERING,"3,214.20",AGENCY FOSTERING,EXTERNAL AGENCIES AND BODIES,2102601563
06.12.2016,CHILDREN'S SERVICES,KINDERCARE FOSTERING,"3,407.10",AGENCY FOSTERING,EXTERNAL AGENCIES AND BODIES,2102601584
06.12.2016,CHILDREN'S SERVICES,MOMENTS FOSTERING LTD,"-2,621.25",AGENCY FOSTERING,EXTERNAL AGENCIES AND BODIES,2102601600
06.12.2016,CHILDREN'S SERVICES,MOMENTS FOSTERING LTD,"1,611.96",AGENCY FOSTERING,EXTERNAL AGENCIES AND BODIES,2102601644
06.12.2016,CHILDREN'S SERVICES,MOMENTS FOSTERING LTD,"3,145.50",AGENCY FOSTERING,EXTERNAL AGENCIES AND BODIES,2102601605
06.12.2016,CHILDREN'S SERVICES,MOMENTS FOSTERING LTD,"3,145.50",AGENCY FOSTERING,EXTERNAL AGENCIES AND BODIES,2102601630
06.12.2016,CHILDREN'S SERVICES,MOMENTS FOSTERING LTD,"3,250.35",AGENCY FOSTERING,EXTERNAL AGENCIES AND BODIES,2102601597
06.12.2016,CHILDREN'S SERVICES,MOMENTS FOSTERING LTD,"3,569.34",AGENCY FOSTERING,EXTERNAL AGENCIES AND BODIES,2102601560
06.12.2016,CHILDREN'S SERVICES,MOMENTS FOSTERING LTD,"5,357.10",AGENCY FOSTERING,EXTERNAL AGENCIES AND BODIES,2102601598
06.12.2016,CHILDREN'S SERVICES,NATIONAL FOSTERING AGENCY,"1,989.96",AGENCY FOSTERING,EXTERNAL AGENCIES AND BODIES,2102601562
06.12.2016,CHILDREN'S SERVICES,NATIONAL FOSTERING AGENCY,"2,416.38",AGENCY FOSTERING,EXTERNAL AGENCIES AND BODIES,2102601612
06.12.2016,CHILDREN'S SERVICES,NATIONAL FOSTERING AGENCY,"2,984.94",AGENCY FOSTERING,EXTERNAL AGENCIES AND BODIES,2102601637
06.12.2016,CHILDREN'S SERVICES,NATIONAL FOSTERING AGENCY,"2,998.01",AGENCY FOSTERING,EXTERNAL AGENCIES AND BODIES,2102601564
06.12.2016,CHILDREN'S SERVICES,NATIONAL FOSTERING AGENCY,"2,998.01",AGENCY FOSTERING,EXTERNAL AGENCIES AND BODIES,2102601601
06.12.2016,CHILDREN'S SERVICES,NATIONAL FOSTERING AGENCY,"3,411.36",AGENCY FOSTERING,EXTERNAL AGENCIES AND BODIES,2102601576
06.12.2016,CHILDREN'S SERVICES,NATIONAL FOSTERING AGENCY,"4,406.34",AGENCY FOSTERING,EXTERNAL AGENCIES AND BODIES,2102601561
06.12.2016,CHILDREN'S SERVICES,NATIONAL FOSTERING AGENCY,"4,406.34",AGENCY FOSTERING,EXTERNAL AGENCIES AND BODIES,2102601573
06.12.2016,CHILDREN'S SERVICES,NATIONAL FOSTERING AGENCY,"4,406.34",AGENCY FOSTERING,EXTERNAL AGENCIES AND BODIES,2102601574
06.12.2016,CHILDREN'S SERVICES,NATIONAL FOSTERING AGENCY,"4,406.34",AGENCY FOSTERING,EXTERNAL AGENCIES AND BODIES,2102601589
06.12.2016,CHILDREN'S SERVICES,NATIONAL FOSTERING AGENCY,"4,406.34",AGENCY FOSTERING,EXTERNAL AGENCIES AND BODIES,2102601599
06.12.2016,CHILDREN'S SERVICES,NATIONAL FOSTERING AGENCY,"4,406.34",AGENCY FOSTERING,EXTERNAL AGENCIES AND BODIES,2102601628
06.12.2016,CHILDREN'S SERVICES,NATIONAL FOSTERING AGENCY,"4,627.68",AGENCY FOSTERING,EXTERNAL AGENCIES AND BODIES,2102601636
06.12.2016,CHILDREN'S SERVICES,NATIONAL FOSTERING AGENCY,"5,265.66",AGENCY FOSTERING,EXTERNAL AGENCIES AND BODIES,2102601575
06.12.2016,CHILDREN'S SERVICES,RYANCARE FOSTERING,"3,427.50",AGENCY FOSTERING,EXTERNAL AGENCIES AND BODIES,2102601629
06.12.2016,CHILDREN'S SERVICES,SUPPORTED FOSTERING SERVICES,"3,174.04",AGENCY FOSTERING,EXTERNAL AGENCIES AND BODIES,2102601604
06.12.2016,CHILDREN'S SERVICES,SUPPORTED FOSTERING SERVICES,"5,447.57",AGENCY FOSTERING,EXTERNAL AGENCIES AND BODIES,2102601614
06.12.2016,CHILDREN'S SERVICES,SWIIS FOSTER CARE LTD,697.97,AGENCY FOSTERING,EXTERNAL AGENCIES AND BODIES,2102601569
06.12.2016,CHILDREN'S SERVICES,THE XCEL 2000 PARTNERSHIP LTD,"3,248.57",AGENCY FOSTERING,EXTERNAL AGENCIES AND BODIES,2102601648
06.12.2016,CHILDREN'S SERVICES,TIME FOR CHILDREN LTD,"2,970.00",AGENCY FOSTERING,EXTERNAL AGENCIES AND BODIES,2102601570
06.12.2016,CHILDREN'S SERVICES,TIME FOR CHILDREN LTD,"3,000.00",AGENCY FOSTERING,EXTERNAL AGENCIES AND BODIES,2102601591
06.12.2016,CHILDREN'S SERVICES,WELCOME FOSTER CARE LTD,"1,700.02",AGENCY FOSTERING,EXTERNAL AGENCIES AND BODIES,2102601603
06.12.2016,CHILDREN'S SERVICES,WELCOME FOSTER CARE LTD,"3,642.90",AGENCY FOSTERING,EXTERNAL AGENCIES AND BODIES,2102601635
06.12.2016,CHILDREN'S SERVICES,YOUNG PEOPLE AT HEART LTD,"3,000.00",AGENCY FOSTERING,EXTERNAL AGENCIES AND BODIES,2102601613
06.12.2016,CHILDREN'S SERVICES,YOUNG PEOPLE AT HEART LTD,"3,000.00",AGENCY FOSTERING,EXTERNAL AGENCIES AND BODIES,2102601642
06.12.2016,CHILDREN'S SERVICES,CANTIUM RESOURCING LTD,"6,900.00",ASSISSTANT DIRECTOR (CHILDREN),RECRUITMENT ADVERTISING,5902226229
06.12.2016,CHILDREN'S SERVICES,BRAKE BROS,348.57,AYLESBURY EARLY YEARS CENTRE,CATERING MATERIALS & SUPPLIES,5902226297
06.12.2016,CHILDREN'S SERVICES,MARIAS KITCHEN,759,GENERAL CPD,REFRESHMENTS FOR MEETINGS,5902226256
06.12.2016,CHILDREN'S SERVICES,HEALTHCARE & TRANSPORT SERVICE,"49,497.75",HOME 2 SCHOOL TRANSPORT,CAB FARES,5902226287
06.12.2016,CHILDREN'S SERVICES,ALISTAIR CANTOR,480,LEGAL,LEGAL FEES & COURT COSTS,2102601669
06.12.2016,CHILDREN'S SERVICES,ESTHER MACLACHLAN,275,LEGAL,LEGAL FEES & COURT COSTS,2102601677
06.12.2016,CHILDREN'S SERVICES,ALFRED SALTER PRIMARY SCHOOL,"17,822.00",MATERNITY COVER,SCHOOLS CAPITATION,5902226239
06.12.2016,CHILDREN'S SERVICES,ST JOHNS & ST CLEMENTS CE SCHOOL,895,MATERNITY COVER,SCHOOLS CAPITATION,5902226242
06.12.2016,CHILDREN'S SERVICES,ST JOHNS & ST CLEMENTS CE SCHOOL,"2,376.00",MATERNITY COVER,SCHOOLS CAPITATION,5902226241
06.12.2016,CHILDREN'S SERVICES,ST JOHNS & ST CLEMENTS CE SCHOOL,"3,089.00",MATERNITY COVER,SCHOOLS CAPITATION,5902226243
06.12.2016,CHILDREN'S SERVICES,ST JOHNS & ST CLEMENTS CE SCHOOL,"11,611.00",MATERNITY COVER,SCHOOLS CAPITATION,5902226240
06.12.2016,CHILDREN'S SERVICES,ARC COMMUNITY TRUSTEES,450,NURSERY ED GRANT 2 Y Y O,GRANTS,2102600841
06.12.2016,CHILDREN'S SERVICES,CARMEN GRIXTI,"1,170.00",NURSERY ED GRANT 2 Y Y O,GRANTS,2102600843
06.12.2016,CHILDREN'S SERVICES,COLOURBOX CHILDCARE,630,NURSERY ED GRANT 2 Y Y O,GRANTS,2102600844
06.12.2016,CHILDREN'S SERVICES,DESTINY DAY NURSERY,"1,278.00",NURSERY ED GRANT 2 Y Y O,GRANTS,2102600845
06.12.2016,CHILDREN'S SERVICES,DULWICH OAKS MONTESSORI NURSERY SCHOOL,540,NURSERY ED GRANT 2 Y Y O,GRANTS,2102600846
06.12.2016,CHILDREN'S SERVICES,DYASON PRE-SCHOOL,300,NURSERY ED GRANT 2 Y Y O,GRANTS,2102600848
06.12.2016,CHILDREN'S SERVICES,EAST DULWICH GROVE NURSERY LTD,"10,530.00",NURSERY ED GRANT 2 Y Y O,GRANTS,2102600857
06.12.2016,CHILDREN'S SERVICES,HAVILAH DAY CARE NURSERY,"1,989.00",NURSERY ED GRANT 2 Y Y O,GRANTS,2102600849
06.12.2016,CHILDREN'S SERVICES,K & O CHILDCARE LTD,"3,150.00",NURSERY ED GRANT 2 Y Y O,GRANTS,2102600850
06.12.2016,CHILDREN'S SERVICES,LETS PLAY & LEARN NURSERY,"2,610.00",NURSERY ED GRANT 2 Y Y O,GRANTS,2102600851
06.12.2016,CHILDREN'S SERVICES,MAGIC ROUNDABOUT NURSERIES LTD,450,NURSERY ED GRANT 2 Y Y O,GRANTS,2102600853
06.12.2016,CHILDREN'S SERVICES,PEOPLES ASSOCIATION YOUTH VISION,630,NURSERY ED GRANT 2 Y Y O,GRANTS,2102600855
06.12.2016,CHILDREN'S SERVICES,1ST PLACE CHILDREN & PARENTS CENTRE,378,NURSURERY EDUCATION GRANT-3 Y.O.,GRANTS,2102600840
06.12.2016,CHILDREN'S SERVICES,DULWICH VILLAGE PRE-SCHOOL,378,NURSURERY EDUCATION GRANT-3 Y.O.,GRANTS,2102600847
06.12.2016,CHILDREN'S SERVICES,EAST DULWICH GROVE NURSERY LTD,"6,280.50",NURSURERY EDUCATION GRANT-3 Y.O.,GRANTS,2102600858
06.12.2016,CHILDREN'S SERVICES,LITTLE PILLARS MONTESSORI LTD,"1,926.00",NURSURERY EDUCATION GRANT-3 Y.O.,GRANTS,2102600852
06.12.2016,CHILDREN'S SERVICES,LONDON EARLY YEARS FOUNDATION,660,NURSURERY EDUCATION GRANT-3 Y.O.,GRANTS,2102600842
06.12.2016,CHILDREN'S SERVICES,PLAYSHACK PLAYGROUP,"8,404.80",NURSURERY EDUCATION GRANT-3 Y.O.,GRANTS,2102600854
06.12.2016,CHILDREN'S SERVICES,ROTHERHITHE PRIMARY SCHOOL,450,NURSURERY EDUCATION GRANT-3 Y.O.,GRANTS,2102600856
06.12.2016,CHILDREN'S SERVICES,THE VILLA SCHOOL & NURSERY LTD,"1,701.00",NURSURERY EDUCATION GRANT-3 Y.O.,GRANTS,2102600859
06.12.2016,CHILDREN'S SERVICES,MILLWALL FOOTBALL & ATHLETIC PLC,"1,617.00",PRIMARY ACHIEVEMENT,REFRESHMENTS FOR MEETINGS,5902226343
06.12.2016,CHILDREN'S SERVICES,FRANKHAM CONSULTANCY GROUP LTD,445.2,PROPERTY MANAGEMENT,PROFESSIONAL FEES,5902226216
06.12.2016,CHILDREN'S SERVICES,REDACTED PERSONAL DATA,"9,000.00",RESIDENTIAL,RESIDENTIAL CARE,2102601503
06.12.2016,CHILDREN'S SERVICES,SHALAMAR CHILDREN LTD,"7,200.00",RESIDENTIAL,RESIDENTIAL CARE,2102601505
06.12.2016,CHILDREN'S SERVICES,THE DRIVE CARE HOMES LTD,"12,751.20",RESIDENTIAL,RESIDENTIAL CARE,2102601504
06.12.2016,CHILDREN'S SERVICES,THE DRIVE CARE HOMES LTD,"16,267.80",RESIDENTIAL,RESIDENTIAL CARE,2102601506
06.12.2016,CHILDREN'S SERVICES,THE DRIVE CARE HOMES LTD,"16,267.97",RESIDENTIAL,RESIDENTIAL CARE,2102601507
06.12.2016,CHILDREN'S SERVICES,FRESH START SUPPORT LTD,"1,472.00",S24 CLA,EXTERNAL AGENCIES AND BODIES,2102601473
06.12.2016,CHILDREN'S SERVICES,FRESH START SUPPORT LTD,"3,428.57",S24 CLA,EXTERNAL AGENCIES AND BODIES,2102601467
06.12.2016,CHILDREN'S SERVICES,HOLMDENE HOUSING LTD,"1,480.00",S24 CLA,RESIDENTIAL CARE,2102601182
06.12.2016,CHILDREN'S SERVICES,HOLMDENE HOUSING LTD,"1,880.00",S24 CLA,RESIDENTIAL CARE,2102601186
06.12.2016,CHILDREN'S SERVICES,HOLMDENE HOUSING LTD,"1,880.00",S24 CLA,RESIDENTIAL CARE,2102601194
06.12.2016,CHILDREN'S SERVICES,LOOK AHEAD CARE AND SUPPORT LTD,"2,535.57",S24 CLA,RESIDENTIAL CARE,2102601200
06.12.2016,CHILDREN'S SERVICES,LOOK AHEAD CARE AND SUPPORT LTD,"2,897.79",S24 CLA,RESIDENTIAL CARE,2102601198
06.12.2016,CHILDREN'S SERVICES,NETPEX LTD CORPORATE SERVICES,"3,407.40",S24 CLA,EXTERNAL AGENCIES AND BODIES,2102601466
06.12.2016,CHILDREN'S SERVICES,NETPEX LTD CORPORATE SERVICES,"5,464.50",S24 CLA,EXTERNAL AGENCIES AND BODIES,2102601475
06.12.2016,CHILDREN'S SERVICES,PROPERTY ACE UK LTD,"2,592.14",S24 CLA,RESIDENTIAL CARE,2102601468
06.12.2016,CHILDREN'S SERVICES,YOUNG FUTURES,-874.2,S24 CLA,RESIDENTIAL CARE,2102601210
06.12.2016,CHILDREN'S SERVICES,YOUNG FUTURES,"2,142.90",S24 CLA,RESIDENTIAL CARE,2102601212
06.12.2016,CHILDREN'S SERVICES,YOUNG FUTURES,"2,454.00",S24 CLA,RESIDENTIAL CARE,2102601202
06.12.2016,CHILDREN'S SERVICES,YOUNG FUTURES,"2,700.00",S24 CLA,RESIDENTIAL CARE,2102601204
06.12.2016,CHILDREN'S SERVICES,YOUNG FUTURES,"2,700.00",S24 CLA,RESIDENTIAL CARE,2102601206
06.12.2016,CHILDREN'S SERVICES,HOLMDENE HOUSING LTD,"1,640.00",SEMI INDEPENDENT,RESIDENTIAL CARE,2102601192
06.12.2016,CHILDREN'S SERVICES,HOLMDENE HOUSING LTD,"1,640.00",SEMI INDEPENDENT,RESIDENTIAL CARE,2102601196
06.12.2016,CHILDREN'S SERVICES,LIBERTY CARE HOMES LTD,"-2,250.00",SEMI INDEPENDENT,RESIDENTIAL CARE,2102601502
06.12.2016,CHILDREN'S SERVICES,LIBERTY CARE HOMES LTD,"9,831.60",SEMI INDEPENDENT,RESIDENTIAL CARE,2102601498
06.12.2016,CHILDREN'S SERVICES,LIBERTY CARE HOMES LTD,"13,031.60",SEMI INDEPENDENT,RESIDENTIAL CARE,2102601490
06.12.2016,CHILDREN'S SERVICES,NETPEX LTD CORPORATE SERVICES,678.6,SEMI INDEPENDENT,EXTERNAL AGENCIES AND BODIES,2102601493
06.12.2016,CHILDREN'S SERVICES,NETPEX LTD CORPORATE SERVICES,"1,446.45",SEMI INDEPENDENT,EXTERNAL AGENCIES AND BODIES,2102601499
06.12.2016,CHILDREN'S SERVICES,NETPEX LTD CORPORATE SERVICES,"2,307.24",SEMI INDEPENDENT,EXTERNAL AGENCIES AND BODIES,2102601496
06.12.2016,CHILDREN'S SERVICES,NETPEX LTD CORPORATE SERVICES,"4,071.60",SEMI INDEPENDENT,EXTERNAL AGENCIES AND BODIES,2102601497
06.12.2016,CHILDREN'S SERVICES,NETPEX LTD CORPORATE SERVICES,"4,071.60",SEMI INDEPENDENT,EXTERNAL AGENCIES AND BODIES,2102601500
06.12.2016,CHILDREN'S SERVICES,NETPEX LTD CORPORATE SERVICES,"4,207.32",SEMI INDEPENDENT,EXTERNAL AGENCIES AND BODIES,2102601492
06.12.2016,CHILDREN'S SERVICES,RELA SUPPORT SERVICES LTD,"4,800.00",SEMI INDEPENDENT,EXTERNAL AGENCIES AND BODIES,2102601491
06.12.2016,CHILDREN'S SERVICES,THE MEDUSA PROJECT,"3,214.20",SEMI INDEPENDENT,EXTERNAL AGENCIES AND BODIES,2102601508
06.12.2016,CHILDREN'S SERVICES,LOGICOUS LTD,805.53,SPECIAL GUARDIANSHIP,EXTERNAL AGENCIES AND BODIES,5902226370
06.12.2016,CHILDREN'S SERVICES,HCP STAFFING SERVICES LTD,342.12,SPECIALIST CARE,SECTION 17 PAYMENTS TO AGENCIES/CARERS,2102601484
06.12.2016,CHILDREN'S SERVICES,INTERSERVE HEALTHCARE,"1,141.48",SPECIALIST CARE,SECTION 17 PAYMENTS TO AGENCIES/CARERS,2102601486
06.12.2016,CHILDREN'S SERVICES,THORNBURY NURSING SERVICES,"4,607.08",SPECIALIST CARE,SECTION 17 PAYMENTS TO AGENCIES/CARERS,2102601489
06.12.2016,CHILDREN'S SERVICES,AFFINITY FOSTERING SERVICES LTD,"1,692.90",STAYING PUT,EXTERNAL AGENCIES AND BODIES,2102601469
06.12.2016,CHILDREN'S SERVICES,AFFINITY FOSTERING SERVICES LTD,"1,692.90",STAYING PUT,EXTERNAL AGENCIES AND BODIES,2102601470
06.12.2016,CHILDREN'S SERVICES,COMPASS FOSTERING,"1,789.20",STAYING PUT,EXTERNAL AGENCIES AND BODIES,2102601477
06.12.2016,CHILDREN'S SERVICES,EAST SUSSEX COUNTY COUNCIL,500,STAYING PUT,EXTERNAL AGENCIES AND BODIES,2102601476
06.12.2016,CHILDREN'S SERVICES,FAMILY LIVES,"17,500.00",TACKLING TROUBLED FAMILIES,EXTERNAL AGENCIES AND BODIES,5902226368
06.12.2016,CHILDREN'S SERVICES,HOLMDENE HOUSING LTD,360,UASC SECTION 24,EXTERNAL AGENCIES AND BODIES,5902225569
06.12.2016,CHILDREN'S SERVICES,HOLMDENE HOUSING LTD,"1,480.00",UASC SECTION 24,RESIDENTIAL CARE,2102601184
06.12.2016,CHILDREN'S SERVICES,HOLMDENE HOUSING LTD,"1,480.00",UASC SECTION 24,RESIDENTIAL CARE,2102601190
06.12.2016,CHILDREN'S SERVICES,HOLMDENE HOUSING LTD,"1,880.00",UASC SECTION 24,RESIDENTIAL CARE,2102601188
06.12.2016,CHILDREN'S SERVICES,PROPERTY ACE UK LTD,"1,928.57",UASC SECTION 24,RESIDENTIAL CARE,2102601474
06.12.2016,CHILDREN'S SERVICES,YOUNG FUTURES,"2,365.80",UASC SECTION 24,RESIDENTIAL CARE,2102601208
06.12.2016,CHILDREN'S SERVICES,HOLMDENE HOUSING LTD,"1,480.00",UNACCOMPANIED ASYLUM CHILDREN 16-17,RESIDENTIAL CARE,5902226359
06.12.2016,COMMUNITIES,HADDON HALL RESIDENTS TMO,"15,000.00",HADDON HALL CO-OP,M&M ALLOWANCE CO-OPS,5902226220
06.12.2016,COMMUNITIES,HADDON HALL RESIDENTS TMO,"57,051.00",HADDON HALL CO-OP,M&M ALLOWANCE CO-OPS,5902226224
06.12.2016,COMMUNITIES,LETTING INTERNATIONAL LTD,"1,519.00",NO RECOURSE TO PUBLIC FUNDS,SECTION 17 PAYMENTS TO AGENCIES/CARERS,5902226328
06.12.2016,CUSTOMER EXPERIENCE,PARIS SMITH AND RANDALL SOLICITORS,323.9,SALES & ACQUISITIONS,LEGAL FEES & COURT COSTS,5902226301
06.12.2016,CUSTOMER EXPERIENCE,PARIS SMITH AND RANDALL SOLICITORS,323.9,SALES & ACQUISITIONS,LEGAL FEES & COURT COSTS,5902226303
06.12.2016,CUSTOMER EXPERIENCE,PARIS SMITH AND RANDALL SOLICITORS,323.9,SALES & ACQUISITIONS,LEGAL FEES & COURT COSTS,5902226303
06.12.2016,CUSTOMER EXPERIENCE,PARIS SMITH AND RANDALL SOLICITORS,323.9,SALES & ACQUISITIONS,LEGAL FEES & COURT COSTS,5902226303
06.12.2016,CUSTOMER EXPERIENCE,PARIS SMITH AND RANDALL SOLICITORS,323.9,SALES & ACQUISITIONS,LEGAL FEES & COURT COSTS,5902226304
06.12.2016,CUSTOMER EXPERIENCE,PARIS SMITH AND RANDALL SOLICITORS,323.9,SALES & ACQUISITIONS,LEGAL FEES & COURT COSTS,5902226304
06.12.2016,CUSTOMER EXPERIENCE,PARIS SMITH AND RANDALL SOLICITORS,323.9,SALES & ACQUISITIONS,LEGAL FEES & COURT COSTS,5902226306
06.12.2016,CUSTOMER EXPERIENCE,PARIS SMITH AND RANDALL SOLICITORS,323.9,SALES & ACQUISITIONS,LEGAL FEES & COURT COSTS,5902226307
06.12.2016,CUSTOMER EXPERIENCE,PARIS SMITH AND RANDALL SOLICITORS,323.9,SALES & ACQUISITIONS,LEGAL FEES & COURT COSTS,5902226310
06.12.2016,CUSTOMER EXPERIENCE,PARIS SMITH AND RANDALL SOLICITORS,323.9,SALES & ACQUISITIONS,LEGAL FEES & COURT COSTS,5902226310
06.12.2016,CUSTOMER EXPERIENCE,PARIS SMITH AND RANDALL SOLICITORS,328.11,SALES & ACQUISITIONS,LEGAL FEES & COURT COSTS,5902226301
06.12.2016,CUSTOMER EXPERIENCE,PARIS SMITH AND RANDALL SOLICITORS,328.11,SALES & ACQUISITIONS,LEGAL FEES & COURT COSTS,5902226301
06.12.2016,CUSTOMER EXPERIENCE,PARIS SMITH AND RANDALL SOLICITORS,328.11,SALES & ACQUISITIONS,LEGAL FEES & COURT COSTS,5902226301
06.12.2016,CUSTOMER EXPERIENCE,PARIS SMITH AND RANDALL SOLICITORS,328.11,SALES & ACQUISITIONS,LEGAL FEES & COURT COSTS,5902226303
06.12.2016,CUSTOMER EXPERIENCE,PARIS SMITH AND RANDALL SOLICITORS,328.11,SALES & ACQUISITIONS,LEGAL FEES & COURT COSTS,5902226303
06.12.2016,CUSTOMER EXPERIENCE,PARIS SMITH AND RANDALL SOLICITORS,328.11,SALES & ACQUISITIONS,LEGAL FEES & COURT COSTS,5902226303
06.12.2016,CUSTOMER EXPERIENCE,PARIS SMITH AND RANDALL SOLICITORS,328.11,SALES & ACQUISITIONS,LEGAL FEES & COURT COSTS,5902226303
06.12.2016,CUSTOMER EXPERIENCE,PARIS SMITH AND RANDALL SOLICITORS,328.11,SALES & ACQUISITIONS,LEGAL FEES & COURT COSTS,5902226303
06.12.2016,CUSTOMER EXPERIENCE,PARIS SMITH AND RANDALL SOLICITORS,328.11,SALES & ACQUISITIONS,LEGAL FEES & COURT COSTS,5902226303
06.12.2016,CUSTOMER EXPERIENCE,PARIS SMITH AND RANDALL SOLICITORS,328.11,SALES & ACQUISITIONS,LEGAL FEES & COURT COSTS,5902226304
06.12.2016,CUSTOMER EXPERIENCE,PARIS SMITH AND RANDALL SOLICITORS,328.11,SALES & ACQUISITIONS,LEGAL FEES & COURT COSTS,5902226304
06.12.2016,CUSTOMER EXPERIENCE,PARIS SMITH AND RANDALL SOLICITORS,328.11,SALES & ACQUISITIONS,LEGAL FEES & COURT COSTS,5902226306
06.12.2016,CUSTOMER EXPERIENCE,PARIS SMITH AND RANDALL SOLICITORS,328.11,SALES & ACQUISITIONS,LEGAL FEES & COURT COSTS,5902226306
06.12.2016,CUSTOMER EXPERIENCE,PARIS SMITH AND RANDALL SOLICITORS,328.11,SALES & ACQUISITIONS,LEGAL FEES & COURT COSTS,5902226306
06.12.2016,CUSTOMER EXPERIENCE,PARIS SMITH AND RANDALL SOLICITORS,328.11,SALES & ACQUISITIONS,LEGAL FEES & COURT COSTS,5902226306
06.12.2016,CUSTOMER EXPERIENCE,PARIS SMITH AND RANDALL SOLICITORS,328.11,SALES & ACQUISITIONS,LEGAL FEES & COURT COSTS,5902226306
06.12.2016,CUSTOMER EXPERIENCE,PARIS SMITH AND RANDALL SOLICITORS,328.11,SALES & ACQUISITIONS,LEGAL FEES & COURT COSTS,5902226306
06.12.2016,CUSTOMER EXPERIENCE,PARIS SMITH AND RANDALL SOLICITORS,328.11,SALES & ACQUISITIONS,LEGAL FEES & COURT COSTS,5902226306
06.12.2016,CUSTOMER EXPERIENCE,PARIS SMITH AND RANDALL SOLICITORS,328.11,SALES & ACQUISITIONS,LEGAL FEES & COURT COSTS,5902226307
06.12.2016,CUSTOMER EXPERIENCE,PARIS SMITH AND RANDALL SOLICITORS,328.11,SALES & ACQUISITIONS,LEGAL FEES & COURT COSTS,5902226307
06.12.2016,CUSTOMER EXPERIENCE,PARIS SMITH AND RANDALL SOLICITORS,328.11,SALES & ACQUISITIONS,LEGAL FEES & COURT COSTS,5902226307
06.12.2016,CUSTOMER EXPERIENCE,PARIS SMITH AND RANDALL SOLICITORS,328.11,SALES & ACQUISITIONS,LEGAL FEES & COURT COSTS,5902226310
06.12.2016,CUSTOMER EXPERIENCE,PARIS SMITH AND RANDALL SOLICITORS,328.11,SALES & ACQUISITIONS,LEGAL FEES & COURT COSTS,5902226310
06.12.2016,CUSTOMER EXPERIENCE HGF,FRAMA (UK) LTD,700,CORONER'S,POSTAGES,5902226375
06.12.2016,CUSTOMER EXPERIENCE HGF,MALCOLM G SANKEY,360,HOMELESS & HOUSING OPTIONS MGT,LEGAL FEES & COURT COSTS,2102601686
06.12.2016,CUSTOMER EXPERIENCE HGF,GUYS & ST THOMAS NHS FOUNDATION TRUST,"5,470.00",MORTUARY,OTHER CONTRACTORS,5902226383
06.12.2016,CUSTOMER EXPERIENCE HGF,DENHAN INTERNATIONAL LTD,"14,766.00",NIGHTLY TA (NSC),EXTERNAL AGENCIES AND BODIES,5902226329
06.12.2016,CUSTOMER EXPERIENCE HGF,EDEN ESTATES LONDON LTD,"4,770.00",NIGHTLY TA (NSC),EXTERNAL AGENCIES AND BODIES,5902226342
06.12.2016,CUSTOMER EXPERIENCE HGF,SK HOUSING LTD,"9,906.50",NIGHTLY TA (NSC),EXTERNAL AGENCIES AND BODIES,5902226325
06.12.2016,CUSTOMER EXPERIENCE HGF,STENFORD PROPERTY LTD,"39,510.00",NIGHTLY TA (NSC),EXTERNAL AGENCIES AND BODIES,5902226319
06.12.2016,ENVIRONMENT AND LEISURE,CONWAY AECOM LTD,"2,380.66",CAPITAL PS (LEISURE),CONSTRUCTION,2102601708
06.12.2016,ENVIRONMENT AND LEISURE,CONWAY AECOM LTD,"8,223.11",CAPITAL PS (LEISURE),CONSTRUCTION,2102601711
06.12.2016,ENVIRONMENT AND LEISURE,CONWAY AECOM LTD,"8,482.81",CAPITAL PS (LEISURE),CONSTRUCTION,2102601704
06.12.2016,ENVIRONMENT AND LEISURE,CONWAY AECOM LTD,"10,468.72",CAPITAL PS (LEISURE),CONSTRUCTION,2102601710
06.12.2016,ENVIRONMENT AND LEISURE,CONWAY AECOM LTD,"15,771.17",CAPITAL PS (LEISURE),CONSTRUCTION,2102601706
06.12.2016,ENVIRONMENT AND LEISURE,CONWAY AECOM LTD,"16,581.95",CAPITAL PS (LEISURE),CONSTRUCTION,2102601709
06.12.2016,ENVIRONMENT AND LEISURE,CONWAY AECOM LTD,"18,104.96",CAPITAL PS (LEISURE),CONSTRUCTION,2102601703
06.12.2016,ENVIRONMENT AND LEISURE,CONWAY AECOM LTD,"21,020.86",CAPITAL PS (LEISURE),CONSTRUCTION,2102601701
06.12.2016,ENVIRONMENT AND LEISURE,CONWAY AECOM LTD,"21,396.01",CAPITAL PS (LEISURE),CONSTRUCTION,2102601705
06.12.2016,ENVIRONMENT AND LEISURE,CONWAY AECOM LTD,"25,641.79",CAPITAL PS (LEISURE),CONSTRUCTION,2102601702
06.12.2016,ENVIRONMENT AND LEISURE,CONWAY AECOM LTD,"36,722.19",CAPITAL PS (LEISURE),CONSTRUCTION,2102601707
06.12.2016,ENVIRONMENT AND LEISURE,FABRIKAT (NOTTINGHAM) LTD,"1,715.53",CAPITAL PS (LEISURE),CONSTR'N SUB CONTRACT - NON CERTIFICATED,5902226326
06.12.2016,ENVIRONMENT AND LEISURE,JERRAM FALKUS CONSTRUCTION,"226,026.33",CAPITAL PS (LEISURE),CONSTRUCTION MAIN CONTRACT -CERTIFICATED,2102601714
06.12.2016,ENVIRONMENT AND LEISURE,LIBRA CONSTRUCTION SERVICES LTD,"27,879.65",CAPITAL PS (LEISURE),CONSTRUCTION FEES  - EXTERNAL,2102601738
06.12.2016,ENVIRONMENT AND LEISURE,MICHAEL AND PARTNERS LTD,"1,725.00",CAPITAL PS (LEISURE),CONSTRUCTION FEES  - EXTERNAL,5902226281
06.12.2016,ENVIRONMENT AND LEISURE,PLAYGROUND SERVICES LTD,"9,000.00",CAPITAL PS (LEISURE),CONSTRUCTION SITE COSTS,2102601736
06.12.2016,ENVIRONMENT AND LEISURE,TGMS LTD,"7,755.00",CAPITAL PS (LEISURE),CONSTRUCTION FEES  - EXTERNAL,5902226233
06.12.2016,ENVIRONMENT AND LEISURE,THE MORTON PARTNERSHIP LTD,440,CAPITAL PS (LEISURE),CONSTRUCTION FEES  - EXTERNAL,5902226358
06.12.2016,ENVIRONMENT DIRECTORATE,C L ROADMARKINGS LTD,"9,110.51",ENGINEERING CRAFTS,OTHER CONTRACTORS,2102601712
06.12.2016,ENVIRONMENT DIRECTORATE,SOUTHWARK NEWSPAPER LTD,264,HIGHWAYS DEVELOPMENT,MARKETING & PUBLICITY SERVICES,5902226187
06.12.2016,ENVIRONMENT DIRECTORATE,SOUTHWARK NEWSPAPER LTD,"1,464.00",HIGHWAYS DEVELOPMENT,MARKETING & PUBLICITY SERVICES,5902226186
06.12.2016,ENVIRONMENT DIRECTORATE,IMPERIAL POLYTHENE PRODUCTS LTD,811.2,MANAGEMENT TEAM,MATERIALS,5902226376
06.12.2016,ENVIRONMENT DIRECTORATE,IMPERIAL POLYTHENE PRODUCTS LTD,"1,590.00",MANAGEMENT TEAM,MATERIALS,5902226374
06.12.2016,ENVIRONMENT DIRECTORATE,1ENV SOLUTIONS LTD,313.32,PEST CONTROL-CDN A/C,MATERIALS,5902226332
06.12.2016,ENVIRONMENT DIRECTORATE,1ENV SOLUTIONS LTD,571.7,PEST CONTROL-CDN A/C,MATERIALS,5902226340
06.12.2016,ENVIRONMENT DIRECTORATE,SHIAN HOUSING ASSOCIATION LTD,"3,250.00",SAFE ACCOMMODATION PROJECT,PROFESSIONAL FEES,5902226175
06.12.2016,ENVIRONMENT DIRECTORATE,SHIAN HOUSING ASSOCIATION LTD,"3,250.00",SAFE ACCOMMODATION PROJECT,PROFESSIONAL FEES,5902226176
06.12.2016,ENVIRONMENT DIRECTORATE,SHIAN HOUSING ASSOCIATION LTD,"3,250.00",SAFE ACCOMMODATION PROJECT,PROFESSIONAL FEES,5902226177
06.12.2016,ENVIRONMENT DIRECTORATE,SHIAN HOUSING ASSOCIATION LTD,"3,250.00",SAFE ACCOMMODATION PROJECT,PROFESSIONAL FEES,5902226179
06.12.2016,ENVIRONMENT DIRECTORATE,VEOLIA ES SOUTHWARK LTD,"75,268.68",WASTE PFI,VEHICLE FUEL,5902226289
06.12.2016,ENVIRONMENT DIRECTORATE,VEOLIA ES SOUTHWARK LTD,"1,885,155.27",WASTE PFI,PFI/PPP PAYMENTS,5902226291
06.12.2016,ENVIRONMENT DIRECTORATE,VEOLIA ES SOUTHWARK LTD,"1,900,133.39",WASTE PFI,PFI/PPP PAYMENTS,5902226292
06.12.2016,F & C S EXCLUDING CORPORATE BUDGETS,DSI BILLING SERVICES LTD,"2,050.50",ADMINISTRATIVE SUPPORT,POSTAGES,5902226294
06.12.2016,F & C S EXCLUDING CORPORATE BUDGETS,ELIOR UK PLC,392,ADMINISTRATIVE SUPPORT,REFRESHMENTS FOR MEETINGS,5902226299
06.12.2016,F & C S EXCLUDING CORPORATE BUDGETS,NORTHGATE PUBLIC SERVICES (UK) LTD,"6,969.58",ADMINISTRATIVE SUPPORT,SOFTWARE,5902226237
06.12.2016,F & C S EXCLUDING CORPORATE BUDGETS,BRITISH GAS BUSINESS,-878.45,PAYMENTS CONTROL,OFFICE EXPENSES,2102601745
06.12.2016,F & C S EXCLUDING CORPORATE BUDGETS,LONDON BRIDGE BUSINESS IMPROVEMENT,"81,261.42",TEAM LONDON BRIDGE,EXTERNAL AGENCIES AND BODIES,5902226300
06.12.2016,HOUSING,BCS (ELECTRICAL & BUILDING) LTD,"21,097.92",BCS,MANUAL CREDITORS,5902226282
06.12.2016,HOUSING,H E OLBY & CO LTD,"1,080.00",STORES,CREDITORS -GR/IR CLEARING ACCOUNT,5902226208
06.12.2016,HOUSING,H E OLBY & CO LTD,"1,080.00",STORES,CREDITORS -GR/IR CLEARING ACCOUNT,5902226208
06.12.2016,HOUSING HRA,BEDE HOUSE ASSOCIATION,850,CAPITAL PS (HRA),CONSTRUCTION FEES  - EXTERNAL,5902226315
06.12.2016,HOUSING HRA,CALFORD SEADEN LLP,"1,723.50",CAPITAL PS (HRA),CONSTRUCTION FEES  - EXTERNAL,5902226305
06.12.2016,HOUSING HRA,CALFORD SEADEN LLP,"2,249.88",CAPITAL PS (HRA),CONSTRUCTION FEES  - EXTERNAL,5902226218
06.12.2016,HOUSING HRA,CALFORD SEADEN LLP,"3,272.44",CAPITAL PS (HRA),CONSTRUCTION FEES  - EXTERNAL,5902226302
06.12.2016,HOUSING HRA,CALFORD SEADEN LLP,"8,294.62",CAPITAL PS (HRA),CONSTRUCTION FEES  - EXTERNAL,5902226217
06.12.2016,HOUSING HRA,CALFORD SEADEN LLP,"13,395.31",CAPITAL PS (HRA),CONSTRUCTION FEES  - EXTERNAL,5902226285
06.12.2016,HOUSING HRA,HAWORTH TOMPKINS LTD,"22,920.00",CAPITAL PS (HRA),CONSTRUCTION FEES  - EXTERNAL,5902226227
06.12.2016,HOUSING HRA,HAWORTH TOMPKINS LTD,"47,850.00",CAPITAL PS (HRA),CONSTRUCTION FEES  - EXTERNAL,5902226230
06.12.2016,HOUSING HRA,HAWORTH TOMPKINS LTD,"52,090.00",CAPITAL PS (HRA),CONSTRUCTION FEES  - EXTERNAL,5902226232
06.12.2016,HOUSING HRA,KEEPMOAT REGENERATION (APOLLO) LTD,"55,891.10",CAPITAL PS (HRA),CONSTRUCTION MAIN CONTRACT -CERTIFICATED,2102601739
06.12.2016,HOUSING HRA,KEEPMOAT REGENERATION (APOLLO) LTD,"59,204.33",CAPITAL PS (HRA),CONSTRUCTION MAIN CONTRACT -CERTIFICATED,2102601716
06.12.2016,HOUSING HRA,KEEPMOAT REGENERATION (APOLLO) LTD,"69,366.20",CAPITAL PS (HRA),CONSTRUCTION MAIN CONTRACT -CERTIFICATED,2102601744
06.12.2016,HOUSING HRA,KEEPMOAT REGENERATION (APOLLO) LTD,"90,333.01",CAPITAL PS (HRA),CONSTRUCTION MAIN CONTRACT -CERTIFICATED,2102601715
06.12.2016,HOUSING HRA,KEEPMOAT REGENERATION (APOLLO) LTD,"110,708.31",CAPITAL PS (HRA),CONSTRUCTION MAIN CONTRACT -CERTIFICATED,2102601743
06.12.2016,HOUSING HRA,KEEPMOAT REGENERATION (APOLLO) LTD,"205,990.49",CAPITAL PS (HRA),CONSTRUCTION MAIN CONTRACT -CERTIFICATED,2102601742
06.12.2016,HOUSING HRA,KEEPMOAT REGENERATION (APOLLO) LTD,"345,796.10",CAPITAL PS (HRA),CONSTRUCTION MAIN CONTRACT -CERTIFICATED,2102601741
06.12.2016,HOUSING HRA,MICHAEL CONSTRUCTION LTD,"5,465.00",CAPITAL PS (HRA),CONST'N MAIN CONTRACT - NON CERTIFICATED,2102601664
06.12.2016,HOUSING HRA,MICHAEL CONSTRUCTION LTD,"5,770.00",CAPITAL PS (HRA),CONST'N MAIN CONTRACT - NON CERTIFICATED,2102601662
06.12.2016,HOUSING HRA,MICHAEL CONSTRUCTION LTD,"5,820.00",CAPITAL PS (HRA),CONST'N MAIN CONTRACT - NON CERTIFICATED,2102601666
06.12.2016,HOUSING HRA,MICHAEL CONSTRUCTION LTD,"6,185.00",CAPITAL PS (HRA),CONST'N MAIN CONTRACT - NON CERTIFICATED,2102601661
06.12.2016,HOUSING HRA,MICHAEL CONSTRUCTION LTD,"6,365.00",CAPITAL PS (HRA),CONST'N MAIN CONTRACT - NON CERTIFICATED,2102601663
06.12.2016,HOUSING HRA,MICHAEL CONSTRUCTION LTD,"6,780.00",CAPITAL PS (HRA),CONST'N MAIN CONTRACT - NON CERTIFICATED,2102601665
06.12.2016,HOUSING HRA,MICHAEL CONSTRUCTION LTD,"11,695.00",CAPITAL PS (HRA),CONST'N MAIN CONTRACT - NON CERTIFICATED,2102601660
06.12.2016,HOUSING HRA,MORGAN SINDALL PLC,"119,846.00",CAPITAL PS (HRA),CONSTRUCTION MAIN CONTRACT -CERTIFICATED,2102601726
06.12.2016,HOUSING HRA,OVE ARUP & PARTNERS LTD,"18,926.50",CAPITAL PS (HRA),CONSTRUCTION FEES  - EXTERNAL,5902226284
06.12.2016,HOUSING HRA,POTTER RAPER AND PARTNERS,710.65,CAPITAL PS (HRA),CONSTRUCTION FEES  - EXTERNAL,5902226178
06.12.2016,HOUSING HRA,POTTER RAPER AND PARTNERS,"5,776.73",CAPITAL PS (HRA),CONSTRUCTION FEES  - EXTERNAL,5902226205
06.12.2016,HOUSING HRA,PROFILE CONSTRUCTION CONSULTANTS LTD,527.75,CAPITAL PS (HRA),CONSTRUCTION FEES  - EXTERNAL,5902226348
06.12.2016,HOUSING HRA,TIBBALDS PLANNING & URBAN DESIGN LTD,573,CAPITAL PS (REGEN),CONSTRUCTION FEES,5902226377
06.12.2016,HOUSING HRA,TIBBALDS PLANNING & URBAN DESIGN LTD,871.5,CAPITAL PS (REGEN),CONSTRUCTION FEES,5902226379
06.12.2016,HOUSING HRA,TIBBALDS PLANNING & URBAN DESIGN LTD,"1,084.00",CAPITAL PS (REGEN),CONSTRUCTION FEES,5902226378
06.12.2016,LEISURE DIRECTORATE,HANNAH MAULE-FFINCH,300,CLIENT SERV(GRNS MAIN),MARKETING & PUBLICITY SERVICES,5902226293
06.12.2016,LEISURE DIRECTORATE,BRITISH GAS BUSINESS,"1,001.07",DAMILOLA TAYLOR CENTRE,ELECTRICITY,5902226309
06.12.2016,LEISURE DIRECTORATE,BRITISH GAS BUSINESS,"1,025.79",DAMILOLA TAYLOR CENTRE,ELECTRICITY,5902226309
06.12.2016,LEISURE DIRECTORATE,SIMPLY HIRE LTD,"1,001.44",FACILITIES MAINTENANCE,BUILDING R&M,5902226185
06.12.2016,LEISURE DIRECTORATE,BOURNE AMENITY LTD,"1,608.75",HOMERSTALL ROAD SPORTS GROUND,PROFESSIONAL FEES,5902226290
06.12.2016,LEISURE DIRECTORATE,MAGNA  LARGE PRINT BOOKS,470.9,STOCK SERVICES,SUBSCRIPTIONS,5902226355
06.12.2016,MODERNISATION HGF,SUNITA SHARMA,"1,125.00",MEMBER DEVELOPMENT,TRAINING,5902226308
06.12.2016,MODERNISATION HGF,VEOLIA ES (UK)LTD,"6,140.28",REFUSE - VEOLIA,BUILDING R&M,5902226367
06.12.2016,MODERNISATION HGF,CAPITA SECURE INFORMATION,"261,604.73",TECHNOLOGY,COMMS & COMPUTING CONTRACT CHARGES,5902226357
06.12.2016,PLANNING AND TRANSPORT,PARAGON GROUP UK LTD,956.84,SUPPORT SERVICES,OFFICE EXPENSES,5902226257
06.12.2016,RESIDENT SERVICES,CARLISLE SECURITY SERVICES LTD,"10,216.80",CAMBERWELL,SECURITY SERVICES,5902226341
06.12.2016,RESIDENT SERVICES,ANTHONY GOLD SOLICITORS,"1,650.00",OPERATIONS/OFFICES ACCOMMODATION,LEGAL FEES & COURT COSTS,2102601670
06.12.2016,RESIDENT SERVICES,CLARKE BARNES SOLICITORS LLP,500,OPERATIONS/OFFICES ACCOMMODATION,LEGAL FEES & COURT COSTS,2102601675
06.12.2016,RESIDENT SERVICES,CLARKE BARNES SOLICITORS LLP,"3,069.12",OPERATIONS/OFFICES ACCOMMODATION,LEGAL FEES & COURT COSTS,2102601674
06.12.2016,RESIDENT SERVICES,LISA CLARKE,290,OPERATIONS/OFFICES ACCOMMODATION,LEGAL FEES & COURT COSTS,2102601683
06.12.2016,RESIDENT SERVICES,LISA CLARKE,450,OPERATIONS/OFFICES ACCOMMODATION,LEGAL FEES & COURT COSTS,2102601682
06.12.2016,RESIDENT SERVICES,LISA CLARKE,"1,212.00",OPERATIONS/OFFICES ACCOMMODATION,LEGAL FEES & COURT COSTS,2102601684
06.12.2016,RESIDENT SERVICES,MALCOLM G SANKEY,420,OPERATIONS/OFFICES ACCOMMODATION,LEGAL FEES & COURT COSTS,2102601685
06.12.2016,RESIDENT SERVICES,MALCOLM G SANKEY,420,OPERATIONS/OFFICES ACCOMMODATION,LEGAL FEES & COURT COSTS,2102601687
06.12.2016,RESIDENT SERVICES,STEPHEN EVANS,340,OPERATIONS/OFFICES ACCOMMODATION,LEGAL FEES & COURT COSTS,2102601697
06.12.2016,RESIDENT SERVICES,STEPHEN EVANS,850,OPERATIONS/OFFICES ACCOMMODATION,LEGAL FEES & COURT COSTS,2102601699
06.12.2016,RESIDENT SERVICES,STEPHEN EVANS,"1,250.00",OPERATIONS/OFFICES ACCOMMODATION,LEGAL FEES & COURT COSTS,2102601700
06.12.2016,RESIDENT SERVICES,STEPHEN EVANS,"1,500.00",OPERATIONS/OFFICES ACCOMMODATION,LEGAL FEES & COURT COSTS,2102601696
06.12.2016,RESIDENT SERVICES,JOANNE MCELROY,450,SPECIAL INVESTIGATIONS,LEGAL FEES & COURT COSTS,2102601678
06.12.2016,RESIDENT SERVICES,LISA CLARKE,300,SPECIAL INVESTIGATIONS,LEGAL FEES & COURT COSTS,2102601681
06.12.2016,RESIDENT SERVICES,SHAW KELLY,293,SPECIAL INVESTIGATIONS,LEGAL FEES & COURT COSTS,2102601688
06.12.2016,RESIDENT SERVICES,SHAW KELLY,455,SPECIAL INVESTIGATIONS,LEGAL FEES & COURT COSTS,2102601693
06.12.2016,RESIDENT SERVICES,SHAW KELLY,553,SPECIAL INVESTIGATIONS,LEGAL FEES & COURT COSTS,2102601690
06.12.2016,RESIDENT SERVICES,SHAW KELLY,600,SPECIAL INVESTIGATIONS,LEGAL FEES & COURT COSTS,2102601695
06.12.2016,RESIDENT SERVICES,SHAW KELLY,800,SPECIAL INVESTIGATIONS,LEGAL FEES & COURT COSTS,2102601691
06.12.2016,RESIDENT SERVICES,SHAW KELLY,800,SPECIAL INVESTIGATIONS,LEGAL FEES & COURT COSTS,2102601694
06.12.2016,SOUTHWARK BUILDING SERVICES,BUDMAX CONSTRUCTION LTD,"12,408.83",BUSINESS SUPPORT,OTHER CONTRACTORS,2102601746
06.12.2016,STRATEGIC FINANCING BUDGETS,4 FUTURES PHASE 2 LTD,"224,861.91",ONGOING SCHOOLS PFI COSTS,PFI/PPP PAYMENTS,5902226336
06.12.2016,STRATEGIC FINANCING BUDGETS,4 FUTURES PHASE 2 LTD,"226,151.11",ONGOING SCHOOLS PFI COSTS,PFI/PPP PAYMENTS,5902226336
07.12.2016,ADULT SOCIAL CARE,NCB SOLUTIONS LTD,450,DIRECT PAYMENTS SUPPORT WORKERS,EXTERNAL AGENCIES AND BODIES,5902226551
07.12.2016,ADULT SOCIAL CARE,NESTOR PRIMECARE SERVICES LTD,"98,673.12",EXTRA CARE CONTRACT.,HOMECARE - SPOT,5902226479
07.12.2016,ADULT SOCIAL CARE,OFSTED,"2,519.00",ORIENT STREET,EXTERNAL AGENCIES AND BODIES,5902226553
07.12.2016,ADULT SOCIAL CARE,THE CONSORTIUM,381.98,ORIENT STREET,EQUIPMENT PURCHASE & REPAIR,5902226650
07.12.2016,ADULT SOCIAL CARE,SWK AFRICAN FAMILY SUPPORT SVCS,"1,965.60",PERSONAL BUDGET - SOCIAL CARE,DISCRETIONARY FLEXIBLE FEES & INCOME,2102602769
07.12.2016,ADULT SOCIAL CARE,APETITO LTD,"3,690.54",WELFARE CATERING,OTHER CONTRACTORS,5902226598
07.12.2016,ADULT SOCIAL CARE,APETITO LTD,"5,164.09",WELFARE CATERING,OTHER CONTRACTORS,5902226594
07.12.2016,ADULT SOCIAL CARE,APETITO LTD,"5,403.13",WELFARE CATERING,OTHER CONTRACTORS,5902226595
07.12.2016,ADULT SOCIAL CARE,APETITO LTD,"23,744.91",WELFARE CATERING,OTHER CONTRACTORS,5902226598
07.12.2016,ADULT SOCIAL CARE,APETITO LTD,"25,777.44",WELFARE CATERING,OTHER CONTRACTORS,5902226594
07.12.2016,ASSET MANAGEMENT,A & E ELKINS LTD,"43,278.88",FRA WORKS,ESTATE LIGHTING R&M,2102602842
07.12.2016,ASSET MANAGEMENT,CAMERON CONSULTING (UK) LTD,495,INVESTMENT MANAGER,PROFESSIONAL FEES,5902226577
07.12.2016,ASSET MANAGEMENT,LONDON TOOLS LIMITED,"1,633.50",R&M CONTRACTS (NORTH),MATERIALS,5902226522
07.12.2016,ASSET MANAGEMENT,LONDON TOOLS LIMITED,"1,633.50",R&M CONTRACTS (NORTH),MATERIALS,5902226534
07.12.2016,BUSINESS SUPPORT SERVICES CO-ORDINATION,CIBSE PUBLICATIONS,300,ENERGY EFFICENCY,SUBSCRIPTIONS,5902226449
07.12.2016,CENTRAL FUNCTIONS,SPOKEMEAD MAINTENANCE LTD,-714.19,GARAGE REPAIRS,BUILDING R&M,5902226947
07.12.2016,CENTRAL FUNCTIONS,SPOKEMEAD MAINTENANCE LTD,714.19,GARAGE REPAIRS,BUILDING R&M,5902226327
07.12.2016,CENTRAL FUNCTIONS,STANDAGE & CO LTD,"5,710.43",GARAGE REPAIRS,BUILDING R&M,2102602844
07.12.2016,CENTRAL FUNCTIONS,HMCTS,335,HOME OWNERSHIP,LEGAL FEES & COURT COSTS,5902226623
07.12.2016,CENTRAL FUNCTIONS,INSPIRATIONAL IDEAS LTD,"1,979.36",TENANTS FUND,TRAINING,5902226637
07.12.2016,CHIEF EXECUTIVE,AGB ENVIRONMENTAL LTD,"1,525.00",CAPITAL PS (REGEN),CONSTRUCTION FEES,5902226438
07.12.2016,CHIEF EXECUTIVE,LANDOLT & BROWN,490,CAPITAL PS (REGEN),CONSTRUCTION FEES,5902226567
07.12.2016,CHIEF EXECUTIVE,LANDOLT & BROWN,"15,010.00",CAPITAL PS (REGEN),CONSTRUCTION FEES,5902226567
07.12.2016,CHIEF EXECUTIVE'S OFFICE,CRESPO DESIGN LTD,"1,980.00",BUSINESS SUPPORT,MARKETING & PUBLICITY SERVICES,5902226497
07.12.2016,CHILDREN AND ADULT,ECRIS SOLUTIONS LTD,"8,400.00",CAPITAL PS (STRAT SERV),ICT ACQUISITION FEES,5902226421
07.12.2016,CHILDREN'S SERVICES,REDACTED PERSONAL DATA,252.9,ADOPTION PLACEMENTS & INTER AGENCY,PAYMENTS TO CARERS,2102602324
07.12.2016,CHILDREN'S SERVICES,REDACTED PERSONAL DATA,253.56,ADOPTION PLACEMENTS & INTER AGENCY,PAYMENTS TO CARERS,2102602294
07.12.2016,CHILDREN'S SERVICES,REDACTED PERSONAL DATA,255.22,ADOPTION PLACEMENTS & INTER AGENCY,PAYMENTS TO CARERS,2102602351
07.12.2016,CHILDREN'S SERVICES,REDACTED PERSONAL DATA,255.22,ADOPTION PLACEMENTS & INTER AGENCY,PAYMENTS TO CARERS,2102602375
07.12.2016,CHILDREN'S SERVICES,REDACTED PERSONAL DATA,255.22,ADOPTION PLACEMENTS & INTER AGENCY,PAYMENTS TO CARERS,2102602329
07.12.2016,CHILDREN'S SERVICES,REDACTED PERSONAL DATA,256.54,ADOPTION PLACEMENTS & INTER AGENCY,PAYMENTS TO CARERS,2102602331
07.12.2016,CHILDREN'S SERVICES,REDACTED PERSONAL DATA,263.24,ADOPTION PLACEMENTS & INTER AGENCY,PAYMENTS TO CARERS,2102602244
07.12.2016,CHILDREN'S SERVICES,REDACTED PERSONAL DATA,263.24,ADOPTION PLACEMENTS & INTER AGENCY,PAYMENTS TO CARERS,2102602357
07.12.2016,CHILDREN'S SERVICES,REDACTED PERSONAL DATA,269.22,ADOPTION PLACEMENTS & INTER AGENCY,PAYMENTS TO CARERS,2102602283
07.12.2016,CHILDREN'S SERVICES,REDACTED PERSONAL DATA,275.1,ADOPTION PLACEMENTS & INTER AGENCY,PAYMENTS TO CARERS,2102602348
07.12.2016,CHILDREN'S SERVICES,REDACTED PERSONAL DATA,278.52,ADOPTION PLACEMENTS & INTER AGENCY,PAYMENTS TO CARERS,2102602300
07.12.2016,CHILDREN'S SERVICES,REDACTED PERSONAL DATA,293.26,ADOPTION PLACEMENTS & INTER AGENCY,PAYMENTS TO CARERS,2102602345
07.12.2016,CHILDREN'S SERVICES,REDACTED PERSONAL DATA,293.98,ADOPTION PLACEMENTS & INTER AGENCY,PAYMENTS TO CARERS,2102602396
07.12.2016,CHILDREN'S SERVICES,REDACTED PERSONAL DATA,303.32,ADOPTION PLACEMENTS & INTER AGENCY,PAYMENTS TO CARERS,2102602328
07.12.2016,CHILDREN'S SERVICES,REDACTED PERSONAL DATA,316.5,ADOPTION PLACEMENTS & INTER AGENCY,PAYMENTS TO CARERS,2102602355
07.12.2016,CHILDREN'S SERVICES,REDACTED PERSONAL DATA,316.5,ADOPTION PLACEMENTS & INTER AGENCY,PAYMENTS TO CARERS,2102602383
07.12.2016,CHILDREN'S SERVICES,REDACTED PERSONAL DATA,329.16,ADOPTION PLACEMENTS & INTER AGENCY,PAYMENTS TO CARERS,2102602250
07.12.2016,CHILDREN'S SERVICES,REDACTED PERSONAL DATA,329.16,ADOPTION PLACEMENTS & INTER AGENCY,PAYMENTS TO CARERS,2102602325
07.12.2016,CHILDREN'S SERVICES,REDACTED PERSONAL DATA,329.42,ADOPTION PLACEMENTS & INTER AGENCY,PAYMENTS TO CARERS,2102602319
07.12.2016,CHILDREN'S SERVICES,REDACTED PERSONAL DATA,352.74,ADOPTION PLACEMENTS & INTER AGENCY,PAYMENTS TO CARERS,2102602261
07.12.2016,CHILDREN'S SERVICES,REDACTED PERSONAL DATA,354.76,ADOPTION PLACEMENTS & INTER AGENCY,PAYMENTS TO CARERS,2102602400
07.12.2016,CHILDREN'S SERVICES,REDACTED PERSONAL DATA,359.44,ADOPTION PLACEMENTS & INTER AGENCY,PAYMENTS TO CARERS,2102602393
07.12.2016,CHILDREN'S SERVICES,REDACTED PERSONAL DATA,359.44,ADOPTION PLACEMENTS & INTER AGENCY,PAYMENTS TO CARERS,2102602353
07.12.2016,CHILDREN'S SERVICES,REDACTED PERSONAL DATA,368.52,ADOPTION PLACEMENTS & INTER AGENCY,PAYMENTS TO CARERS,2102602401
07.12.2016,CHILDREN'S SERVICES,REDACTED PERSONAL DATA,375.54,ADOPTION PLACEMENTS & INTER AGENCY,PAYMENTS TO CARERS,2102602369
07.12.2016,CHILDREN'S SERVICES,REDACTED PERSONAL DATA,375.54,ADOPTION PLACEMENTS & INTER AGENCY,PAYMENTS TO CARERS,2102602334
07.12.2016,CHILDREN'S SERVICES,REDACTED PERSONAL DATA,375.54,ADOPTION PLACEMENTS & INTER AGENCY,PAYMENTS TO CARERS,2102602390
07.12.2016,CHILDREN'S SERVICES,REDACTED PERSONAL DATA,375.54,ADOPTION PLACEMENTS & INTER AGENCY,PAYMENTS TO CARERS,2102602307
07.12.2016,CHILDREN'S SERVICES,REDACTED PERSONAL DATA,375.54,ADOPTION PLACEMENTS & INTER AGENCY,PAYMENTS TO CARERS,2102602264
07.12.2016,CHILDREN'S SERVICES,REDACTED PERSONAL DATA,375.54,ADOPTION PLACEMENTS & INTER AGENCY,PAYMENTS TO CARERS,2102602358
07.12.2016,CHILDREN'S SERVICES,REDACTED PERSONAL DATA,375.54,ADOPTION PLACEMENTS & INTER AGENCY,PAYMENTS TO CARERS,2102602311
07.12.2016,CHILDREN'S SERVICES,REDACTED PERSONAL DATA,375.54,ADOPTION PLACEMENTS & INTER AGENCY,PAYMENTS TO CARERS,2102602321
07.12.2016,CHILDREN'S SERVICES,REDACTED PERSONAL DATA,375.54,ADOPTION PLACEMENTS & INTER AGENCY,PAYMENTS TO CARERS,2102602371
07.12.2016,CHILDREN'S SERVICES,REDACTED PERSONAL DATA,382.3,ADOPTION PLACEMENTS & INTER AGENCY,PAYMENTS TO CARERS,2102602391
07.12.2016,CHILDREN'S SERVICES,REDACTED PERSONAL DATA,382.3,ADOPTION PLACEMENTS & INTER AGENCY,PAYMENTS TO CARERS,2102602262
07.12.2016,CHILDREN'S SERVICES,REDACTED PERSONAL DATA,382.3,ADOPTION PLACEMENTS & INTER AGENCY,PAYMENTS TO CARERS,2102602313
07.12.2016,CHILDREN'S SERVICES,REDACTED PERSONAL DATA,386.16,ADOPTION PLACEMENTS & INTER AGENCY,PAYMENTS TO CARERS,2102602285
07.12.2016,CHILDREN'S SERVICES,REDACTED PERSONAL DATA,390.26,ADOPTION PLACEMENTS & INTER AGENCY,PAYMENTS TO CARERS,2102602292
07.12.2016,CHILDREN'S SERVICES,REDACTED PERSONAL DATA,400.18,ADOPTION PLACEMENTS & INTER AGENCY,PAYMENTS TO CARERS,2102602282
07.12.2016,CHILDREN'S SERVICES,REDACTED PERSONAL DATA,400.84,ADOPTION PLACEMENTS & INTER AGENCY,PAYMENTS TO CARERS,2102602299
07.12.2016,CHILDREN'S SERVICES,REDACTED PERSONAL DATA,404.46,ADOPTION PLACEMENTS & INTER AGENCY,PAYMENTS TO CARERS,2102602398
07.12.2016,CHILDREN'S SERVICES,REDACTED PERSONAL DATA,405.42,ADOPTION PLACEMENTS & INTER AGENCY,PAYMENTS TO CARERS,2102602343
07.12.2016,CHILDREN'S SERVICES,REDACTED PERSONAL DATA,409.02,ADOPTION PLACEMENTS & INTER AGENCY,PAYMENTS TO CARERS,2102602316
07.12.2016,CHILDREN'S SERVICES,REDACTED PERSONAL DATA,409.02,ADOPTION PLACEMENTS & INTER AGENCY,PAYMENTS TO CARERS,2102602326
07.12.2016,CHILDREN'S SERVICES,REDACTED PERSONAL DATA,443,ADOPTION PLACEMENTS & INTER AGENCY,PAYMENTS TO CARERS,2102602298
07.12.2016,CHILDREN'S SERVICES,REDACTED PERSONAL DATA,451.8,ADOPTION PLACEMENTS & INTER AGENCY,PAYMENTS TO CARERS,2102602246
07.12.2016,CHILDREN'S SERVICES,REDACTED PERSONAL DATA,453.24,ADOPTION PLACEMENTS & INTER AGENCY,PAYMENTS TO CARERS,2102602273
07.12.2016,CHILDREN'S SERVICES,REDACTED PERSONAL DATA,453.24,ADOPTION PLACEMENTS & INTER AGENCY,PAYMENTS TO CARERS,2102602251
07.12.2016,CHILDREN'S SERVICES,REDACTED PERSONAL DATA,457.14,ADOPTION PLACEMENTS & INTER AGENCY,PAYMENTS TO CARERS,2102602247
07.12.2016,CHILDREN'S SERVICES,REDACTED PERSONAL DATA,465.48,ADOPTION PLACEMENTS & INTER AGENCY,PAYMENTS TO CARERS,2102602318
07.12.2016,CHILDREN'S SERVICES,REDACTED PERSONAL DATA,465.52,ADOPTION PLACEMENTS & INTER AGENCY,PAYMENTS TO CARERS,2102602323
07.12.2016,CHILDREN'S SERVICES,REDACTED PERSONAL DATA,465.52,ADOPTION PLACEMENTS & INTER AGENCY,PAYMENTS TO CARERS,2102602335
07.12.2016,CHILDREN'S SERVICES,REDACTED PERSONAL DATA,465.54,ADOPTION PLACEMENTS & INTER AGENCY,PAYMENTS TO CARERS,2102602308
07.12.2016,CHILDREN'S SERVICES,REDACTED PERSONAL DATA,465.54,ADOPTION PLACEMENTS & INTER AGENCY,PAYMENTS TO CARERS,2102602380
07.12.2016,CHILDREN'S SERVICES,REDACTED PERSONAL DATA,465.54,ADOPTION PLACEMENTS & INTER AGENCY,PAYMENTS TO CARERS,2102602360
07.12.2016,CHILDREN'S SERVICES,REDACTED PERSONAL DATA,465.54,ADOPTION PLACEMENTS & INTER AGENCY,PAYMENTS TO CARERS,2102602270
07.12.2016,CHILDREN'S SERVICES,REDACTED PERSONAL DATA,465.54,ADOPTION PLACEMENTS & INTER AGENCY,PAYMENTS TO CARERS,2102602365
07.12.2016,CHILDREN'S SERVICES,REDACTED PERSONAL DATA,468.46,ADOPTION PLACEMENTS & INTER AGENCY,PAYMENTS TO CARERS,2102602384
07.12.2016,CHILDREN'S SERVICES,REDACTED PERSONAL DATA,484.92,ADOPTION PLACEMENTS & INTER AGENCY,PAYMENTS TO CARERS,2102602340
07.12.2016,CHILDREN'S SERVICES,REDACTED PERSONAL DATA,485.22,ADOPTION PLACEMENTS & INTER AGENCY,PAYMENTS TO CARERS,2102602263
07.12.2016,CHILDREN'S SERVICES,REDACTED PERSONAL DATA,502,ADOPTION PLACEMENTS & INTER AGENCY,PAYMENTS TO CARERS,2102602258
07.12.2016,CHILDREN'S SERVICES,REDACTED PERSONAL DATA,512.02,ADOPTION PLACEMENTS & INTER AGENCY,PAYMENTS TO CARERS,2102602276
07.12.2016,CHILDREN'S SERVICES,REDACTED PERSONAL DATA,513.54,ADOPTION PLACEMENTS & INTER AGENCY,PAYMENTS TO CARERS,2102602337
07.12.2016,CHILDREN'S SERVICES,REDACTED PERSONAL DATA,530,ADOPTION PLACEMENTS & INTER AGENCY,PAYMENTS TO CARERS,2102602349
07.12.2016,CHILDREN'S SERVICES,REDACTED PERSONAL DATA,534.54,ADOPTION PLACEMENTS & INTER AGENCY,PAYMENTS TO CARERS,2102602394
07.12.2016,CHILDREN'S SERVICES,REDACTED PERSONAL DATA,552.16,ADOPTION PLACEMENTS & INTER AGENCY,PAYMENTS TO CARERS,2102602392
07.12.2016,CHILDREN'S SERVICES,REDACTED PERSONAL DATA,559.06,ADOPTION PLACEMENTS & INTER AGENCY,PAYMENTS TO CARERS,2102602395
07.12.2016,CHILDREN'S SERVICES,REDACTED PERSONAL DATA,588.42,ADOPTION PLACEMENTS & INTER AGENCY,PAYMENTS TO CARERS,2102602254
07.12.2016,CHILDREN'S SERVICES,REDACTED PERSONAL DATA,618.04,ADOPTION PLACEMENTS & INTER AGENCY,PAYMENTS TO CARERS,2102602253
07.12.2016,CHILDREN'S SERVICES,REDACTED PERSONAL DATA,626,ADOPTION PLACEMENTS & INTER AGENCY,PAYMENTS TO CARERS,2102602271
07.12.2016,CHILDREN'S SERVICES,REDACTED PERSONAL DATA,635.34,ADOPTION PLACEMENTS & INTER AGENCY,PAYMENTS TO CARERS,2102602366
07.12.2016,CHILDREN'S SERVICES,REDACTED PERSONAL DATA,635.34,ADOPTION PLACEMENTS & INTER AGENCY,PAYMENTS TO CARERS,2102602293
07.12.2016,CHILDREN'S SERVICES,REDACTED PERSONAL DATA,637.94,ADOPTION PLACEMENTS & INTER AGENCY,PAYMENTS TO CARERS,2102602290
07.12.2016,CHILDREN'S SERVICES,REDACTED PERSONAL DATA,652.9,ADOPTION PLACEMENTS & INTER AGENCY,PAYMENTS TO CARERS,2102602341
07.12.2016,CHILDREN'S SERVICES,REDACTED PERSONAL DATA,652.9,ADOPTION PLACEMENTS & INTER AGENCY,PAYMENTS TO CARERS,2102602368
07.12.2016,CHILDREN'S SERVICES,REDACTED PERSONAL DATA,653.06,ADOPTION PLACEMENTS & INTER AGENCY,PAYMENTS TO CARERS,2102602289
07.12.2016,CHILDREN'S SERVICES,REDACTED PERSONAL DATA,660,ADOPTION PLACEMENTS & INTER AGENCY,PAYMENTS TO CARERS,2102602312
07.12.2016,CHILDREN'S SERVICES,REDACTED PERSONAL DATA,670.9,ADOPTION PLACEMENTS & INTER AGENCY,PAYMENTS TO CARERS,2102602305
07.12.2016,CHILDREN'S SERVICES,REDACTED PERSONAL DATA,695.04,ADOPTION PLACEMENTS & INTER AGENCY,PAYMENTS TO CARERS,2102602259
07.12.2016,CHILDREN'S SERVICES,REDACTED PERSONAL DATA,695.12,ADOPTION PLACEMENTS & INTER AGENCY,PAYMENTS TO CARERS,2102602274
07.12.2016,CHILDREN'S SERVICES,REDACTED PERSONAL DATA,705.24,ADOPTION PLACEMENTS & INTER AGENCY,PAYMENTS TO CARERS,2102602382
07.12.2016,CHILDREN'S SERVICES,REDACTED PERSONAL DATA,712.3,ADOPTION PLACEMENTS & INTER AGENCY,PAYMENTS TO CARERS,2102602373
07.12.2016,CHILDREN'S SERVICES,REDACTED PERSONAL DATA,717.14,ADOPTION PLACEMENTS & INTER AGENCY,PAYMENTS TO CARERS,2102602284
07.12.2016,CHILDREN'S SERVICES,REDACTED PERSONAL DATA,738.32,ADOPTION PLACEMENTS & INTER AGENCY,PAYMENTS TO CARERS,2102602255
07.12.2016,CHILDREN'S SERVICES,REDACTED PERSONAL DATA,767.68,ADOPTION PLACEMENTS & INTER AGENCY,PAYMENTS TO CARERS,2102602268
07.12.2016,CHILDREN'S SERVICES,REDACTED PERSONAL DATA,777.36,ADOPTION PLACEMENTS & INTER AGENCY,PAYMENTS TO CARERS,2102602272
07.12.2016,CHILDREN'S SERVICES,REDACTED PERSONAL DATA,800,ADOPTION PLACEMENTS & INTER AGENCY,PAYMENTS TO CARERS,2102602320
07.12.2016,CHILDREN'S SERVICES,REDACTED PERSONAL DATA,854.28,ADOPTION PLACEMENTS & INTER AGENCY,PAYMENTS TO CARERS,2102602302
07.12.2016,CHILDREN'S SERVICES,REDACTED PERSONAL DATA,908,ADOPTION PLACEMENTS & INTER AGENCY,PAYMENTS TO CARERS,2102602399
07.12.2016,CHILDREN'S SERVICES,REDACTED PERSONAL DATA,"1,011.20",ADOPTION PLACEMENTS & INTER AGENCY,PAYMENTS TO CARERS,2102602346
07.12.2016,CHILDREN'S SERVICES,REDACTED PERSONAL DATA,"1,053.20",ADOPTION PLACEMENTS & INTER AGENCY,PAYMENTS TO CARERS,2102602397
07.12.2016,CHILDREN'S SERVICES,NATIONAL FOSTERING AGENCY,782.84,AGENCY FOSTERING,EXTERNAL AGENCIES AND BODIES,2102601821
07.12.2016,CHILDREN'S SERVICES,CARE O LINE,920.88,CARE PRACTICE GROUP SET A,OTHER PAYMENTS FOR CLIENTS,5902226433
07.12.2016,CHILDREN'S SERVICES,REDACTED PERSONAL DATA,-456.07,DISABILITY & HIV,PAYMENTS TO CARERS,2102602569
07.12.2016,CHILDREN'S SERVICES,REDACTED PERSONAL DATA,-380.62,DISABILITY & HIV,PAYMENTS TO CARERS,2102602430
07.12.2016,CHILDREN'S SERVICES,REDACTED PERSONAL DATA,-380.2,DISABILITY & HIV,PAYMENTS TO CARERS,2102602476
07.12.2016,CHILDREN'S SERVICES,REDACTED PERSONAL DATA,-356.15,DISABILITY & HIV,PAYMENTS TO CARERS,2102602451
07.12.2016,CHILDREN'S SERVICES,REDACTED PERSONAL DATA,-356.15,DISABILITY & HIV,PAYMENTS TO CARERS,2102602584
07.12.2016,CHILDREN'S SERVICES,REDACTED PERSONAL DATA,-342.05,DISABILITY & HIV,PAYMENTS TO CARERS,2102602587
07.12.2016,CHILDREN'S SERVICES,REDACTED PERSONAL DATA,-332.61,DISABILITY & HIV,PAYMENTS TO CARERS,2102602673
07.12.2016,CHILDREN'S SERVICES,REDACTED PERSONAL DATA,-300,DISABILITY & HIV,PAYMENTS TO CARERS,2102602464
07.12.2016,CHILDREN'S SERVICES,REDACTED PERSONAL DATA,-300,DISABILITY & HIV,PAYMENTS TO CARERS,2102602691
07.12.2016,CHILDREN'S SERVICES,REDACTED PERSONAL DATA,287.8,DISABILITY & HIV,PAYMENTS TO CARERS,2102602449
07.12.2016,CHILDREN'S SERVICES,REDACTED PERSONAL DATA,300,DISABILITY & HIV,ADDITIONAL PAYMENTS TO AGENCIES/CARERS,2102602410
07.12.2016,CHILDREN'S SERVICES,REDACTED PERSONAL DATA,300,DISABILITY & HIV,ADDITIONAL PAYMENTS TO AGENCIES/CARERS,2102602424
07.12.2016,CHILDREN'S SERVICES,REDACTED PERSONAL DATA,300,DISABILITY & HIV,ADDITIONAL PAYMENTS TO AGENCIES/CARERS,2102602670
07.12.2016,CHILDREN'S SERVICES,REDACTED PERSONAL DATA,300,DISABILITY & HIV,ADDITIONAL PAYMENTS TO AGENCIES/CARERS,2102602552
07.12.2016,CHILDREN'S SERVICES,REDACTED PERSONAL DATA,300,DISABILITY & HIV,ADDITIONAL PAYMENTS TO AGENCIES/CARERS,2102602436
07.12.2016,CHILDREN'S SERVICES,REDACTED PERSONAL DATA,300,DISABILITY & HIV,ADDITIONAL PAYMENTS TO AGENCIES/CARERS,2102602570
07.12.2016,CHILDREN'S SERVICES,REDACTED PERSONAL DATA,300,DISABILITY & HIV,ADDITIONAL PAYMENTS TO AGENCIES/CARERS,2102602534
07.12.2016,CHILDREN'S SERVICES,REDACTED PERSONAL DATA,300,DISABILITY & HIV,ADDITIONAL PAYMENTS TO AGENCIES/CARERS,2102602650
07.12.2016,CHILDREN'S SERVICES,REDACTED PERSONAL DATA,300,DISABILITY & HIV,ADDITIONAL PAYMENTS TO AGENCIES/CARERS,2102602598
07.12.2016,CHILDREN'S SERVICES,REDACTED PERSONAL DATA,300,DISABILITY & HIV,ADDITIONAL PAYMENTS TO AGENCIES/CARERS,2102602460
07.12.2016,CHILDREN'S SERVICES,REDACTED PERSONAL DATA,300,DISABILITY & HIV,ADDITIONAL PAYMENTS TO AGENCIES/CARERS,2102602606
07.12.2016,CHILDREN'S SERVICES,REDACTED PERSONAL DATA,300,DISABILITY & HIV,ADDITIONAL PAYMENTS TO AGENCIES/CARERS,2102602470
07.12.2016,CHILDREN'S SERVICES,REDACTED PERSONAL DATA,300,DISABILITY & HIV,ADDITIONAL PAYMENTS TO AGENCIES/CARERS,2102602621
07.12.2016,CHILDREN'S SERVICES,REDACTED PERSONAL DATA,300,DISABILITY & HIV,ADDITIONAL PAYMENTS TO AGENCIES/CARERS,2102602419
07.12.2016,CHILDREN'S SERVICES,REDACTED PERSONAL DATA,300,DISABILITY & HIV,ADDITIONAL PAYMENTS TO AGENCIES/CARERS,2102602488
07.12.2016,CHILDREN'S SERVICES,REDACTED PERSONAL DATA,300,DISABILITY & HIV,ADDITIONAL PAYMENTS TO AGENCIES/CARERS,2102602465
07.12.2016,CHILDREN'S SERVICES,REDACTED PERSONAL DATA,300,DISABILITY & HIV,ADDITIONAL PAYMENTS TO AGENCIES/CARERS,2102602403
07.12.2016,CHILDREN'S SERVICES,REDACTED PERSONAL DATA,300,DISABILITY & HIV,ADDITIONAL PAYMENTS TO AGENCIES/CARERS,2102602568
07.12.2016,CHILDREN'S SERVICES,REDACTED PERSONAL DATA,300,DISABILITY & HIV,ADDITIONAL PAYMENTS TO AGENCIES/CARERS,2102602405
07.12.2016,CHILDREN'S SERVICES,REDACTED PERSONAL DATA,300,DISABILITY & HIV,ADDITIONAL PAYMENTS TO AGENCIES/CARERS,2102602722
07.12.2016,CHILDREN'S SERVICES,REDACTED PERSONAL DATA,300,DISABILITY & HIV,ADDITIONAL PAYMENTS TO AGENCIES/CARERS,2102602618
07.12.2016,CHILDREN'S SERVICES,REDACTED PERSONAL DATA,300,DISABILITY & HIV,ADDITIONAL PAYMENTS TO AGENCIES/CARERS,2102602616
07.12.2016,CHILDREN'S SERVICES,REDACTED PERSONAL DATA,300,DISABILITY & HIV,ADDITIONAL PAYMENTS TO AGENCIES/CARERS,2102602417
07.12.2016,CHILDREN'S SERVICES,REDACTED PERSONAL DATA,300,DISABILITY & HIV,ADDITIONAL PAYMENTS TO AGENCIES/CARERS,2102602582
07.12.2016,CHILDREN'S SERVICES,REDACTED PERSONAL DATA,300,DISABILITY & HIV,ADDITIONAL PAYMENTS TO AGENCIES/CARERS,2102602514
07.12.2016,CHILDREN'S SERVICES,REDACTED PERSONAL DATA,300,DISABILITY & HIV,ADDITIONAL PAYMENTS TO AGENCIES/CARERS,2102602645
07.12.2016,CHILDREN'S SERVICES,REDACTED PERSONAL DATA,300,DISABILITY & HIV,ADDITIONAL PAYMENTS TO AGENCIES/CARERS,2102602702
07.12.2016,CHILDREN'S SERVICES,REDACTED PERSONAL DATA,571.43,DISABILITY & HIV,PAYMENTS TO CARERS,2102602475
07.12.2016,CHILDREN'S SERVICES,REDACTED PERSONAL DATA,635.34,DISABILITY & HIV,PAYMENTS TO CARERS,2102602538
07.12.2016,CHILDREN'S SERVICES,REDACTED PERSONAL DATA,635.34,DISABILITY & HIV,PAYMENTS TO CARERS,2102602661
07.12.2016,CHILDREN'S SERVICES,REDACTED PERSONAL DATA,635.34,DISABILITY & HIV,PAYMENTS TO CARERS,2102602704
07.12.2016,CHILDREN'S SERVICES,REDACTED PERSONAL DATA,635.34,DISABILITY & HIV,PAYMENTS TO CARERS,2102602725
07.12.2016,CHILDREN'S SERVICES,REDACTED PERSONAL DATA,635.34,DISABILITY & HIV,PAYMENTS TO CARERS,2102602551
07.12.2016,CHILDREN'S SERVICES,REDACTED PERSONAL DATA,635.34,DISABILITY & HIV,PAYMENTS TO CARERS,2102602510
07.12.2016,CHILDREN'S SERVICES,REDACTED PERSONAL DATA,635.34,DISABILITY & HIV,PAYMENTS TO CARERS,2102602681
07.12.2016,CHILDREN'S SERVICES,REDACTED PERSONAL DATA,635.34,DISABILITY & HIV,PAYMENTS TO CARERS,2102602408
07.12.2016,CHILDREN'S SERVICES,REDACTED PERSONAL DATA,635.34,DISABILITY & HIV,PAYMENTS TO CARERS,2102602442
07.12.2016,CHILDREN'S SERVICES,REDACTED PERSONAL DATA,635.34,DISABILITY & HIV,PAYMENTS TO CARERS,2102602688
07.12.2016,CHILDREN'S SERVICES,REDACTED PERSONAL DATA,635.34,DISABILITY & HIV,PAYMENTS TO CARERS,2102602629
07.12.2016,CHILDREN'S SERVICES,REDACTED PERSONAL DATA,665.34,DISABILITY & HIV,PAYMENTS TO CARERS,2102602597
07.12.2016,CHILDREN'S SERVICES,REDACTED PERSONAL DATA,665.34,DISABILITY & HIV,PAYMENTS TO CARERS,2102602517
07.12.2016,CHILDREN'S SERVICES,REDACTED PERSONAL DATA,665.34,DISABILITY & HIV,PAYMENTS TO CARERS,2102602675
07.12.2016,CHILDREN'S SERVICES,REDACTED PERSONAL DATA,665.34,DISABILITY & HIV,PAYMENTS TO CARERS,2102602668
07.12.2016,CHILDREN'S SERVICES,REDACTED PERSONAL DATA,665.34,DISABILITY & HIV,PAYMENTS TO CARERS,2102602413
07.12.2016,CHILDREN'S SERVICES,REDACTED PERSONAL DATA,665.34,DISABILITY & HIV,PAYMENTS TO CARERS,2102602592
07.12.2016,CHILDREN'S SERVICES,REDACTED PERSONAL DATA,665.34,DISABILITY & HIV,PAYMENTS TO CARERS,2102602520
07.12.2016,CHILDREN'S SERVICES,REDACTED PERSONAL DATA,665.34,DISABILITY & HIV,PAYMENTS TO CARERS,2102602576
07.12.2016,CHILDREN'S SERVICES,REDACTED PERSONAL DATA,665.34,DISABILITY & HIV,PAYMENTS TO CARERS,2102602694
07.12.2016,CHILDREN'S SERVICES,REDACTED PERSONAL DATA,665.34,DISABILITY & HIV,PAYMENTS TO CARERS,2102602697
07.12.2016,CHILDREN'S SERVICES,REDACTED PERSONAL DATA,665.34,DISABILITY & HIV,PAYMENTS TO CARERS,2102602407
07.12.2016,CHILDREN'S SERVICES,REDACTED PERSONAL DATA,665.34,DISABILITY & HIV,PAYMENTS TO CARERS,2102602640
07.12.2016,CHILDREN'S SERVICES,REDACTED PERSONAL DATA,665.34,DISABILITY & HIV,PAYMENTS TO CARERS,2102602690
07.12.2016,CHILDREN'S SERVICES,REDACTED PERSONAL DATA,665.34,DISABILITY & HIV,PAYMENTS TO CARERS,2102602707
07.12.2016,CHILDREN'S SERVICES,REDACTED PERSONAL DATA,665.34,DISABILITY & HIV,PAYMENTS TO CARERS,2102602632
07.12.2016,CHILDREN'S SERVICES,REDACTED PERSONAL DATA,665.34,DISABILITY & HIV,PAYMENTS TO CARERS,2102602434
07.12.2016,CHILDREN'S SERVICES,REDACTED PERSONAL DATA,665.34,DISABILITY & HIV,PAYMENTS TO CARERS,2102602579
07.12.2016,CHILDREN'S SERVICES,REDACTED PERSONAL DATA,682.3,DISABILITY & HIV,PAYMENTS TO CARERS,2102602414
07.12.2016,CHILDREN'S SERVICES,REDACTED PERSONAL DATA,682.3,DISABILITY & HIV,PAYMENTS TO CARERS,2102602454
07.12.2016,CHILDREN'S SERVICES,REDACTED PERSONAL DATA,682.3,DISABILITY & HIV,PAYMENTS TO CARERS,2102602589
07.12.2016,CHILDREN'S SERVICES,REDACTED PERSONAL DATA,682.3,DISABILITY & HIV,PAYMENTS TO CARERS,2102602544
07.12.2016,CHILDREN'S SERVICES,REDACTED PERSONAL DATA,682.3,DISABILITY & HIV,PAYMENTS TO CARERS,2102602485
07.12.2016,CHILDREN'S SERVICES,REDACTED PERSONAL DATA,682.3,DISABILITY & HIV,PAYMENTS TO CARERS,2102602532
07.12.2016,CHILDREN'S SERVICES,REDACTED PERSONAL DATA,682.3,DISABILITY & HIV,PAYMENTS TO CARERS,2102602550
07.12.2016,CHILDREN'S SERVICES,REDACTED PERSONAL DATA,682.3,DISABILITY & HIV,PAYMENTS TO CARERS,2102602605
07.12.2016,CHILDREN'S SERVICES,REDACTED PERSONAL DATA,682.3,DISABILITY & HIV,PAYMENTS TO CARERS,2102602648
07.12.2016,CHILDREN'S SERVICES,REDACTED PERSONAL DATA,682.3,DISABILITY & HIV,PAYMENTS TO CARERS,2102602505
07.12.2016,CHILDREN'S SERVICES,REDACTED PERSONAL DATA,682.3,DISABILITY & HIV,PAYMENTS TO CARERS,2102602533
07.12.2016,CHILDREN'S SERVICES,REDACTED PERSONAL DATA,682.3,DISABILITY & HIV,PAYMENTS TO CARERS,2102602684
07.12.2016,CHILDREN'S SERVICES,REDACTED PERSONAL DATA,682.3,DISABILITY & HIV,PAYMENTS TO CARERS,2102602557
07.12.2016,CHILDREN'S SERVICES,REDACTED PERSONAL DATA,682.3,DISABILITY & HIV,PAYMENTS TO CARERS,2102602546
07.12.2016,CHILDREN'S SERVICES,REDACTED PERSONAL DATA,682.3,DISABILITY & HIV,PAYMENTS TO CARERS,2102602484
07.12.2016,CHILDREN'S SERVICES,REDACTED PERSONAL DATA,682.3,DISABILITY & HIV,PAYMENTS TO CARERS,2102602699
07.12.2016,CHILDREN'S SERVICES,REDACTED PERSONAL DATA,682.3,DISABILITY & HIV,PAYMENTS TO CARERS,2102602536
07.12.2016,CHILDREN'S SERVICES,REDACTED PERSONAL DATA,682.3,DISABILITY & HIV,PAYMENTS TO CARERS,2102602446
07.12.2016,CHILDREN'S SERVICES,REDACTED PERSONAL DATA,682.3,DISABILITY & HIV,PAYMENTS TO CARERS,2102602706
07.12.2016,CHILDREN'S SERVICES,REDACTED PERSONAL DATA,682.3,DISABILITY & HIV,PAYMENTS TO CARERS,2102602444
07.12.2016,CHILDREN'S SERVICES,REDACTED PERSONAL DATA,691.42,DISABILITY & HIV,PAYMENTS TO CARERS,2102602404
07.12.2016,CHILDREN'S SERVICES,REDACTED PERSONAL DATA,712.3,DISABILITY & HIV,PAYMENTS TO CARERS,2102602637
07.12.2016,CHILDREN'S SERVICES,REDACTED PERSONAL DATA,712.3,DISABILITY & HIV,PAYMENTS TO CARERS,2102602487
07.12.2016,CHILDREN'S SERVICES,REDACTED PERSONAL DATA,712.3,DISABILITY & HIV,PAYMENTS TO CARERS,2102602585
07.12.2016,CHILDREN'S SERVICES,REDACTED PERSONAL DATA,712.3,DISABILITY & HIV,PAYMENTS TO CARERS,2102602567
07.12.2016,CHILDREN'S SERVICES,REDACTED PERSONAL DATA,712.3,DISABILITY & HIV,PAYMENTS TO CARERS,2102602677
07.12.2016,CHILDREN'S SERVICES,REDACTED PERSONAL DATA,712.3,DISABILITY & HIV,PAYMENTS TO CARERS,2102602416
07.12.2016,CHILDREN'S SERVICES,REDACTED PERSONAL DATA,712.3,DISABILITY & HIV,PAYMENTS TO CARERS,2102602573
07.12.2016,CHILDREN'S SERVICES,REDACTED PERSONAL DATA,712.3,DISABILITY & HIV,PAYMENTS TO CARERS,2102602452
07.12.2016,CHILDREN'S SERVICES,REDACTED PERSONAL DATA,712.3,DISABILITY & HIV,PAYMENTS TO CARERS,2102602603
07.12.2016,CHILDREN'S SERVICES,REDACTED PERSONAL DATA,712.3,DISABILITY & HIV,PAYMENTS TO CARERS,2102602698
07.12.2016,CHILDREN'S SERVICES,REDACTED PERSONAL DATA,712.3,DISABILITY & HIV,PAYMENTS TO CARERS,2102602724
07.12.2016,CHILDREN'S SERVICES,REDACTED PERSONAL DATA,712.3,DISABILITY & HIV,PAYMENTS TO CARERS,2102602458
07.12.2016,CHILDREN'S SERVICES,REDACTED PERSONAL DATA,712.3,DISABILITY & HIV,PAYMENTS TO CARERS,2102602666
07.12.2016,CHILDREN'S SERVICES,REDACTED PERSONAL DATA,712.3,DISABILITY & HIV,PAYMENTS TO CARERS,2102602530
07.12.2016,CHILDREN'S SERVICES,REDACTED PERSONAL DATA,712.3,DISABILITY & HIV,PAYMENTS TO CARERS,2102602715
07.12.2016,CHILDREN'S SERVICES,REDACTED PERSONAL DATA,712.3,DISABILITY & HIV,PAYMENTS TO CARERS,2102602726
07.12.2016,CHILDREN'S SERVICES,REDACTED PERSONAL DATA,712.3,DISABILITY & HIV,PAYMENTS TO CARERS,2102602429
07.12.2016,CHILDREN'S SERVICES,REDACTED PERSONAL DATA,712.3,DISABILITY & HIV,PAYMENTS TO CARERS,2102602516
07.12.2016,CHILDREN'S SERVICES,REDACTED PERSONAL DATA,712.3,DISABILITY & HIV,PAYMENTS TO CARERS,2102602712
07.12.2016,CHILDREN'S SERVICES,REDACTED PERSONAL DATA,712.3,DISABILITY & HIV,PAYMENTS TO CARERS,2102602495
07.12.2016,CHILDREN'S SERVICES,REDACTED PERSONAL DATA,712.3,DISABILITY & HIV,PAYMENTS TO CARERS,2102602501
07.12.2016,CHILDREN'S SERVICES,REDACTED PERSONAL DATA,712.3,DISABILITY & HIV,PAYMENTS TO CARERS,2102602527
07.12.2016,CHILDREN'S SERVICES,REDACTED PERSONAL DATA,712.3,DISABILITY & HIV,PAYMENTS TO CARERS,2102602402
07.12.2016,CHILDREN'S SERVICES,REDACTED PERSONAL DATA,712.3,DISABILITY & HIV,PAYMENTS TO CARERS,2102602660
07.12.2016,CHILDREN'S SERVICES,REDACTED PERSONAL DATA,712.3,DISABILITY & HIV,PAYMENTS TO CARERS,2102602462
07.12.2016,CHILDREN'S SERVICES,REDACTED PERSONAL DATA,712.3,DISABILITY & HIV,PAYMENTS TO CARERS,2102602721
07.12.2016,CHILDREN'S SERVICES,REDACTED PERSONAL DATA,712.3,DISABILITY & HIV,PAYMENTS TO CARERS,2102602493
07.12.2016,CHILDREN'S SERVICES,REDACTED PERSONAL DATA,712.3,DISABILITY & HIV,PAYMENTS TO CARERS,2102602474
07.12.2016,CHILDREN'S SERVICES,REDACTED PERSONAL DATA,712.3,DISABILITY & HIV,PAYMENTS TO CARERS,2102602631
07.12.2016,CHILDREN'S SERVICES,REDACTED PERSONAL DATA,712.3,DISABILITY & HIV,PAYMENTS TO CARERS,2102602467
07.12.2016,CHILDREN'S SERVICES,REDACTED PERSONAL DATA,712.3,DISABILITY & HIV,PAYMENTS TO CARERS,2102602542
07.12.2016,CHILDREN'S SERVICES,REDACTED PERSONAL DATA,712.3,DISABILITY & HIV,PAYMENTS TO CARERS,2102602676
07.12.2016,CHILDREN'S SERVICES,REDACTED PERSONAL DATA,712.3,DISABILITY & HIV,PAYMENTS TO CARERS,2102602508
07.12.2016,CHILDREN'S SERVICES,REDACTED PERSONAL DATA,720.65,DISABILITY & HIV,PAYMENTS TO CARERS,2102602539
07.12.2016,CHILDREN'S SERVICES,REDACTED PERSONAL DATA,768.12,DISABILITY & HIV,PAYMENTS TO CARERS,2102602593
07.12.2016,CHILDREN'S SERVICES,REDACTED PERSONAL DATA,768.12,DISABILITY & HIV,PAYMENTS TO CARERS,2102602624
07.12.2016,CHILDREN'S SERVICES,REDACTED PERSONAL DATA,768.12,DISABILITY & HIV,PAYMENTS TO CARERS,2102602700
07.12.2016,CHILDREN'S SERVICES,REDACTED PERSONAL DATA,768.12,DISABILITY & HIV,PAYMENTS TO CARERS,2102602577
07.12.2016,CHILDREN'S SERVICES,REDACTED PERSONAL DATA,768.12,DISABILITY & HIV,PAYMENTS TO CARERS,2102602667
07.12.2016,CHILDREN'S SERVICES,REDACTED PERSONAL DATA,776.08,DISABILITY & HIV,PAYMENTS TO CARERS,2102602521
07.12.2016,CHILDREN'S SERVICES,REDACTED PERSONAL DATA,776.08,DISABILITY & HIV,PAYMENTS TO CARERS,2102602696
07.12.2016,CHILDREN'S SERVICES,REDACTED PERSONAL DATA,776.08,DISABILITY & HIV,PAYMENTS TO CARERS,2102602571
07.12.2016,CHILDREN'S SERVICES,REDACTED PERSONAL DATA,776.08,DISABILITY & HIV,PAYMENTS TO CARERS,2102602578
07.12.2016,CHILDREN'S SERVICES,REDACTED PERSONAL DATA,776.08,DISABILITY & HIV,PAYMENTS TO CARERS,2102602718
07.12.2016,CHILDREN'S SERVICES,REDACTED PERSONAL DATA,776.08,DISABILITY & HIV,PAYMENTS TO CARERS,2102602455
07.12.2016,CHILDREN'S SERVICES,REDACTED PERSONAL DATA,776.08,DISABILITY & HIV,PAYMENTS TO CARERS,2102602526
07.12.2016,CHILDREN'S SERVICES,REDACTED PERSONAL DATA,776.08,DISABILITY & HIV,PAYMENTS TO CARERS,2102602665
07.12.2016,CHILDREN'S SERVICES,REDACTED PERSONAL DATA,776.08,DISABILITY & HIV,PAYMENTS TO CARERS,2102602423
07.12.2016,CHILDREN'S SERVICES,REDACTED PERSONAL DATA,776.08,DISABILITY & HIV,PAYMENTS TO CARERS,2102602689
07.12.2016,CHILDREN'S SERVICES,REDACTED PERSONAL DATA,776.08,DISABILITY & HIV,PAYMENTS TO CARERS,2102602678
07.12.2016,CHILDREN'S SERVICES,REDACTED PERSONAL DATA,776.08,DISABILITY & HIV,PAYMENTS TO CARERS,2102602619
07.12.2016,CHILDREN'S SERVICES,REDACTED PERSONAL DATA,776.08,DISABILITY & HIV,PAYMENTS TO CARERS,2102602418
07.12.2016,CHILDREN'S SERVICES,REDACTED PERSONAL DATA,776.08,DISABILITY & HIV,PAYMENTS TO CARERS,2102602565
07.12.2016,CHILDREN'S SERVICES,REDACTED PERSONAL DATA,776.08,DISABILITY & HIV,PAYMENTS TO CARERS,2102602663
07.12.2016,CHILDREN'S SERVICES,REDACTED PERSONAL DATA,776.08,DISABILITY & HIV,PAYMENTS TO CARERS,2102602497
07.12.2016,CHILDREN'S SERVICES,REDACTED PERSONAL DATA,777.36,DISABILITY & HIV,PAYMENTS TO CARERS,2102602711
07.12.2016,CHILDREN'S SERVICES,REDACTED PERSONAL DATA,777.36,DISABILITY & HIV,PAYMENTS TO CARERS,2102602639
07.12.2016,CHILDREN'S SERVICES,REDACTED PERSONAL DATA,798,DISABILITY & HIV,PAYMENTS TO CARERS,2102602672
07.12.2016,CHILDREN'S SERVICES,REDACTED PERSONAL DATA,798.12,DISABILITY & HIV,PAYMENTS TO CARERS,2102602411
07.12.2016,CHILDREN'S SERVICES,REDACTED PERSONAL DATA,798.12,DISABILITY & HIV,PAYMENTS TO CARERS,2102602556
07.12.2016,CHILDREN'S SERVICES,REDACTED PERSONAL DATA,798.12,DISABILITY & HIV,PAYMENTS TO CARERS,2102602479
07.12.2016,CHILDREN'S SERVICES,REDACTED PERSONAL DATA,798.12,DISABILITY & HIV,PAYMENTS TO CARERS,2102602553
07.12.2016,CHILDREN'S SERVICES,REDACTED PERSONAL DATA,798.12,DISABILITY & HIV,PAYMENTS TO CARERS,2102602566
07.12.2016,CHILDREN'S SERVICES,REDACTED PERSONAL DATA,798.12,DISABILITY & HIV,PAYMENTS TO CARERS,2102602601
07.12.2016,CHILDREN'S SERVICES,REDACTED PERSONAL DATA,798.12,DISABILITY & HIV,PAYMENTS TO CARERS,2102602541
07.12.2016,CHILDREN'S SERVICES,REDACTED PERSONAL DATA,798.12,DISABILITY & HIV,PAYMENTS TO CARERS,2102602512
07.12.2016,CHILDREN'S SERVICES,REDACTED PERSONAL DATA,798.12,DISABILITY & HIV,PAYMENTS TO CARERS,2102602420
07.12.2016,CHILDREN'S SERVICES,REDACTED PERSONAL DATA,798.12,DISABILITY & HIV,PAYMENTS TO CARERS,2102602427
07.12.2016,CHILDREN'S SERVICES,REDACTED PERSONAL DATA,798.12,DISABILITY & HIV,PAYMENTS TO CARERS,2102602664
07.12.2016,CHILDREN'S SERVICES,REDACTED PERSONAL DATA,798.12,DISABILITY & HIV,PAYMENTS TO CARERS,2102602594
07.12.2016,CHILDREN'S SERVICES,REDACTED PERSONAL DATA,798.12,DISABILITY & HIV,PAYMENTS TO CARERS,2102602450
07.12.2016,CHILDREN'S SERVICES,REDACTED PERSONAL DATA,798.12,DISABILITY & HIV,PAYMENTS TO CARERS,2102602608
07.12.2016,CHILDREN'S SERVICES,REDACTED PERSONAL DATA,798.12,DISABILITY & HIV,PAYMENTS TO CARERS,2102602421
07.12.2016,CHILDREN'S SERVICES,REDACTED PERSONAL DATA,798.12,DISABILITY & HIV,PAYMENTS TO CARERS,2102602574
07.12.2016,CHILDREN'S SERVICES,REDACTED PERSONAL DATA,798.12,DISABILITY & HIV,PAYMENTS TO CARERS,2102602463
07.12.2016,CHILDREN'S SERVICES,REDACTED PERSONAL DATA,798.12,DISABILITY & HIV,PAYMENTS TO CARERS,2102602523
07.12.2016,CHILDREN'S SERVICES,REDACTED PERSONAL DATA,798.12,DISABILITY & HIV,PAYMENTS TO CARERS,2102602548
07.12.2016,CHILDREN'S SERVICES,REDACTED PERSONAL DATA,798.12,DISABILITY & HIV,PAYMENTS TO CARERS,2102602583
07.12.2016,CHILDREN'S SERVICES,REDACTED PERSONAL DATA,798.12,DISABILITY & HIV,PAYMENTS TO CARERS,2102602560
07.12.2016,CHILDREN'S SERVICES,REDACTED PERSONAL DATA,798.12,DISABILITY & HIV,PAYMENTS TO CARERS,2102602703
07.12.2016,CHILDREN'S SERVICES,REDACTED PERSONAL DATA,801.68,DISABILITY & HIV,PAYMENTS TO CARERS,2102602438
07.12.2016,CHILDREN'S SERVICES,REDACTED PERSONAL DATA,806.08,DISABILITY & HIV,PAYMENTS TO CARERS,2102602563
07.12.2016,CHILDREN'S SERVICES,REDACTED PERSONAL DATA,806.08,DISABILITY & HIV,PAYMENTS TO CARERS,2102602656
07.12.2016,CHILDREN'S SERVICES,REDACTED PERSONAL DATA,806.08,DISABILITY & HIV,PAYMENTS TO CARERS,2102602682
07.12.2016,CHILDREN'S SERVICES,REDACTED PERSONAL DATA,806.08,DISABILITY & HIV,PAYMENTS TO CARERS,2102602627
07.12.2016,CHILDREN'S SERVICES,REDACTED PERSONAL DATA,806.08,DISABILITY & HIV,PAYMENTS TO CARERS,2102602719
07.12.2016,CHILDREN'S SERVICES,REDACTED PERSONAL DATA,806.08,DISABILITY & HIV,PAYMENTS TO CARERS,2102602545
07.12.2016,CHILDREN'S SERVICES,REDACTED PERSONAL DATA,806.08,DISABILITY & HIV,PAYMENTS TO CARERS,2102602428
07.12.2016,CHILDREN'S SERVICES,REDACTED PERSONAL DATA,806.08,DISABILITY & HIV,PAYMENTS TO CARERS,2102602524
07.12.2016,CHILDREN'S SERVICES,REDACTED PERSONAL DATA,806.08,DISABILITY & HIV,PAYMENTS TO CARERS,2102602716
07.12.2016,CHILDREN'S SERVICES,REDACTED PERSONAL DATA,806.08,DISABILITY & HIV,PAYMENTS TO CARERS,2102602633
07.12.2016,CHILDREN'S SERVICES,REDACTED PERSONAL DATA,806.08,DISABILITY & HIV,PAYMENTS TO CARERS,2102602580
07.12.2016,CHILDREN'S SERVICES,REDACTED PERSONAL DATA,806.08,DISABILITY & HIV,PAYMENTS TO CARERS,2102602626
07.12.2016,CHILDREN'S SERVICES,REDACTED PERSONAL DATA,806.08,DISABILITY & HIV,PAYMENTS TO CARERS,2102602638
07.12.2016,CHILDREN'S SERVICES,REDACTED PERSONAL DATA,806.08,DISABILITY & HIV,PAYMENTS TO CARERS,2102602437
07.12.2016,CHILDREN'S SERVICES,REDACTED PERSONAL DATA,806.08,DISABILITY & HIV,PAYMENTS TO CARERS,2102602614
07.12.2016,CHILDREN'S SERVICES,REDACTED PERSONAL DATA,806.08,DISABILITY & HIV,PAYMENTS TO CARERS,2102602561
07.12.2016,CHILDREN'S SERVICES,REDACTED PERSONAL DATA,806.08,DISABILITY & HIV,PAYMENTS TO CARERS,2102602535
07.12.2016,CHILDREN'S SERVICES,REDACTED PERSONAL DATA,806.08,DISABILITY & HIV,PAYMENTS TO CARERS,2102602651
07.12.2016,CHILDREN'S SERVICES,REDACTED PERSONAL DATA,806.08,DISABILITY & HIV,PAYMENTS TO CARERS,2102602558
07.12.2016,CHILDREN'S SERVICES,REDACTED PERSONAL DATA,806.08,DISABILITY & HIV,PAYMENTS TO CARERS,2102602634
07.12.2016,CHILDREN'S SERVICES,REDACTED PERSONAL DATA,806.08,DISABILITY & HIV,PAYMENTS TO CARERS,2102602461
07.12.2016,CHILDREN'S SERVICES,REDACTED PERSONAL DATA,806.08,DISABILITY & HIV,PAYMENTS TO CARERS,2102602554
07.12.2016,CHILDREN'S SERVICES,REDACTED PERSONAL DATA,806.08,DISABILITY & HIV,PAYMENTS TO CARERS,2102602562
07.12.2016,CHILDREN'S SERVICES,REDACTED PERSONAL DATA,806.08,DISABILITY & HIV,PAYMENTS TO CARERS,2102602471
07.12.2016,CHILDREN'S SERVICES,REDACTED PERSONAL DATA,806.08,DISABILITY & HIV,PAYMENTS TO CARERS,2102602622
07.12.2016,CHILDREN'S SERVICES,REDACTED PERSONAL DATA,806.08,DISABILITY & HIV,PAYMENTS TO CARERS,2102602489
07.12.2016,CHILDREN'S SERVICES,REDACTED PERSONAL DATA,806.08,DISABILITY & HIV,PAYMENTS TO CARERS,2102602695
07.12.2016,CHILDREN'S SERVICES,REDACTED PERSONAL DATA,806.08,DISABILITY & HIV,PAYMENTS TO CARERS,2102602713
07.12.2016,CHILDREN'S SERVICES,REDACTED PERSONAL DATA,806.08,DISABILITY & HIV,PAYMENTS TO CARERS,2102602466
07.12.2016,CHILDREN'S SERVICES,REDACTED PERSONAL DATA,806.08,DISABILITY & HIV,PAYMENTS TO CARERS,2102602447
07.12.2016,CHILDREN'S SERVICES,REDACTED PERSONAL DATA,806.08,DISABILITY & HIV,PAYMENTS TO CARERS,2102602426
07.12.2016,CHILDREN'S SERVICES,REDACTED PERSONAL DATA,806.08,DISABILITY & HIV,PAYMENTS TO CARERS,2102602448
07.12.2016,CHILDREN'S SERVICES,REDACTED PERSONAL DATA,806.08,DISABILITY & HIV,PAYMENTS TO CARERS,2102602620
07.12.2016,CHILDREN'S SERVICES,REDACTED PERSONAL DATA,806.08,DISABILITY & HIV,PAYMENTS TO CARERS,2102602439
07.12.2016,CHILDREN'S SERVICES,REDACTED PERSONAL DATA,806.08,DISABILITY & HIV,PAYMENTS TO CARERS,2102602504
07.12.2016,CHILDREN'S SERVICES,REDACTED PERSONAL DATA,806.08,DISABILITY & HIV,PAYMENTS TO CARERS,2102602500
07.12.2016,CHILDREN'S SERVICES,REDACTED PERSONAL DATA,806.08,DISABILITY & HIV,PAYMENTS TO CARERS,2102602657
07.12.2016,CHILDREN'S SERVICES,REDACTED PERSONAL DATA,806.08,DISABILITY & HIV,PAYMENTS TO CARERS,2102602662
07.12.2016,CHILDREN'S SERVICES,REDACTED PERSONAL DATA,806.08,DISABILITY & HIV,PAYMENTS TO CARERS,2102602503
07.12.2016,CHILDREN'S SERVICES,REDACTED PERSONAL DATA,806.08,DISABILITY & HIV,PAYMENTS TO CARERS,2102602415
07.12.2016,CHILDREN'S SERVICES,REDACTED PERSONAL DATA,806.08,DISABILITY & HIV,PAYMENTS TO CARERS,2102602440
07.12.2016,CHILDREN'S SERVICES,REDACTED PERSONAL DATA,806.08,DISABILITY & HIV,PAYMENTS TO CARERS,2102602658
07.12.2016,CHILDREN'S SERVICES,REDACTED PERSONAL DATA,806.08,DISABILITY & HIV,PAYMENTS TO CARERS,2102602490
07.12.2016,CHILDREN'S SERVICES,REDACTED PERSONAL DATA,806.08,DISABILITY & HIV,PAYMENTS TO CARERS,2102602443
07.12.2016,CHILDREN'S SERVICES,REDACTED PERSONAL DATA,806.08,DISABILITY & HIV,PAYMENTS TO CARERS,2102602679
07.12.2016,CHILDREN'S SERVICES,REDACTED PERSONAL DATA,806.08,DISABILITY & HIV,PAYMENTS TO CARERS,2102602486
07.12.2016,CHILDREN'S SERVICES,REDACTED PERSONAL DATA,806.08,DISABILITY & HIV,PAYMENTS TO CARERS,2102602515
07.12.2016,CHILDREN'S SERVICES,REDACTED PERSONAL DATA,806.08,DISABILITY & HIV,PAYMENTS TO CARERS,2102602481
07.12.2016,CHILDREN'S SERVICES,REDACTED PERSONAL DATA,806.08,DISABILITY & HIV,PAYMENTS TO CARERS,2102602646
07.12.2016,CHILDREN'S SERVICES,REDACTED PERSONAL DATA,806.08,DISABILITY & HIV,PAYMENTS TO CARERS,2102602496
07.12.2016,CHILDREN'S SERVICES,REDACTED PERSONAL DATA,810.98,DISABILITY & HIV,PAYMENTS TO CARERS,2102602654
07.12.2016,CHILDREN'S SERVICES,REDACTED PERSONAL DATA,811.95,DISABILITY & HIV,PAYMENTS TO CARERS,2102602599
07.12.2016,CHILDREN'S SERVICES,REDACTED PERSONAL DATA,838.83,DISABILITY & HIV,PAYMENTS TO CARERS,2102602499
07.12.2016,CHILDREN'S SERVICES,REDACTED PERSONAL DATA,841.24,DISABILITY & HIV,PAYMENTS TO CARERS,2102602625
07.12.2016,CHILDREN'S SERVICES,REDACTED PERSONAL DATA,854.28,DISABILITY & HIV,PAYMENTS TO CARERS,2102602406
07.12.2016,CHILDREN'S SERVICES,REDACTED PERSONAL DATA,854.28,DISABILITY & HIV,PAYMENTS TO CARERS,2102602409
07.12.2016,CHILDREN'S SERVICES,REDACTED PERSONAL DATA,854.28,DISABILITY & HIV,PAYMENTS TO CARERS,2102602685
07.12.2016,CHILDREN'S SERVICES,REDACTED PERSONAL DATA,855.2,DISABILITY & HIV,PAYMENTS TO CARERS,2102602564
07.12.2016,CHILDREN'S SERVICES,REDACTED PERSONAL DATA,858.12,DISABILITY & HIV,PAYMENTS TO CARERS,2102602649
07.12.2016,CHILDREN'S SERVICES,REDACTED PERSONAL DATA,858.12,DISABILITY & HIV,PAYMENTS TO CARERS,2102602572
07.12.2016,CHILDREN'S SERVICES,REDACTED PERSONAL DATA,858.12,DISABILITY & HIV,PAYMENTS TO CARERS,2102602604
07.12.2016,CHILDREN'S SERVICES,REDACTED PERSONAL DATA,876.4,DISABILITY & HIV,PAYMENTS TO CARERS,2102602478
07.12.2016,CHILDREN'S SERVICES,REDACTED PERSONAL DATA,888.12,DISABILITY & HIV,PAYMENTS TO CARERS,2102602425
07.12.2016,CHILDREN'S SERVICES,REDACTED PERSONAL DATA,888.12,DISABILITY & HIV,PAYMENTS TO CARERS,2102602586
07.12.2016,CHILDREN'S SERVICES,REDACTED PERSONAL DATA,888.12,DISABILITY & HIV,PAYMENTS TO CARERS,2102602669
07.12.2016,CHILDREN'S SERVICES,REDACTED PERSONAL DATA,888.12,DISABILITY & HIV,PAYMENTS TO CARERS,2102602714
07.12.2016,CHILDREN'S SERVICES,REDACTED PERSONAL DATA,888.12,DISABILITY & HIV,PAYMENTS TO CARERS,2102602613
07.12.2016,CHILDREN'S SERVICES,REDACTED PERSONAL DATA,888.12,DISABILITY & HIV,PAYMENTS TO CARERS,2102602473
07.12.2016,CHILDREN'S SERVICES,REDACTED PERSONAL DATA,888.12,DISABILITY & HIV,PAYMENTS TO CARERS,2102602457
07.12.2016,CHILDREN'S SERVICES,REDACTED PERSONAL DATA,888.12,DISABILITY & HIV,PAYMENTS TO CARERS,2102602528
07.12.2016,CHILDREN'S SERVICES,REDACTED PERSONAL DATA,888.12,DISABILITY & HIV,PAYMENTS TO CARERS,2102602659
07.12.2016,CHILDREN'S SERVICES,REDACTED PERSONAL DATA,888.12,DISABILITY & HIV,PAYMENTS TO CARERS,2102602687
07.12.2016,CHILDREN'S SERVICES,REDACTED PERSONAL DATA,888.12,DISABILITY & HIV,PAYMENTS TO CARERS,2102602468
07.12.2016,CHILDREN'S SERVICES,REDACTED PERSONAL DATA,888.12,DISABILITY & HIV,PAYMENTS TO CARERS,2102602595
07.12.2016,CHILDREN'S SERVICES,REDACTED PERSONAL DATA,888.12,DISABILITY & HIV,PAYMENTS TO CARERS,2102602723
07.12.2016,CHILDREN'S SERVICES,REDACTED PERSONAL DATA,888.12,DISABILITY & HIV,PAYMENTS TO CARERS,2102602617
07.12.2016,CHILDREN'S SERVICES,REDACTED PERSONAL DATA,888.12,DISABILITY & HIV,PAYMENTS TO CARERS,2102602518
07.12.2016,CHILDREN'S SERVICES,REDACTED PERSONAL DATA,888.12,DISABILITY & HIV,PAYMENTS TO CARERS,2102602623
07.12.2016,CHILDREN'S SERVICES,REDACTED PERSONAL DATA,888.12,DISABILITY & HIV,PAYMENTS TO CARERS,2102602686
07.12.2016,CHILDREN'S SERVICES,REDACTED PERSONAL DATA,888.16,DISABILITY & HIV,PAYMENTS TO CARERS,2102602537
07.12.2016,CHILDREN'S SERVICES,REDACTED PERSONAL DATA,912.3,DISABILITY & HIV,PAYMENTS TO CARERS,2102602469
07.12.2016,CHILDREN'S SERVICES,REDACTED PERSONAL DATA,912.3,DISABILITY & HIV,PAYMENTS TO CARERS,2102602507
07.12.2016,CHILDREN'S SERVICES,REDACTED PERSONAL DATA,924.2,DISABILITY & HIV,PAYMENTS TO CARERS,2102602609
07.12.2016,CHILDREN'S SERVICES,REDACTED PERSONAL DATA,924.2,DISABILITY & HIV,PAYMENTS TO CARERS,2102602636
07.12.2016,CHILDREN'S SERVICES,REDACTED PERSONAL DATA,949.76,DISABILITY & HIV,PAYMENTS TO CARERS,2102602611
07.12.2016,CHILDREN'S SERVICES,REDACTED PERSONAL DATA,988.12,DISABILITY & HIV,PAYMENTS TO CARERS,2102602610
07.12.2016,CHILDREN'S SERVICES,REDACTED PERSONAL DATA,988.12,DISABILITY & HIV,PAYMENTS TO CARERS,2102602671
07.12.2016,CHILDREN'S SERVICES,REDACTED PERSONAL DATA,991.42,DISABILITY & HIV,PAYMENTS TO CARERS,2102602472
07.12.2016,CHILDREN'S SERVICES,REDACTED PERSONAL DATA,991.42,DISABILITY & HIV,PAYMENTS TO CARERS,2102602422
07.12.2016,CHILDREN'S SERVICES,REDACTED PERSONAL DATA,991.42,DISABILITY & HIV,PAYMENTS TO CARERS,2102602477
07.12.2016,CHILDREN'S SERVICES,REDACTED PERSONAL DATA,991.48,DISABILITY & HIV,PAYMENTS TO CARERS,2102602630
07.12.2016,CHILDREN'S SERVICES,REDACTED PERSONAL DATA,"1,076.08",DISABILITY & HIV,PAYMENTS TO CARERS,2102602459
07.12.2016,CHILDREN'S SERVICES,REDACTED PERSONAL DATA,"1,076.08",DISABILITY & HIV,PAYMENTS TO CARERS,2102602642
07.12.2016,CHILDREN'S SERVICES,REDACTED PERSONAL DATA,"1,094.60",DISABILITY & HIV,PAYMENTS TO CARERS,2102602717
07.12.2016,CHILDREN'S SERVICES,REDACTED PERSONAL DATA,"1,294.60",DISABILITY & HIV,PAYMENTS TO CARERS,2102602653
07.12.2016,CHILDREN'S SERVICES,REDACTED PERSONAL DATA,"1,379.08",DISABILITY & HIV,PAYMENTS TO CARERS,2102602628
07.12.2016,CHILDREN'S SERVICES,REDACTED PERSONAL DATA,"1,466.24",DISABILITY & HIV,PAYMENTS TO CARERS,2102602607
07.12.2016,CHILDREN'S SERVICES,REDACTED PERSONAL DATA,"6,857.12",FAMILY ASSESSMENTS,RESIDENTIAL CARE,5902226473
07.12.2016,CHILDREN'S SERVICES,REDACTED PERSONAL DATA,329.42,FRIENDS & FAMILY FOSTERING,PAYMENTS TO CARERS,2102602761
07.12.2016,CHILDREN'S SERVICES,REDACTED PERSONAL DATA,367.1,FRIENDS & FAMILY FOSTERING,PAYMENTS TO CARERS,2102602758
07.12.2016,CHILDREN'S SERVICES,REDACTED PERSONAL DATA,375.54,FRIENDS & FAMILY FOSTERING,PAYMENTS TO CARERS,2102602765
07.12.2016,CHILDREN'S SERVICES,REDACTED PERSONAL DATA,382.3,FRIENDS & FAMILY FOSTERING,PAYMENTS TO CARERS,2102602763
07.12.2016,CHILDREN'S SERVICES,REDACTED PERSONAL DATA,382.3,FRIENDS & FAMILY FOSTERING,PAYMENTS TO CARERS,2102602736
07.12.2016,CHILDREN'S SERVICES,REDACTED PERSONAL DATA,382.3,FRIENDS & FAMILY FOSTERING,PAYMENTS TO CARERS,2102602752
07.12.2016,CHILDREN'S SERVICES,REDACTED PERSONAL DATA,382.3,FRIENDS & FAMILY FOSTERING,PAYMENTS TO CARERS,2102602745
07.12.2016,CHILDREN'S SERVICES,REDACTED PERSONAL DATA,476.08,FRIENDS & FAMILY FOSTERING,PAYMENTS TO CARERS,2102602728
07.12.2016,CHILDREN'S SERVICES,REDACTED PERSONAL DATA,476.08,FRIENDS & FAMILY FOSTERING,PAYMENTS TO CARERS,2102602760
07.12.2016,CHILDREN'S SERVICES,REDACTED PERSONAL DATA,476.08,FRIENDS & FAMILY FOSTERING,PAYMENTS TO CARERS,2102602756
07.12.2016,CHILDREN'S SERVICES,REDACTED PERSONAL DATA,578.12,FRIENDS & FAMILY FOSTERING,PAYMENTS TO CARERS,2102602759
07.12.2016,CHILDREN'S SERVICES,REDACTED PERSONAL DATA,635.34,FRIENDS & FAMILY FOSTERING,PAYMENTS TO CARERS,2102602748
07.12.2016,CHILDREN'S SERVICES,REDACTED PERSONAL DATA,635.34,FRIENDS & FAMILY FOSTERING,PAYMENTS TO CARERS,2102602751
07.12.2016,CHILDREN'S SERVICES,REDACTED PERSONAL DATA,682.3,FRIENDS & FAMILY FOSTERING,PAYMENTS TO CARERS,2102602747
07.12.2016,CHILDREN'S SERVICES,REDACTED PERSONAL DATA,682.3,FRIENDS & FAMILY FOSTERING,PAYMENTS TO CARERS,2102602767
07.12.2016,CHILDREN'S SERVICES,REDACTED PERSONAL DATA,682.3,FRIENDS & FAMILY FOSTERING,PAYMENTS TO CARERS,2102602762
07.12.2016,CHILDREN'S SERVICES,REDACTED PERSONAL DATA,682.3,FRIENDS & FAMILY FOSTERING,PAYMENTS TO CARERS,2102602757
07.12.2016,CHILDREN'S SERVICES,REDACTED PERSONAL DATA,682.3,FRIENDS & FAMILY FOSTERING,PAYMENTS TO CARERS,2102602768
07.12.2016,CHILDREN'S SERVICES,REDACTED PERSONAL DATA,682.3,FRIENDS & FAMILY FOSTERING,PAYMENTS TO CARERS,2102602764
07.12.2016,CHILDREN'S SERVICES,REDACTED PERSONAL DATA,682.3,FRIENDS & FAMILY FOSTERING,PAYMENTS TO CARERS,2102602766
07.12.2016,CHILDREN'S SERVICES,REDACTED PERSONAL DATA,682.3,FRIENDS & FAMILY FOSTERING,PAYMENTS TO CARERS,2102602729
07.12.2016,CHILDREN'S SERVICES,REDACTED PERSONAL DATA,682.3,FRIENDS & FAMILY FOSTERING,PAYMENTS TO CARERS,2102602744
07.12.2016,CHILDREN'S SERVICES,REDACTED PERSONAL DATA,682.3,FRIENDS & FAMILY FOSTERING,PAYMENTS TO CARERS,2102602741
07.12.2016,CHILDREN'S SERVICES,REDACTED PERSONAL DATA,682.3,FRIENDS & FAMILY FOSTERING,PAYMENTS TO CARERS,2102602749
07.12.2016,CHILDREN'S SERVICES,REDACTED PERSONAL DATA,767.66,FRIENDS & FAMILY FOSTERING,PAYMENTS TO CARERS,2102602742
07.12.2016,CHILDREN'S SERVICES,REDACTED PERSONAL DATA,776.08,FRIENDS & FAMILY FOSTERING,PAYMENTS TO CARERS,2102602753
07.12.2016,CHILDREN'S SERVICES,REDACTED PERSONAL DATA,776.08,FRIENDS & FAMILY FOSTERING,PAYMENTS TO CARERS,2102602732
07.12.2016,CHILDREN'S SERVICES,REDACTED PERSONAL DATA,776.08,FRIENDS & FAMILY FOSTERING,PAYMENTS TO CARERS,2102602730
07.12.2016,CHILDREN'S SERVICES,REDACTED PERSONAL DATA,776.08,FRIENDS & FAMILY FOSTERING,PAYMENTS TO CARERS,2102602750
07.12.2016,CHILDREN'S SERVICES,REDACTED PERSONAL DATA,776.08,FRIENDS & FAMILY FOSTERING,PAYMENTS TO CARERS,2102602746
07.12.2016,CHILDREN'S SERVICES,REDACTED PERSONAL DATA,300,FURTHER EDUCATION SUPPORT,CLIENT TRANSPORT,2102602214
07.12.2016,CHILDREN'S SERVICES,THE ALBANY 2001 COMPANY LTD,633.6,GENERAL CPD,REFRESHMENTS FOR MEETINGS,5902226629
07.12.2016,CHILDREN'S SERVICES,NATIONWIDE ACCOMMODATION,"1,100.50",INTENTIONALLY HOMELESS PLACEMENTS,SECTION 17 PAYMENTS TO AGENCIES/CARERS,5902226474
07.12.2016,CHILDREN'S SERVICES,COMBER GROVE PRIMARY SCHOOL,"20,288.00",MATERNITY COVER,SCHOOLS CAPITATION,5902226476
07.12.2016,CHILDREN'S SERVICES,UNIVERSITY OF BRISTOL,"1,013.00",POST ADOPTION ADVISE & SUPPORT,TRAINING,5902226546
07.12.2016,CHILDREN'S SERVICES,REDACTED PERSONAL DATA,264.16,RESIDENCE ORDERS,PAYMENTS TO CARERS,2102601837
07.12.2016,CHILDREN'S SERVICES,HE SAFEGUARDING LTD,375,RESOURCE PANEL,SECTION 17 PAYMENTS TO AGENCIES/CARERS,5902226458
07.12.2016,CHILDREN'S SERVICES,ZENITH CARS LTD,805,S & FAM SUPP - PRAC GRP A SET 14-16,HIRED VEHICLES,5902226455
07.12.2016,CHILDREN'S SERVICES,LONDON SOUTH BANK UNIVERSITY,419.4,S & FAM SUPP - PRAC GRP B SET 17-19,OTHER PAYMENTS FOR CLIENTS,5902226469
07.12.2016,CHILDREN'S SERVICES,SHORTLAND PSYCHOLOGY ASSOCIATES LTD,280,S & FAM SUPP - PRAC GRP B SET 17-19,AGENCY STAFF,5902226461
07.12.2016,CHILDREN'S SERVICES,ZENITH CARS LTD,801,S & FAM SUPP - PRAC GRP B SET 17-19,HIRED VEHICLES,5902226455
07.12.2016,CHILDREN'S SERVICES,CITYGLEN LTD,"1,170.00",S & FAM SUPP - PRAC GRP F SET 29-31,SECTION 17 PAYMENTS TO AGENCIES/CARERS,5902226475
07.12.2016,CHILDREN'S SERVICES,ZENITH CARS LTD,"1,378.00",S & FAM SUPP - PRAC GRP F SET 29-31,HIRED VEHICLES,5902226455
07.12.2016,CHILDREN'S SERVICES,READY STEADY MOVE LTD,350,S24 CLA,OTHER PAYMENTS FOR CLIENTS,5902226418
07.12.2016,CHILDREN'S SERVICES,REDACTED PERSONAL DATA,300,SEMI INDEPENDENT,OTHER PAYMENTS FOR CLIENTS,2102602208
07.12.2016,CHILDREN'S SERVICES,REDACTED PERSONAL DATA,"-3,210.64",SPECIAL GUARDIANSHIP,PAYMENTS TO CARERS,2102601908
07.12.2016,CHILDREN'S SERVICES,REDACTED PERSONAL DATA,263.71,SPECIAL GUARDIANSHIP,PAYMENTS TO CARERS,2102601840
07.12.2016,CHILDREN'S SERVICES,REDACTED PERSONAL DATA,269.08,SPECIAL GUARDIANSHIP,PAYMENTS TO CARERS,2102602098
07.12.2016,CHILDREN'S SERVICES,REDACTED PERSONAL DATA,269.08,SPECIAL GUARDIANSHIP,PAYMENTS TO CARERS,2102602118
07.12.2016,CHILDREN'S SERVICES,REDACTED PERSONAL DATA,317.67,SPECIAL GUARDIANSHIP,PAYMENTS TO CARERS,2102601954
07.12.2016,CHILDREN'S SERVICES,REDACTED PERSONAL DATA,350,SPECIAL GUARDIANSHIP,PAYMENTS TO CARERS,2102602010
07.12.2016,CHILDREN'S SERVICES,REDACTED PERSONAL DATA,354.59,SPECIAL GUARDIANSHIP,PAYMENTS TO CARERS,2102601942
07.12.2016,CHILDREN'S SERVICES,REDACTED PERSONAL DATA,435.84,SPECIAL GUARDIANSHIP,PAYMENTS TO CARERS,2102601966
07.12.2016,CHILDREN'S SERVICES,REDACTED PERSONAL DATA,525,SPECIAL GUARDIANSHIP,PAYMENTS TO CARERS,2102601805
07.12.2016,CHILDREN'S SERVICES,REDACTED PERSONAL DATA,525,SPECIAL GUARDIANSHIP,PAYMENTS TO CARERS,2102602136
07.12.2016,CHILDREN'S SERVICES,REDACTED PERSONAL DATA,525,SPECIAL GUARDIANSHIP,PAYMENTS TO CARERS,2102602182
07.12.2016,CHILDREN'S SERVICES,REDACTED PERSONAL DATA,"4,389.53",SPECIAL GUARDIANSHIP,PAYMENTS TO CARERS,2102602018
07.12.2016,CHILDREN'S SERVICES,NATIONAL FOSTERING AGENCY,"1,860.00",STAYING PUT,EXTERNAL AGENCIES AND BODIES,2102601819
07.12.2016,CHILDREN'S SERVICES,REDACTED PERSONAL DATA,-342.86,STAYING PUT,PAYMENTS TO CARERS,2102602511
07.12.2016,CHILDREN'S SERVICES,REDACTED PERSONAL DATA,428.58,STAYING PUT,PAYMENTS TO CARERS,2102602683
07.12.2016,CHILDREN'S SERVICES,REDACTED PERSONAL DATA,500,STAYING PUT,PAYMENTS TO CARERS,2102602441
07.12.2016,CHILDREN'S SERVICES,REDACTED PERSONAL DATA,500,STAYING PUT,PAYMENTS TO CARERS,2102602555
07.12.2016,CHILDREN'S SERVICES,REDACTED PERSONAL DATA,500,STAYING PUT,PAYMENTS TO CARERS,2102602494
07.12.2016,CHILDREN'S SERVICES,REDACTED PERSONAL DATA,500,STAYING PUT,PAYMENTS TO CARERS,2102602600
07.12.2016,CHILDREN'S SERVICES,REDACTED PERSONAL DATA,500,STAYING PUT,PAYMENTS TO CARERS,2102602543
07.12.2016,CHILDREN'S SERVICES,REDACTED PERSONAL DATA,500,STAYING PUT,PAYMENTS TO CARERS,2102602733
07.12.2016,CHILDREN'S SERVICES,REDACTED PERSONAL DATA,500,STAYING PUT,PAYMENTS TO CARERS,2102602480
07.12.2016,CHILDREN'S SERVICES,REDACTED PERSONAL DATA,500,STAYING PUT,PAYMENTS TO CARERS,2102602754
07.12.2016,CHILDREN'S SERVICES,REDACTED PERSONAL DATA,500,STAYING PUT,PAYMENTS TO CARERS,2102602498
07.12.2016,CHILDREN'S SERVICES,REDACTED PERSONAL DATA,500,STAYING PUT,PAYMENTS TO CARERS,2102602492
07.12.2016,CHILDREN'S SERVICES,REDACTED PERSONAL DATA,500,STAYING PUT,EXTERNAL AGENCIES AND BODIES,2102602755
07.12.2016,CHILDREN'S SERVICES,REDACTED PERSONAL DATA,500,STAYING PUT,PAYMENTS TO CARERS,2102602540
07.12.2016,CHILDREN'S SERVICES,REDACTED PERSONAL DATA,500,STAYING PUT,PAYMENTS TO CARERS,2102602647
07.12.2016,CHILDREN'S SERVICES,REDACTED PERSONAL DATA,500,STAYING PUT,PAYMENTS TO CARERS,2102602612
07.12.2016,CHILDREN'S SERVICES,REDACTED PERSONAL DATA,500,STAYING PUT,EXTERNAL AGENCIES AND BODIES,2102602731
07.12.2016,CHILDREN'S SERVICES,REDACTED PERSONAL DATA,500,STAYING PUT,PAYMENTS TO CARERS,2102602445
07.12.2016,CHILDREN'S SERVICES,REDACTED PERSONAL DATA,500,STAYING PUT,PAYMENTS TO CARERS,2102602693
07.12.2016,CHILDREN'S SERVICES,REDACTED PERSONAL DATA,500,STAYING PUT,PAYMENTS TO CARERS,2102602590
07.12.2016,CHILDREN'S SERVICES,REDACTED PERSONAL DATA,500,STAYING PUT,PAYMENTS TO CARERS,2102602615
07.12.2016,CHILDREN'S SERVICES,REDACTED PERSONAL DATA,500,STAYING PUT,PAYMENTS TO CARERS,2102602652
07.12.2016,CHILDREN'S SERVICES,REDACTED PERSONAL DATA,500,STAYING PUT,PAYMENTS TO CARERS,2102602710
07.12.2016,CHILDREN'S SERVICES,REDACTED PERSONAL DATA,500,STAYING PUT,PAYMENTS TO CARERS,2102602513
07.12.2016,CHILDREN'S SERVICES,REDACTED PERSONAL DATA,500,STAYING PUT,PAYMENTS TO CARERS,2102602644
07.12.2016,CHILDREN'S SERVICES,REDACTED PERSONAL DATA,500,STAYING PUT,PAYMENTS TO CARERS,2102602559
07.12.2016,CHILDREN'S SERVICES,REDACTED PERSONAL DATA,500,STAYING PUT,PAYMENTS TO CARERS,2102602701
07.12.2016,CHILDREN'S SERVICES,REDACTED PERSONAL DATA,500,STAYING PUT,PAYMENTS TO CARERS,2102602708
07.12.2016,CHILDREN'S SERVICES,REDACTED PERSONAL DATA,500,STAYING PUT,PAYMENTS TO CARERS,2102602482
07.12.2016,CHILDREN'S SERVICES,REDACTED PERSONAL DATA,500,STAYING PUT,EXTERNAL AGENCIES AND BODIES,2102602734
07.12.2016,CHILDREN'S SERVICES,REDACTED PERSONAL DATA,700,STAYING PUT,PAYMENTS TO CARERS,2102602581
07.12.2016,CHILDREN'S SERVICES,REDACTED PERSONAL DATA,900,STAYING PUT,PAYMENTS TO CARERS,2102602743
07.12.2016,CHILDREN'S SERVICES,RSM RISK ASSURANCE SERVICES LLP,"2,190.00",TACKLING TROUBLED FAMILIES,EXTERNAL AGENCIES AND BODIES,5902226631
07.12.2016,CHILDREN'S SERVICES,ANGEL SPRINGS LTD,265.6,THOMAS CALTON CENTRE,CATERING MATERIALS & SUPPLIES,5902221202
07.12.2016,CHILDREN'S SERVICES,REDACTED PERSONAL DATA,"1,750.00",UNIVERSITY SUPPORT,OTHER PAYMENTS FOR CLIENTS,2102602220
07.12.2016,CHILDREN'S SERVICES,REDACTED PERSONAL DATA,"1,750.00",UNIVERSITY SUPPORT,OTHER PAYMENTS FOR CLIENTS,2102602197
07.12.2016,CHILDREN'S SERVICES,REDACTED PERSONAL DATA,"1,750.00",UNIVERSITY SUPPORT,OTHER PAYMENTS FOR CLIENTS,2102602207
07.12.2016,CHILDREN'S SERVICES,DIGITAL HEARING CARE SOLUTIONS LTD,410,YOS SUPPORT,EQUIPMENT PURCHASE & REPAIR,5902226464
07.12.2016,CHILDREN'S SERVICES,DODS PARLIAMENTARY COMMUNICATIONS LTD,387,YOS SUPPORT,TRAINING,5902226460
07.12.2016,COMMISSIONING & CENTRAL,JULIET OGBECHIE LTD,"1,500.00",COMMISSIONING ESTABLISHMENT,CONSULTANTS SERVICES,5902226518
07.12.2016,COMMISSIONING & CENTRAL,METROPOLITAN SUPPORT TRUST,"174,601.36",SP PROVIDER PAYMENTS,EXTERNAL AGENCIES AND BODIES,5902225512
07.12.2016,COMMUNITIES,KENNINGTON PARK HSE MGMT CO-OP,"15,244.00",KENNINGTON PK CO-OP,M&M ALLOWANCE CO-OPS,5902226386
07.12.2016,COMMUNITIES,OPEN COMMUNITIES LTD,955.5,RESIDENT INVOLVEMENT TEAM,PROFESSIONAL FEES,5902226573
07.12.2016,COMMUNITIES,OPEN COMMUNITIES LTD,"1,102.50",RESIDENT INVOLVEMENT TEAM,PROFESSIONAL FEES,5902226564
07.12.2016,CUSTOMER EXPERIENCE HGF,THE ALBERT KENNEDY TRUST,"2,500.00",HOMELESS & HOUSING OPTIONS MGT,TRAINING,5902226459
07.12.2016,CUSTOMER EXPERIENCE HGF,NOTTING HILL HOUSING GROUP,"11,168.91",HYDE/AMICUS AND HALS,GRANTS,5902226585
07.12.2016,CUSTOMER EXPERIENCE HGF,A & M ACCOMMODATION SERVICES LTD,"46,242.00",NIGHTLY TA (NSC),EXTERNAL AGENCIES AND BODIES,5902226454
07.12.2016,CUSTOMER EXPERIENCE HGF,CROWN HOUSING LTD,"17,285.00",NIGHTLY TA (NSC),EXTERNAL AGENCIES AND BODIES,5902226531
07.12.2016,CUSTOMER EXPERIENCE HGF,DELTALET LTD,"4,320.00",NIGHTLY TA (NSC),EXTERNAL AGENCIES AND BODIES,5902226411
07.12.2016,CUSTOMER EXPERIENCE HGF,RS REAL ESTATE LTD,"18,213.00",NIGHTLY TA (NSC),EXTERNAL AGENCIES AND BODIES,5902226426
07.12.2016,CUSTOMER EXPERIENCE HGF,REDACTED PERSONAL DATA,"3,500.00",TEMP ACCOM - MNGMT,GRANTS,5902226404
07.12.2016,ELECTORAL SVCES,BESSEMER GRANGE PRIMARY SCHOOL,280,GENERAL ELECTION,HIRE OF ROOMS/HALLS,5902226649
07.12.2016,ENVIRONMENT AND LEISURE,FUSION LIFESTYLE,481.8,CAPITAL PS (LEISURE),CONSTRUCTION MAIN CONTRACT,5902226542
07.12.2016,ENVIRONMENT AND LEISURE,RENAULT RETAIL GROUP,"14,150.25",CAPITAL PS (LEISURE),"PLANT, MACHINERY & EQUIPMENT ACQUISITION",5902226550
07.12.2016,ENVIRONMENT AND LEISURE,RYAN BUNCE & COMPANY LTD,"1,100.00",CAPITAL PS (LEISURE),CONST'N MAIN CONTRACT - NON CERTIFICATED,5902226468
07.12.2016,ENVIRONMENT AND LEISURE,SPOKEMEAD MAINTENANCE LTD,439.76,CAPITAL PS (LEISURE),CONSTRUCTION MAIN CONTRACT,2102601737
07.12.2016,ENVIRONMENT AND LEISURE,SPOKEMEAD MAINTENANCE LTD,915.27,CAPITAL PS (LEISURE),CONSTRUCTION FEES  - EXTERNAL,2102601737
07.12.2016,ENVIRONMENT AND LEISURE,SPOKEMEAD MAINTENANCE LTD,"2,698.46",CAPITAL PS (LEISURE),CONSTRUCTION FEES  - EXTERNAL,2102601737
07.12.2016,ENVIRONMENT DIRECTORATE,LEX AUTOLEASE,-345.72,CAR LEASING CTRL A/C,VEHICLE LEASING CHARGES,5902226593
07.12.2016,ENVIRONMENT DIRECTORATE,LEX AUTOLEASE,-290.65,CAR LEASING CTRL A/C,VEHICLE LEASING CHARGES,5902226591
07.12.2016,ENVIRONMENT DIRECTORATE,LEX AUTOLEASE,661.62,CAR LEASING CTRL A/C,VEHICLE LEASING CHARGES,5902226589
07.12.2016,ENVIRONMENT DIRECTORATE,R J MOTORS LIMITED,302.72,COMMERCIAL VEH CTRL A/C,VEHICLE REPAIRS & MAINTENANCE,5902226395
07.12.2016,ENVIRONMENT DIRECTORATE,R J MOTORS LIMITED,366.59,COMMERCIAL VEH CTRL A/C,VEHICLE REPAIRS & MAINTENANCE,5902226403
07.12.2016,ENVIRONMENT DIRECTORATE,GREENHAM TRADING LTD,937.53,ESTATE CLEANING-GENERAL,MATERIALS,5902226487
07.12.2016,ENVIRONMENT DIRECTORATE,PACE ACCIDENT REPAIRS CENTRE LTD,"3,894.89",FLEET INSURANCE WORKS,TRANSPORT INSURANCE COSTS,5902226583
07.12.2016,ENVIRONMENT DIRECTORATE,DRAIN SCAN,260,GULLY MAINT NON PINC RD,OTHER CONTRACTORS,5902226515
07.12.2016,ENVIRONMENT DIRECTORATE,COMPLETE TREE CARE LTD,"1,537.14",NON HOUSING GROUNDS,AGENCY STAFF,5902226447
07.12.2016,ENVIRONMENT DIRECTORATE,LONDON TOOLS LIMITED,550,RESIDENTIAL SERVICES,MATERIALS,5902226617
07.12.2016,ENVIRONMENT DIRECTORATE,BAKER ENGINEERING,714.35,STREET CLEANING-GENERAL,EQUIPMENT PURCHASE & REPAIR,5902226436
07.12.2016,ENVIRONMENT DIRECTORATE,AGENTIS WORKWEAR LTD,262.5,STREETS  (NORTH WEST),"CLOTHING, UNIFORMS & LAUNDRY",5902226384
07.12.2016,ENVIRONMENT DIRECTORATE,AVILAND LTD,474,STREETS  (NORTH WEST),MATERIALS,5902225370
07.12.2016,F & C S EXCLUDING CORPORATE BUDGETS,RSM RISK ASSURANCE SERVICES LLP,"16,985.00",INTERNAL AUDIT CONTRACTS,PAYMENTS FOR FINANCIAL SERVICES,5902226385
07.12.2016,F & C S EXCLUDING CORPORATE BUDGETS,ANGEL SPRINGS LTD,-265.6,PAYMENTS CONTROL,OFFICE EXPENSES,2102603090
07.12.2016,HOUSING,CITY ELECTRICAL FACTORS LTD,462.22,STORES,CREDITORS -GR/IR CLEARING ACCOUNT,5902226495
07.12.2016,HOUSING,LONDON TOOLS LIMITED,252,STORES,CREDITORS -GR/IR CLEARING ACCOUNT,5902226505
07.12.2016,HOUSING,LONDON TOOLS LIMITED,324,STORES,CREDITORS -GR/IR CLEARING ACCOUNT,5902226508
07.12.2016,HOUSING,LONDON TOOLS LIMITED,330,STORES,CREDITORS -GR/IR CLEARING ACCOUNT,5902226510
07.12.2016,HOUSING,LONDON TOOLS LIMITED,455,STORES,CREDITORS -GR/IR CLEARING ACCOUNT,5902226509
07.12.2016,HOUSING,LONDON TOOLS LIMITED,469.2,STORES,CREDITORS -GR/IR CLEARING ACCOUNT,5902226506
07.12.2016,HOUSING,LONDON TOOLS LIMITED,575,STORES,CREDITORS -GR/IR CLEARING ACCOUNT,5902226511
07.12.2016,HOUSING,LONDON TOOLS LIMITED,591.36,STORES,CREDITORS -GR/IR CLEARING ACCOUNT,5902226509
07.12.2016,HOUSING,LONDON TOOLS LIMITED,595,STORES,CREDITORS -GR/IR CLEARING ACCOUNT,5902226503
07.12.2016,HOUSING,LONDON TOOLS LIMITED,625,STORES,CREDITORS -GR/IR CLEARING ACCOUNT,5902226508
07.12.2016,HOUSING,LONDON TOOLS LIMITED,675,STORES,CREDITORS -GR/IR CLEARING ACCOUNT,5902226504
07.12.2016,HOUSING,LONDON TOOLS LIMITED,675,STORES,CREDITORS -GR/IR CLEARING ACCOUNT,5902226512
07.12.2016,HOUSING,LONDON TOOLS LIMITED,684.5,STORES,CREDITORS -GR/IR CLEARING ACCOUNT,5902226504
07.12.2016,HOUSING,LONDON TOOLS LIMITED,693,STORES,CREDITORS -GR/IR CLEARING ACCOUNT,5902226508
07.12.2016,HOUSING,LONDON TOOLS LIMITED,750,STORES,CREDITORS -GR/IR CLEARING ACCOUNT,5902226500
07.12.2016,HOUSING,LONDON TOOLS LIMITED,900,STORES,CREDITORS -GR/IR CLEARING ACCOUNT,5902226645
07.12.2016,HOUSING,LONDON TOOLS LIMITED,"1,050.00",STORES,CREDITORS -GR/IR CLEARING ACCOUNT,5902226639
07.12.2016,HOUSING,LONDON TOOLS LIMITED,"1,128.00",STORES,CREDITORS -GR/IR CLEARING ACCOUNT,5902226506
07.12.2016,HOUSING,LONDON TOOLS LIMITED,"2,750.00",STORES,CREDITORS -GR/IR CLEARING ACCOUNT,5902226508
07.12.2016,HOUSING,EDF ENERGY  CUST PLC,"11,275.67",SUPPLY OF ELECTRICITY,ELECTRICITY,DIRECT DEBIT PAYMENT
07.12.2016,HOUSING GENERAL FUND,ELEMENT ROOFING CO LTD,"2,131.67",CAPITAL PS (HOUSING GF),CAPITAL GRANTS,5902226017
07.12.2016,HOUSING GENERAL FUND,ELEMENT ROOFING CO LTD,"5,833.33",CAPITAL PS (HOUSING GF),CAPITAL GRANTS,5902226017
07.12.2016,HOUSING HRA,A & E ELKINS LTD,"23,145.68",CAPITAL PS (HRA),CONST'N MAIN CONTRACT - NON CERTIFICATED,2102602843
07.12.2016,HOUSING HRA,ALLEN TRANSPORT CONSULTANCY LTD,575,CAPITAL PS (HRA),CONSTRUCTION FEES  - EXTERNAL,5902226334
